Service Area,Service Division,Expense Type,Expense Code,Detailed Expense Type,Payment Date,Transaction Number,Amount Exc VAT,Supplier Name
Adult and Health Services,Head of Adults,Third Party Payments,472101,Purchase of Care,01/12/2022,4074600-RES-11-2022-455,"15,853.05",ACCEPT CARE LTD.
Neighbourhoods and Climate Change,Environmental Services,Transport,230005,Contract Hire,01/12/2022,4074601-I2230754,"1,285.80",ACL HIRE LTD.
Neighbourhoods and Climate Change,Environmental Services,Transport,230005,Contract Hire,01/12/2022,4074601-I2230755,"1,285.80",ACL HIRE LTD.
Children and Young Peoples Services,Head of Education and Skills,Transfer Payments,510034,School Children,01/12/2022,4074602-PUPILPREMIUM/AUTUMNTERM24,"6,000.00",ADVANCE LEARNING PARTNERSHIP.
Children and Young Peoples Services,Head of Education and Skills,Transfer Payments,510034,School Children,01/12/2022,4074603-PUPILPREMIUM/AUTUMNTERM51,"4,200.00",ADVANCE LEARNING PARTNERSHIP.
Children and Young Peoples Services,Head of Education and Skills,Transfer Payments,510034,School Children,01/12/2022,4074604-PUPILPREMIUM/AUTUMNTERM18,"1,200.00",ADVANCE LEARNING PARTNERSHIP.
Children and Young Peoples Services,Head of Education and Skills,Transfer Payments,510034,School Children,01/12/2022,4074605-PUPILPREMIUM/AUTUMNTERM6,"2,400.00",ADVANCE LEARNING PARTNERSHIP.
Children and Young Peoples Services,Head of Education and Skills,Transfer Payments,510034,School Children,01/12/2022,4074606-PUPILPREMIUM/AUTUMNTERM1,"3,600.00",ADVANCE LEARNING PARTNERSHIP.
Neighbourhoods and Climate Change,Community Protection,Supplies and Services,338027,Services,01/12/2022,4074607-28509970,"1,651.38",AECOM LTD.
Children and Young Peoples Services,Head of Education and Skills,Construction work A908,908105,Construction work,01/12/2022,4074611-SI19961,"3,050.00",AMBIC LTD.
Regeneration Economy and Growth,Culture Sport and Tourism,Supplies and Services,338047,Services,01/12/2022,4074618-21098,"4,112.37",BARRY COLLINGS ENTERTAINMENTS.
Regeneration Economy and Growth,Culture Sport and Tourism,Supplies and Services,324117,Provisions E324,01/12/2022,4074620-58285198,661.79,BIDFOOD.
Regeneration Economy and Growth,Culture Sport and Tourism,Supplies and Services,324117,Provisions E324,01/12/2022,4074620-58389851,"1,363.82",BIDFOOD.
Regeneration Economy and Growth,Culture Sport and Tourism,Supplies and Services,324117,Provisions E324,01/12/2022,4074620-58550083,869.23,BIDFOOD.
Children and Young Peoples Services,Head of Education and Skills,Transfer Payments,510034,School Children,01/12/2022,4074621-PUPILPREMIUM/AUTUMNTERM21,"1,800.00",BISHOP CHADWICK CATHOLIC EDUCATION TRUST (NSCET).
Children and Young Peoples Services,Head of Education and Skills,Transfer Payments,510034,School Children,01/12/2022,4074622-PUPILPREMIUM/AUTUMNTERM35,600.00,BISHOP CHADWICK CATHOLIC EDUCATION TRUST (NSCET).
Children and Young Peoples Services,Head of Education and Skills,Transfer Payments,510034,School Children,01/12/2022,4074623-PUPILPREMIUM/AUTUMNTERM32,"3,600.00",BISHOP CHADWICK CATHOLIC EDUCATION TRUST (NSCET).
Children and Young Peoples Services,Head of Education and Skills,Transfer Payments,510034,School Children,01/12/2022,4074624-PUPILPREMIUM/AUTUMNTERM36,"4,800.00",BISHOP HOGARTH CATHOLIC EDUCATION TRUST.
Children and Young Peoples Services,Head of Education and Skills,Transfer Payments,510034,School Children,01/12/2022,4074625-PUPILPREMIUM/AUTUMNTERM34,"1,800.00",BISHOP HOGARTH CATHOLIC EDUCATION TRUST.
Children and Young Peoples Services,Head of Education and Skills,Transfer Payments,510034,School Children,01/12/2022,4074626-PUPILPREMIUM/AUTUMNTERM42,"1,200.00",BISHOP HOGARTH CATHOLIC EDUCATION TRUST.
Children and Young Peoples Services,Head of Education and Skills,Transfer Payments,510034,School Children,01/12/2022,4074627-PUPILPREMIUM/AUTUMNTERM37,"1,800.00",BISHOP HOGARTH CATHOLIC EDUCATION TRUST.
Children and Young Peoples Services,Head of Education and Skills,Transfer Payments,510034,School Children,01/12/2022,4074628-PUPILPREMIUM/AUTUMNTERM33,600.00,BISHOP HOGARTH CATHOLIC EDUCATION TRUST.
Children and Young Peoples Services,Head of Education and Skills,Transfer Payments,510034,School Children,01/12/2022,4074629-PUPILPREMIUM/AUTUMNTERM3,"1,200.00",BISHOP HOGARTH CATHOLIC EDUCATION TRUST.
Children and Young Peoples Services,Head of Education and Skills,Transfer Payments,510034,School Children,01/12/2022,4074630-PUPILPREMIUM/AUTUMNTERM2,600.00,BISHOP IAN RAMSEY C OF E PRIMARY SCHOOL.
Children and Young Peoples Services,Head of Education and Skills,Transfer Payments,510034,School Children,01/12/2022,4074631-PUPILPREMIUM/AUTUMNTERM39,600.00,BISHOP WILKINSON CATHOLIC EDUCATION TRUST.
Children and Young Peoples Services,Head of Education and Skills,Transfer Payments,510034,School Children,01/12/2022,4074632-PUPILPREMIUM/AUTUMNTERM41,600.00,BISHOP WILKINSON CATHOLIC EDUCATION TRUST.
Children and Young Peoples Services,Head of Education and Skills,Transfer Payments,510034,School Children,01/12/2022,4074633-PUPILPREMIUM/AUTUMNTERM38,"3,000.00",BISHOP WILKINSON CATHOLIC EDUCATION TRUST.
Children and Young Peoples Services,Head of Education and Skills,Transfer Payments,510034,School Children,01/12/2022,4074634-PUPILPREMIUM/AUTUMNTERM40,"1,200.00",BISHOP WILKINSON CATHOLIC EDUCATION TRUST.
Regeneration Economy and Growth,Culture Sport and Tourism,Premises,145023,Cleaning and Domestic Supplies,01/12/2022,4074638-22SI2285960,544.50,BRENNTAG UK LTD.
Regeneration Economy and Growth,Corporate Property and Land,Third Party Payments,430100,Rendered by Private Contractors,01/12/2022,4074645-10228,924.00,CATHEDRAL LOCK & SAFE SERVICES LTD.
Adult and Health Services,Commissioning inc Supporting People,Third Party Payments,479102,Purchase of Care,01/12/2022,4074649-0569,"7,518.58",CHILD ACTION NORTHWEST.
Children and Young Peoples Services,Head of Education and Skills,Transfer Payments,510034,School Children,01/12/2022,4074656-PUPILPREMIUM/AUTUMNTERM25,"3,000.00",CLEVES CROSS LEARNING TRUST T/A ROSA STREET PRIMARY SCHOOL.
Neighbourhoods and Climate Change,Highways,Third Party Payments,430127,Rendered by Private Contractors,01/12/2022,4074666-INV-0214,622.50,D & L HOPPS.
Children and Young Peoples Services,Head of Education and Skills,Transfer Payments,510034,School Children,01/12/2022,4074669-PUPILPREMIUM/AUTUMNTERM10,600.00,DENE ACADEMY.
Neighbourhoods and Climate Change,Environmental Services,Supplies and Services,338099,Services,01/12/2022,4074671-0000148466,566.00,DINSDALE INVESTMENTS LTD.
Children and Young Peoples Services,Head of Education and Skills,Transfer Payments,510028,School Children,01/12/2022,4074676-RES-11-2022-481,"1,000.00",EARLY LEARNERS PRIVATE DAY NURSERY.
Children and Young Peoples Services,Head of Education and Skills,Transfer Payments,510034,School Children,01/12/2022,4074678-PUPILPREMIUM/AUTUMNTERM5,600.00,EDEN ACADEMY TRUST LTD T/A BLUEBELL MEADOW PRIMARY SCHOOL.
Children and Young Peoples Services,Head of Education and Skills,Transfer Payments,510034,School Children,01/12/2022,4074679-PUPILPREMIUM/AUTUMNTERM12,"3,600.00",EDEN LEARNING TRUST T/A FERRYHILL BUSINESS & ENTERPRISE COLLEGE.
Children and Young Peoples Services,Head of Education and Skills,Transfer Payments,510034,School Children,01/12/2022,4074680-PUPILPREMIUM/AUTUMNTERM27,"4,800.00",EDEN LEARNING TRUST T/A SEAHAM HIGH SCHOOL.
Children and Young Peoples Services,Head of Education and Skills,Transfer Payments,510034,School Children,01/12/2022,4074681-PUPILPREMIUM/AUTUMNTERM45,"1,800.00",EDEN LEARNING TRUST T/A TANFIELD SCHOOL.
Children and Young Peoples Services,Head of Education and Skills,Transfer Payments,510034,School Children,01/12/2022,4074682-PUPILPREMIUM/AUTUMNTERM52,"6,600.00",EDEN LEARNING TRUST T/A WOODHAM ACADEMY.
Regeneration Economy and Growth,Transport and Contracted Services,Third Party Payments,430106,Rendered by Private Contractors,01/12/2022,4074689-3994/1122,"5,016.00",ELLIOTTS OF TRIMDON.
Neighbourhoods and Climate Change,Environmental Services,Transport,230005,Contract Hire,01/12/2022,4074690-8193036,600.30,ENTERPRISE FLEX-E-RENT T/A BURNT TREE GROUP LTD.
Children and Young Peoples Services,Head of Education and Skills,Transfer Payments,510034,School Children,01/12/2022,4074692-PUPILPREMIUM/AUTUMNTERM13,"6,600.00",EXCEL ACADEMY PARTNERSHIP T/A FRAMWELLGATE SCHOOL DURHAM.
Regeneration Economy and Growth,Transport and Contracted Services,Third Party Payments,430106,Rendered by Private Contractors,01/12/2022,4074693-PUBLICSERVICEOCT/NOV22,"2,257.00",FERRYHILL VILLAGE TRAVEL.
Neighbourhoods and Climate Change,Environmental Services,Supplies and Services,304252,Equipment and Materials,01/12/2022,4074700-I296243,"3,102.00",GEMCO SERVICE LTD.
Regeneration Economy and Growth,Transport and Contracted Services,Third Party Payments,430106,Rendered by Private Contractors,01/12/2022,4074704-80438,"207,908.59",GO GATESHEAD LTD.
Regeneration Economy and Growth,Transport and Contracted Services,Third Party Payments,430106,Rendered by Private Contractors,01/12/2022,4074704-80439,"273,665.18",GO GATESHEAD LTD.
Regeneration Economy and Growth,Transport and Contracted Services,Third Party Payments,430106,Rendered by Private Contractors,01/12/2022,4074704-80440,"287,743.66",GO GATESHEAD LTD.
Regeneration Economy and Growth,Transport and Contracted Services,Third Party Payments,430106,Rendered by Private Contractors,01/12/2022,4074704-80441,"290,770.10",GO GATESHEAD LTD.
Regeneration Economy and Growth,Corporate Property and Land,Supplies and Services,304221,Equipment and Materials,01/12/2022,4074710-8099,"4,167.30",GROVE REED JOINERY LTD.
Adult and Health Services,Public Health CC0450,Third Party Payments,460803,Contract Payments,01/12/2022,4074713-DCCDA034,"72,625.01",HARBOUR SUPPORT SERVICES.
Children and Young Peoples Services,Head of Education and Skills,Transfer Payments,510034,School Children,01/12/2022,4074715-PUPILPREMIUM/AUTUMNTERM15,600.00,HARTSIDE PRIMARY ACADEMY.
Regeneration Economy and Growth,Corporate Property and Land,Supplies and Services,304221,Equipment and Materials,01/12/2022,4074717-4748814,671.17,HEADLAM (FLOORCOVERING DISTRIBUTORS) LTD.
Adult and Health Services,Commissioning inc Supporting People,Third Party Payments,479111,Purchase of Care,01/12/2022,4074720-08NOV2022,"20,000.00",HOME GROUP LTD.
Children and Young Peoples Services,Head of Education and Skills,Transfer Payments,510034,School Children,01/12/2022,4074722-PUPILPREMIUM/AUTUMNTERM17,"4,200.00",HOPE WOOD ACADEMY.
Children and Young Peoples Services,Head of Education and Skills,Transfer Payments,510034,School Children,01/12/2022,4074730-PUPILPREMIUM/AUTUMNTERM22,600.00,JIGSAW LEARNING TRUST.
Children and Young Peoples Services,Head of Education and Skills,Transfer Payments,510034,School Children,01/12/2022,4074733-PUPILPREMIUM/AUTUMNTERM19,"1,200.00",KING JAMES I ACADEMY.
Regeneration Economy and Growth,Planning & Housing,Supplies and Services,338045,Services,01/12/2022,4074734-497174B,"20,625.00",KINGS CHAMBERS.
Children and Young Peoples Services,Head of Education and Skills,Transport,230010,Contract Hire,01/12/2022,4074745-INV03/2022-14,"2,944.00",MARK & JOHN CHISHOLM T/A (CHEVRON).
Children and Young Peoples Services,Head of Education and Skills,Transport,230008,Contract Hire,01/12/2022,4074745-INV03/202228,"1,321.60",MARK & JOHN CHISHOLM T/A (CHEVRON).
Neighbourhoods and Climate Change,Environmental Services,Supplies and Services,384899,Miscellaneous Expenses,01/12/2022,4074749-RES-12-2022-004,"5,624.18",MERRYWELL CARE (BELMONT GRANGE) LTD.
Children and Young Peoples Services,Head of Education and Skills,Transfer Payments,510034,School Children,01/12/2022,4074757-PUPILPREMIUM/AUTUMNTERM9,"3,000.00",NEW COLLEGE ACADEMIES TRUST - CONSETT ACADEMY.
Children and Young Peoples Services,Childrens Services Operational Support,Supplies and Services,384956,Miscellaneous Expenses,01/12/2022,4074758-1800011548166,"24,582.77",NEWCASTLE UPON TYNE CITY COUNCIL.
Neighbourhoods and Climate Change,Highways,Supplies and Services,336005,Advertising E336,01/12/2022,4074759-41391931,620.60,NEWSQUEST (YORKSHIRE & NORTH EAST) LTD.
Children and Young Peoples Services,Head of Education and Skills,Transfer Payments,510034,School Children,01/12/2022,4074762-PUPILPREMIUM/AUTUMNTERM48,600.00,NORTH DURHAM ACADEMY.
Children and Young Peoples Services,Head of Education and Skills,Transfer Payments,510034,School Children,01/12/2022,4074764-PUPILPREMIUM/AUTUMNTERM11,"3,600.00",NORTH EAST LEARNING TRUST (NELT).
Children and Young Peoples Services,Head of Education and Skills,Transfer Payments,510034,School Children,01/12/2022,4074764-PUPILPREMIUM/AUTUMNTERM16,"1,800.00",NORTH EAST LEARNING TRUST (NELT).
Children and Young Peoples Services,Head of Education and Skills,Transfer Payments,510034,School Children,01/12/2022,4074764-PUPILPREMIUM/AUTUMNTERM26,"1,200.00",NORTH EAST LEARNING TRUST (NELT).
Children and Young Peoples Services,Head of Education and Skills,Transfer Payments,510034,School Children,01/12/2022,4074764-PUPILPREMIUM/AUTUMNTERM46,"2,400.00",NORTH EAST LEARNING TRUST (NELT).
Children and Young Peoples Services,Head of Education and Skills,Transfer Payments,510034,School Children,01/12/2022,4074764-PUPILPREMIUM/AUTUMNTERM47,"5,400.00",NORTH EAST LEARNING TRUST (NELT).
Children and Young Peoples Services,Head of Education and Skills,Transfer Payments,510034,School Children,01/12/2022,4074764-PUPILPREMIUM/AUTUMNTERM7,"1,800.00",NORTH EAST LEARNING TRUST (NELT).
Resources BK0010,HR & Employee Services,Supplies and Services,352001,Conference Expenses,01/12/2022,4074769-INV-1107,"7,126.00",OM CHANGE & TRANSFORMATION LTD.
Neighbourhoods and Climate Change,Environmental Services,Supplies and Services,304221,Equipment and Materials,01/12/2022,4074774-OASI0040738,"4,999.18",ORIGIN AMENITY SOLUTIONS LTD.
Children and Young Peoples Services,Childrens Services Operational Support,Supplies and Services,342053,Computers and Communications,01/12/2022,4074775-18188,"1,452.00",OXFORD COMPUTER CONSULTANTS LTD.
Regeneration Economy and Growth,Corporate Property and Land,Supplies and Services,304221,Equipment and Materials,01/12/2022,4074778-DT186732,861.50,PARK ELECTRICAL DISTRIBUTORS LTD.
Children and Young Peoples Services,Head of Education and Skills,Transfer Payments,510034,School Children,01/12/2022,4074779-PUPILPREMIUM/AUTUMNTERM23,"6,000.00",PARK VIEW ACADEMY.
Children and Young Peoples Services,Head of Education and Skills,Supplies and Services,312011,Newspapers books and periodicals E312,01/12/2022,4074785-1948310,671.16,PETERS LTD.
Adult and Health Services,Head of Adults,Third Party Payments,479102,Purchase of Care,01/12/2022,4074788-INV-0052,"6,729.80",POSITIVE CARE & SUPPORT LTD.
Adult and Health Services,Head of Adults,Third Party Payments,479102,Purchase of Care,01/12/2022,4074788-INV-0053,"6,729.80",POSITIVE CARE & SUPPORT LTD.
Regeneration Economy and Growth,Economic Development Level C,Supplies and Services,304405,Equipment and Materials,01/12/2022,4074794-488191,"1,067.50",QUALSAFE.COM.
Neighbourhoods and Climate Change,Highways,Third Party Payments,430100,Rendered by Private Contractors,01/12/2022,4074795-14332,"2,143.68",QUANTUM POWER CONNECTIONS LTD.
Neighbourhoods and Climate Change,Highways,Third Party Payments,430100,Rendered by Private Contractors,01/12/2022,4074795-14562,"7,581.16",QUANTUM POWER CONNECTIONS LTD.
Adult and Health Services,Head of Adults,Transport,230005,Contract Hire,01/12/2022,4074797-SI-22092,"2,880.42",RAPID MINIBUSES.
Resources BK0010,Procurement Sales & Business Services,Supplies and Services,340001,Postages E340,01/12/2022,4074806-9066028484,"3,050.00",ROYAL MAIL GROUP PLC.
Children and Young Peoples Services,Head of Education and Skills,Transfer Payments,510034,School Children,01/12/2022,4074813-PUPILPREMIUM/AUTUMNTERM28,"6,900.00",SEDGEFIELD COMMUNITY COLLEGE.
Children and Young Peoples Services,Head of Education and Skills,Transfer Payments,510034,School Children,01/12/2022,4074813-PUPILPREMIUM/AUTUMNTERM56,648.00,SEDGEFIELD COMMUNITY COLLEGE.
Neighbourhoods and Climate Change,Highways,Third Party Payments,430100,Rendered by Private Contractors,01/12/2022,4074814-24026,"53,693.85",SEYMOUR (CIVIL ENGINEERING CONTRACTORS) LTD.
Children and Young Peoples Services,Head of Education and Skills,Transfer Payments,510034,School Children,01/12/2022,4074815-PUPILPREMIUM/AUTUMNTERM29,"1,200.00",SHIELD ROW ACADEMY.
Regeneration Economy and Growth,Corporate Property and Land,Supplies and Services,304259,Equipment and Materials,01/12/2022,4074817-0001/10151255,720.00,SMH PRODUCTS LTD.
Regeneration Economy and Growth,Economic Development Level C,Supplies and Services,384899,Miscellaneous Expenses,01/12/2022,4074820-SD031/5,"28,344.93",SOUTH DURHAM ENTERPRISE AGENCY LTD.
Children and Young Peoples Services,Head of Education and Skills,Transfer Payments,510034,School Children,01/12/2022,4074823-PUPILPREMIUM/AUTUMNTERM31,"5,400.00",ST BEDES CATHOLIC ACADEMY (LANCHESTER).
Children and Young Peoples Services,Head of Education and Skills,Transfer Payments,510034,School Children,01/12/2022,4074824-PUPILPREMIUM/AUTUMNTERM43,"1,800.00",STAINDROP ACADEMY.
Children and Young Peoples Services,Head of Education and Skills,Transfer Payments,510034,School Children,01/12/2022,4074826-PUPILPREMIUM/AUTUMNTERM8,600.00,STANLEY LEARNING PARTNERSHIP.
Children and Young Peoples Services,Head of Education and Skills,Transfer Payments,510034,School Children,01/12/2022,4074827-PUPILPREMIUM/AUTUMNTERM20,600.00,STANLEY LEARNING PARTNERSHIP.
Children and Young Peoples Services,Head of Education and Skills,Transfer Payments,510034,School Children,01/12/2022,4074828-PUPILPREMIUM/AUTUMNTERM14,600.00,STANLEY LEARNING PARTNERSHIP.
Children and Young Peoples Services,Head of Education and Skills,Transfer Payments,510034,School Children,01/12/2022,4074828-PUPILPREMIUM/AUTUMNTERM30,600.00,STANLEY LEARNING PARTNERSHIP.
Children and Young Peoples Services,Head of Education and Skills,Transfer Payments,510034,School Children,01/12/2022,4074829-PUPILPREMIUM/AUTUMNTERM4,"1,200.00",STANLEY LEARNING PARTNERSHIP.
Neighbourhoods and Climate Change,Highways,Third Party Payments,430100,Rendered by Private Contractors,01/12/2022,4074830-15605A,"1,969.68",STEADFAST SECURITY SOLUTIONS LTD.
Neighbourhoods and Climate Change,Highways,Third Party Payments,430100,Rendered by Private Contractors,01/12/2022,4074830-15673A,"5,365.68",STEADFAST SECURITY SOLUTIONS LTD.
Children and Young Peoples Services,Head of Education and Skills,Transfer Payments,510034,School Children,01/12/2022,4074831-PUPILPREMIUM/AUTUMNTERM44,"1,800.00",STEPHENSON WAY ACADEMY & NURSERY SCHOOL.
Neighbourhoods and Climate Change,Highways,Supplies and Services,304221,Equipment and Materials,01/12/2022,4074834-INV-0494,"1,505.00",SUPAMOLE DIRECTIONAL DRILLING SPECIALISTS.
Resources BK0010,HR & Employee Services,Premises,150005,Apportioned Exps of Operational Blds,01/12/2022,4074842-6892,798.80,THE DURHAM CENTRE LTD.
Neighbourhoods and Climate Change,Environmental Services,Supplies and Services,384606,Miscellaneous Expenses,01/12/2022,4074843-RES-11-2022-212,"1,110.31",THE FARMER NETWORK LTD.
Regeneration Economy and Growth,Planning & Housing,Construction work A908,908105,Construction work,01/12/2022,4074854-SPN-000586,"1,585,555.67",TOLENT LIVING LTD.
Children and Young Peoples Services,Head of Education and Skills,Transfer Payments,510034,School Children,01/12/2022,4074858-PUPILPREMIUM/AUTUMNTERM49,"1,800.00",TUDHOE LEARNING TRUST T/A TUDHOE COLLIERY PRIMARY SCHOOL.
Neighbourhoods and Climate Change,Highways,Supplies and Services,304221,Equipment and Materials,01/12/2022,4074859-240056,"1,648.30",TYNEDALE ROADSTONE LTD.
Neighbourhoods and Climate Change,Highways,Supplies and Services,304221,Equipment and Materials,01/12/2022,4074859-240057,"1,098.93",TYNEDALE ROADSTONE LTD.
Neighbourhoods and Climate Change,Highways,Supplies and Services,304221,Equipment and Materials,01/12/2022,4074859-240058,"1,602.55",TYNEDALE ROADSTONE LTD.
Regeneration Economy and Growth,Business Durham CL0850,Supplies and Services,338066,Services,01/12/2022,4074861-INV-14438,"39,242.42",UMI COMMERCIAL LTD.
Resources BK0010,Digital Services,Supplies and Services,344015,Telephones,01/12/2022,4074864-RS98729,540.00,VODAFONE CORPORATE LTD.
Regeneration Economy and Growth,Culture Sport and Tourism,Supplies and Services,304259,Equipment and Materials,01/12/2022,4074866-6325,"1,899.00",VORTEX LIGHTING LTD.
Children and Young Peoples Services,Head of Education and Skills,Transfer Payments,510034,School Children,01/12/2022,4074873-PUPILPREMIUM/AUTUMNTERM50,"1,800.00",WHITWORTH PARK SCHOOL.*
Children and Young Peoples Services,Head of Education and Skills,Transport,230034,Contract Hire,01/12/2022,4074753-5455-OCT22,"1,706.40",REDACTED - PAYMENT TO INDIVIDUAL
Children and Young Peoples Services,Childrens Services Operational Support,Supplies and Services,384199,Miscellaneous Expenses,01/12/2022,4074800-INV0501253,645.75,RINGTONS LTD.
Neighbourhoods and Climate Change,Environmental Services,Supplies and Services,384199,Miscellaneous Expenses,01/12/2022,4074808-SINV111647,"19,137.29",SALIX RIVER & WETLAND SERVICES LTD.
Regeneration Economy and Growth,Business Durham CL0850,Premises,120009,Energy Costs,01/12/2022,4074641-718629523,628.37,BRITISH GAS TRADING LTD.
Resources BK0010,Internal Audit and Insurance,Supplies and Services,352001,Conference Expenses,01/12/2022,4074822-9411043548,680.00,SSCL POLICE.
Neighbourhoods and Climate Change,Environmental Services,Supplies and Services,384700,Miscellaneous Expenses,01/12/2022,4074729-RES-11-2022-465,960.00,REDACTED - PAYMENT TO INDIVIDUAL
Children and Young Peoples Services,Head of Childrens Social Care,Supplies and Services,338045,Services,01/12/2022,4074849-2211001DCCMCK,750.00,REDACTED - PAYMENT TO INDIVIDUAL
Adult and Health Services,Commissioning inc Supporting People,Third Party Payments,479101,Purchase of Care,02/12/2022,4074878-INV029764,"7,000.00",CAREHOME SELECTION LTD (CHS HEALTHCARE).
Adult and Health Services,Commissioning inc Supporting People,Third Party Payments,479101,Purchase of Care,02/12/2022,4074885-4085-01/12/2022,"15,875.00",SUPPORTIVE SRC LTD.
Children and Young Peoples Services,Head of Education and Skills,Transport,230007,Contract Hire,02/12/2022,4074886-NOVEMBER02-5438,"1,980.00",A & P TAXIS.
Children and Young Peoples Services,Head of Education and Skills,Transport,230006,Contract Hire,02/12/2022,4074886-NOVEMBER03-F235,"3,550.00",A & P TAXIS.
Adult and Health Services,Head of Adults,Supplies and Services,342053,Computers and Communications,02/12/2022,4074887-1463712,"3,440.96",ACCESS UK LTD.
Regeneration Economy and Growth,Corporate Property and Land,Supplies and Services,304221,Equipment and Materials,02/12/2022,4074892-176183,"4,417.00",ALBANY OFFICE EQUIPMENT (WHOLESALE) LTD.
Neighbourhoods and Climate Change,Environmental Services,Supplies and Services,304221,Equipment and Materials,02/12/2022,4074892-176470,"1,595.00",ALBANY OFFICE EQUIPMENT (WHOLESALE) LTD.
Regeneration Economy and Growth,Culture Sport and Tourism,Construction work A908,908105,Construction work,02/12/2022,4074893-10598,"48,509.90",ALLIANCE LEISURE SERVICES LTD.
Regeneration Economy and Growth,Culture Sport and Tourism,Construction work A908,908105,Construction work,02/12/2022,4074893-10599,"45,857.00",ALLIANCE LEISURE SERVICES LTD.
Regeneration Economy and Growth,Transport and Contracted Services,Third Party Payments,430106,Rendered by Private Contractors,02/12/2022,4074900-120124,"46,427.06",ARRIVA NORTHUMBRIA LTD.
Children and Young Peoples Services,Head of Education and Skills,Transport,230006,Contract Hire,02/12/2022,4074903-132,"2,982.00",AUCKLAND TRAVEL.
Children and Young Peoples Services,Head of Education and Skills,Transport,230008,Contract Hire,02/12/2022,4074903-133,"4,124.56",AUCKLAND TRAVEL.
Children and Young Peoples Services,Head of Education and Skills,Transport,230008,Contract Hire,02/12/2022,4074903-134,"3,628.90",AUCKLAND TRAVEL.
Children and Young Peoples Services,Head of Education and Skills,Transport,230008,Contract Hire,02/12/2022,4074903-135,"3,146.00",AUCKLAND TRAVEL.
Children and Young Peoples Services,Head of Education and Skills,Transport,230008,Contract Hire,02/12/2022,4074903-136,"3,058.66",AUCKLAND TRAVEL.
Children and Young Peoples Services,Head of Education and Skills,Transport,230008,Contract Hire,02/12/2022,4074903-137,"2,904.00",AUCKLAND TRAVEL.
Children and Young Peoples Services,Head of Education and Skills,Transport,230008,Contract Hire,02/12/2022,4074903-138,"3,388.00",AUCKLAND TRAVEL.
Children and Young Peoples Services,Head of Education and Skills,Transport,230006,Contract Hire,02/12/2022,4074903-139,"1,716.00",AUCKLAND TRAVEL.
Children and Young Peoples Services,Head of Education and Skills,Transport,230008,Contract Hire,02/12/2022,4074903-140,"3,608.00",AUCKLAND TRAVEL.
Children and Young Peoples Services,Head of Education and Skills,Transport,230007,Contract Hire,02/12/2022,4074905-301122,"1,260.00",AVALON TAXIS.
Children and Young Peoples Services,Head of Education and Skills,Transport,230034,Contract Hire,02/12/2022,4074905-3011221,"1,562.29",AVALON TAXIS.
Children and Young Peoples Services,Head of Education and Skills,Transport,230007,Contract Hire,02/12/2022,4074905-3011222,"4,144.87",AVALON TAXIS.
Neighbourhoods and Climate Change,Highways,Third Party Payments,430100,Rendered by Private Contractors,02/12/2022,4074906-CSUKOU/INV/133001,"3,116.10",BALFOUR BEATTY LIVING PLACES LTD.*
Regeneration Economy and Growth,Corporate Property and Land,Third Party Payments,430100,Rendered by Private Contractors,02/12/2022,4074908-105748,"4,681.12",BAYDALE CONTROL SYSTEMS LTD.
Regeneration Economy and Growth,Corporate Property and Land,Third Party Payments,430100,Rendered by Private Contractors,02/12/2022,4074908-105749,"4,826.16",BAYDALE CONTROL SYSTEMS LTD.
Children and Young Peoples Services,Head of Education and Skills,Transport,230008,Contract Hire,02/12/2022,4074909-1019,"2,682.02",BEELINE MINI BUSES.
Children and Young Peoples Services,Head of Education and Skills,Transport,230008,Contract Hire,02/12/2022,4074909-1020,"2,680.70",BEELINE MINI BUSES.
Children and Young Peoples Services,Head of Education and Skills,Transport,230008,Contract Hire,02/12/2022,4074909-1021,"1,678.16",BEELINE MINI BUSES.
Children and Young Peoples Services,Head of Education and Skills,Transport,230034,Contract Hire,02/12/2022,4074911-INVOICE1,"2,340.00",BENNETTS TAXIS.
Children and Young Peoples Services,Head of Education and Skills,Transport,230006,Contract Hire,02/12/2022,4074911-INVOICE3,900.00,BENNETTS TAXIS.
Children and Young Peoples Services,Head of Education and Skills,Transport,230034,Contract Hire,02/12/2022,4074912-1122,"2,275.90",BENS TAXIS.
Children and Young Peoples Services,Head of Education and Skills,Transport,230007,Contract Hire,02/12/2022,4074912-SH-PITT1122,"1,327.92",BENS TAXIS.
Children and Young Peoples Services,Head of Education and Skills,Transport,230035,Contract Hire,02/12/2022,4074914-18,"2,323.42",BL TAXIS.
Neighbourhoods and Climate Change,Highways,Supplies and Services,338066,Services,02/12/2022,4074915-SIN038434,"80,932.67",BLOOM PROCUREMENT SERVICES LTD (FORMERLY NEPRO LTD).
Children and Young Peoples Services,Head of Education and Skills,Transport,230008,Contract Hire,02/12/2022,4074917-BZ00423,"2,388.54",BREZ`S TAXIS.
Children and Young Peoples Services,Head of Education and Skills,Transport,230008,Contract Hire,02/12/2022,4074917-BZ00424,"1,337.38",BREZ`S TAXIS.
Adult and Health Services,Head of Adults,Transport,230005,Contract Hire,02/12/2022,4074917-BZ00426,945.00,BREZ`S TAXIS.
Adult and Health Services,Head of Adults,Transport,230005,Contract Hire,02/12/2022,4074917-BZOO419,748.00,BREZ`S TAXIS.
Children and Young Peoples Services,Head of Early Help Inclusion & Vulnerable Children.,Employees,080025,Agency Staff,02/12/2022,4074919-21121177,"2,966.16",BROOK STREET UK LTD T/A BS SOCIAL CARE.
Children and Young Peoples Services,Head of Early Help Inclusion & Vulnerable Children.,Employees,080025,Agency Staff,02/12/2022,4074919-21121178,"2,966.16",BROOK STREET UK LTD T/A BS SOCIAL CARE.
Children and Young Peoples Services,Head of Childrens Social Care,Employees,080025,Agency Staff,02/12/2022,4074919-21121179,"2,966.16",BROOK STREET UK LTD T/A BS SOCIAL CARE.
Children and Young Peoples Services,Head of Early Help Inclusion & Vulnerable Children.,Employees,080025,Agency Staff,02/12/2022,4074919-21121180,"2,966.16",BROOK STREET UK LTD T/A BS SOCIAL CARE.
Children and Young Peoples Services,Head of Early Help Inclusion & Vulnerable Children.,Employees,080025,Agency Staff,02/12/2022,4074919-21121181,"2,966.16",BROOK STREET UK LTD T/A BS SOCIAL CARE.
Regeneration Economy and Growth,Transport and Contracted Services,Construction work A908,908105,Construction work,02/12/2022,4074921-29288,"3,211.84",BUS SHELTERS LTD.
Children and Young Peoples Services,Head of Education and Skills,Transport,230007,Contract Hire,02/12/2022,4074923-209903,"1,600.00",C & R TAXIS.
Children and Young Peoples Services,Head of Education and Skills,Transport,230008,Contract Hire,02/12/2022,4074923-S01503,"2,191.64",C & R TAXIS.
Adult and Health Services,Head of Adults,Supplies and Services,338366,Services,02/12/2022,4074924-87884,"1,655.02",CARE ABILITY HEALTHCARE LTD.
Adult and Health Services,Head of Adults,Supplies and Services,338366,Services,02/12/2022,4074924-87885,"1,658.02",CARE ABILITY HEALTHCARE LTD.
Adult and Health Services,Head of Adults,Supplies and Services,338366,Services,02/12/2022,4074924-87886,"2,274.10",CARE ABILITY HEALTHCARE LTD.
Adult and Health Services,Head of Adults,Supplies and Services,338366,Services,02/12/2022,4074924-87887,"1,244.99",CARE ABILITY HEALTHCARE LTD.
Adult and Health Services,Head of Adults,Supplies and Services,338366,Services,02/12/2022,4074924-88050,"1,644.41",CARE ABILITY HEALTHCARE LTD.
Adult and Health Services,Head of Adults,Supplies and Services,338366,Services,02/12/2022,4074924-88051,"1,362.17",CARE ABILITY HEALTHCARE LTD.
Children and Young Peoples Services,Head of Education and Skills,Transport,230008,Contract Hire,02/12/2022,4074928-080,"2,373.36",CHANNER`S CABS.
Children and Young Peoples Services,Head of Education and Skills,Transport,230034,Contract Hire,02/12/2022,4074930-1890,"2,528.00",CHEVRON TAXIS LTD.
Resources BK0010,Digital Services,Supplies and Services,342051,Computers and Communications,02/12/2022,4074933-C/PE256736,"1,485.00",CIVICA UK LTD.
Adult and Health Services,Head of Adults,Premises,150005,Apportioned Exps of Operational Blds,02/12/2022,4074937-JOB001/20840,725.00,COLIN JOBLING T/A RAINBOW INTERNATIONAL.
Children and Young Peoples Services,Head of Education and Skills,Transport,230008,Contract Hire,02/12/2022,4074941-12,"4,275.00",CONNORS MINI BUSES.*
Children and Young Peoples Services,Head of Education and Skills,Transport,230008,Contract Hire,02/12/2022,4074941-13,"2,088.24",CONNORS MINI BUSES.*
Children and Young Peoples Services,Head of Education and Skills,Transport,230008,Contract Hire,02/12/2022,4074941-14,"2,486.00",CONNORS MINI BUSES.*
Children and Young Peoples Services,Head of Education and Skills,Transport,230008,Contract Hire,02/12/2022,4074941-15,"3,300.00",CONNORS MINI BUSES.*
Adult and Health Services,Public Health CC0450,Third Party Payments,460802,Contract Payments,02/12/2022,4074944-3910020853,"14,814.00",COUNTY DURHAM & DARLINGTON NHS FOUNDATION TRUST (CDDFT).
Adult and Health Services,Public Health CC0450,Third Party Payments,460802,Contract Payments,02/12/2022,4074944-3910020872,"5,634.00",COUNTY DURHAM & DARLINGTON NHS FOUNDATION TRUST (CDDFT).
Children and Young Peoples Services,Head of Education and Skills,Transport,230008,Contract Hire,02/12/2022,4074947-1793,"1,989.46",DA TAXIS.
Children and Young Peoples Services,Head of Education and Skills,Transport,230008,Contract Hire,02/12/2022,4074947-1794,"2,167.88",DA TAXIS.
Children and Young Peoples Services,Head of Education and Skills,Transport,230008,Contract Hire,02/12/2022,4074947-1795,"2,581.04",DA TAXIS.
Children and Young Peoples Services,Head of Education and Skills,Transport,230008,Contract Hire,02/12/2022,4074947-1796,"1,862.16",DA TAXIS.
Children and Young Peoples Services,Head of Education and Skills,Transport,230008,Contract Hire,02/12/2022,4074947-1797,"3,520.00",DA TAXIS.
Children and Young Peoples Services,Head of Education and Skills,Transport,230008,Contract Hire,02/12/2022,4074948-559,"2,247.84",DA TRAVEL.
Children and Young Peoples Services,Head of Education and Skills,Transport,230008,Contract Hire,02/12/2022,4074948-560,"1,679.70",DA TRAVEL.
Children and Young Peoples Services,Head of Education and Skills,Transport,230008,Contract Hire,02/12/2022,4074948-562,"2,520.00",DA TRAVEL.
Children and Young Peoples Services,Head of Education and Skills,Transport,230006,Contract Hire,02/12/2022,4074949-BACNOV2201,"2,228.72",DALELINK PRIVATE HIRE.
Children and Young Peoples Services,Head of Education and Skills,Transport,230009,Contract Hire,02/12/2022,4074949-SGPLPSNOV2201,"1,260.00",DALELINK PRIVATE HIRE.
Children and Young Peoples Services,Head of Education and Skills,Transport,230008,Contract Hire,02/12/2022,4074950-3767,"2,357.08",DAVES MINIBUSES.
Children and Young Peoples Services,Head of Education and Skills,Transport,230008,Contract Hire,02/12/2022,4074950-3768,"2,089.12",DAVES MINIBUSES.
Children and Young Peoples Services,Head of Education and Skills,Transport,230008,Contract Hire,02/12/2022,4074950-3769,"2,539.46",DAVES MINIBUSES.
Children and Young Peoples Services,Head of Education and Skills,Transport,230008,Contract Hire,02/12/2022,4074950-3770,"2,398.00",DAVES MINIBUSES.
Children and Young Peoples Services,Head of Education and Skills,Transport,230008,Contract Hire,02/12/2022,4074950-3771,"2,299.44",DAVES MINIBUSES.
Children and Young Peoples Services,Head of Education and Skills,Transport,230008,Contract Hire,02/12/2022,4074954-1122-001-A,"1,013.94",DCM TAXIS.
Children and Young Peoples Services,Head of Education and Skills,Transport,230008,Contract Hire,02/12/2022,4074954-1122-001-B,"1,503.58",DCM TAXIS.
Children and Young Peoples Services,Head of Education and Skills,Transport,230016,Contract Hire,02/12/2022,4074959-1423,"2,925.60",EAST DURHAM TAXIS.
Children and Young Peoples Services,Head of Education and Skills,Transport,230016,Contract Hire,02/12/2022,4074959-1424,"1,736.24",EAST DURHAM TAXIS.
Children and Young Peoples Services,Head of Education and Skills,Transport,230008,Contract Hire,02/12/2022,4074959-1425,"3,458.84",EAST DURHAM TAXIS.
Children and Young Peoples Services,Head of Education and Skills,Transport,230008,Contract Hire,02/12/2022,4074959-1426,"3,660.36",EAST DURHAM TAXIS.
Children and Young Peoples Services,Head of Education and Skills,Transport,230008,Contract Hire,02/12/2022,4074959-1427,"3,124.00",EAST DURHAM TAXIS.
Children and Young Peoples Services,Head of Education and Skills,Transport,230008,Contract Hire,02/12/2022,4074959-1428,"3,707.22",EAST DURHAM TAXIS.
Children and Young Peoples Services,Head of Education and Skills,Transport,230016,Contract Hire,02/12/2022,4074959-1429,"5,830.00",EAST DURHAM TAXIS.
Children and Young Peoples Services,Head of Education and Skills,Transport,230008,Contract Hire,02/12/2022,4074959-1430,"4,411.00",EAST DURHAM TAXIS.
Adult and Health Services,Head of Adults,Transport,230005,Contract Hire,02/12/2022,4074959-1431,"2,609.20",EAST DURHAM TAXIS.
Children and Young Peoples Services,Head of Education and Skills,Transport,230008,Contract Hire,02/12/2022,4074959-1432,"4,578.60",EAST DURHAM TAXIS.
Children and Young Peoples Services,Head of Education and Skills,Transport,230009,Contract Hire,02/12/2022,4074959-1433,"3,144.02",EAST DURHAM TAXIS.
Children and Young Peoples Services,Head of Education and Skills,Transport,230008,Contract Hire,02/12/2022,4074959-1434,"3,234.00",EAST DURHAM TAXIS.
Children and Young Peoples Services,Head of Education and Skills,Transport,230006,Contract Hire,02/12/2022,4074959-1435,"5,080.68",EAST DURHAM TAXIS.
Children and Young Peoples Services,Head of Education and Skills,Transport,230006,Contract Hire,02/12/2022,4074959-1436,"4,498.00",EAST DURHAM TAXIS.
Children and Young Peoples Services,Head of Education and Skills,Transport,230008,Contract Hire,02/12/2022,4074959-1437,"2,768.70",EAST DURHAM TAXIS.
Adult and Health Services,Head of Adults,Transport,230005,Contract Hire,02/12/2022,4074959-1438,"1,390.84",EAST DURHAM TAXIS.
Children and Young Peoples Services,Head of Education and Skills,Transport,230008,Contract Hire,02/12/2022,4074959-1439,"4,312.00",EAST DURHAM TAXIS.
Children and Young Peoples Services,Head of Education and Skills,Transport,230008,Contract Hire,02/12/2022,4074959-1440,"5,830.00",EAST DURHAM TAXIS.
Children and Young Peoples Services,Head of Education and Skills,Transport,230008,Contract Hire,02/12/2022,4074959-1441,"4,357.10",EAST DURHAM TAXIS.
Children and Young Peoples Services,Head of Education and Skills,Transport,230008,Contract Hire,02/12/2022,4074959-1442,"3,996.52",EAST DURHAM TAXIS.
Children and Young Peoples Services,Head of Education and Skills,Transport,230008,Contract Hire,02/12/2022,4074959-1444,"5,500.00",EAST DURHAM TAXIS.
Children and Young Peoples Services,Head of Education and Skills,Transport,230008,Contract Hire,02/12/2022,4074959-1445,"1,665.00",EAST DURHAM TAXIS.
Children and Young Peoples Services,Head of Education and Skills,Transport,230008,Contract Hire,02/12/2022,4074959-1446,"1,232.00",EAST DURHAM TAXIS.
Regeneration Economy and Growth,Corporate Property and Land,Supplies and Services,304221,Equipment and Materials,02/12/2022,4074960-059-309899,"1,303.24",EDMUNDSON ELECTRICAL LTD.
Regeneration Economy and Growth,Corporate Property and Land,Supplies and Services,304221,Equipment and Materials,02/12/2022,4074960-059-309902,879.08,EDMUNDSON ELECTRICAL LTD.
Regeneration Economy and Growth,Corporate Property and Land,Third Party Payments,430100,Rendered by Private Contractors,02/12/2022,4074968-11668-8287,"5,362.50",EXPERVENT LTD T/A EXPERVENT AIR MOVEMENT SOLUTIONS.
Children and Young Peoples Services,Head of Education and Skills,Transport,230008,Contract Hire,02/12/2022,4074970-NOV22-E003,"3,050.30",FAIR FARE TRAVEL (TAXIS).
Children and Young Peoples Services,Head of Education and Skills,Transport,230007,Contract Hire,02/12/2022,4074979-24195,"5,815.74",GARNETTS LTD (COACHES).
Children and Young Peoples Services,Head of Education and Skills,Transport,230007,Contract Hire,02/12/2022,4074979-24197-3007,"3,472.48",GARNETTS LTD (COACHES).
Children and Young Peoples Services,Head of Education and Skills,Transport,230007,Contract Hire,02/12/2022,4074979-24197-3315,"3,261.28",GARNETTS LTD (COACHES).
Children and Young Peoples Services,Head of Education and Skills,Transport,230007,Contract Hire,02/12/2022,4074979-24197-3435,"4,411.00",GARNETTS LTD (COACHES).
Children and Young Peoples Services,Head of Education and Skills,Transport,230003,Contract Hire,02/12/2022,4074979-24199-3020,"3,580.94",GARNETTS LTD (COACHES).
Children and Young Peoples Services,Head of Education and Skills,Transport,230003,Contract Hire,02/12/2022,4074979-24199-3024,"2,959.22",GARNETTS LTD (COACHES).
Children and Young Peoples Services,Head of Education and Skills,Transport,230003,Contract Hire,02/12/2022,4074979-24199-3027,"3,158.10",GARNETTS LTD (COACHES).
Children and Young Peoples Services,Head of Education and Skills,Transport,230003,Contract Hire,02/12/2022,4074979-24199-3028,"3,456.42",GARNETTS LTD (COACHES).
Children and Young Peoples Services,Head of Education and Skills,Transport,230007,Contract Hire,02/12/2022,4074979-24199-3029,"3,556.08",GARNETTS LTD (COACHES).
Children and Young Peoples Services,Head of Education and Skills,Transport,230007,Contract Hire,02/12/2022,4074979-24199-3199,"3,381.84",GARNETTS LTD (COACHES).
Children and Young Peoples Services,Head of Education and Skills,Transport,230003,Contract Hire,02/12/2022,4074979-24201-3301,"3,339.00",GARNETTS LTD (COACHES).
Children and Young Peoples Services,Head of Education and Skills,Transport,230003,Contract Hire,02/12/2022,4074979-24201-3302,"3,759.00",GARNETTS LTD (COACHES).
Children and Young Peoples Services,Head of Education and Skills,Transport,230003,Contract Hire,02/12/2022,4074979-24201-3303,"3,759.00",GARNETTS LTD (COACHES).
Children and Young Peoples Services,Head of Education and Skills,Transport,230003,Contract Hire,02/12/2022,4074979-24202-3003,"5,019.00",GARNETTS LTD (COACHES).
Children and Young Peoples Services,Head of Education and Skills,Transport,230003,Contract Hire,02/12/2022,4074979-24202-3004,"4,842.39",GARNETTS LTD (COACHES).
Children and Young Peoples Services,Head of Education and Skills,Transport,230003,Contract Hire,02/12/2022,4074979-24202-3005,"7,073.64",GARNETTS LTD (COACHES).
Children and Young Peoples Services,Head of Education and Skills,Transport,230003,Contract Hire,02/12/2022,4074979-24202-3008,"4,011.42",GARNETTS LTD (COACHES).
Children and Young Peoples Services,Head of Education and Skills,Transport,230003,Contract Hire,02/12/2022,4074979-24202-3203,"4,721.64",GARNETTS LTD (COACHES).
Children and Young Peoples Services,Head of Education and Skills,Transport,230003,Contract Hire,02/12/2022,4074979-24202-3223,"5,649.00",GARNETTS LTD (COACHES).
Children and Young Peoples Services,Head of Education and Skills,Transport,230003,Contract Hire,02/12/2022,4074979-24202-3262,"4,438.77",GARNETTS LTD (COACHES).
Children and Young Peoples Services,Head of Education and Skills,Transport,230003,Contract Hire,02/12/2022,4074979-24202-3333,"3,987.90",GARNETTS LTD (COACHES).
Children and Young Peoples Services,Head of Education and Skills,Transport,230008,Contract Hire,02/12/2022,4074979-24203,"3,879.26",GARNETTS LTD (COACHES).
Children and Young Peoples Services,Head of Education and Skills,Transport,230007,Contract Hire,02/12/2022,4074979-24204,"3,705.24",GARNETTS LTD (COACHES).
Children and Young Peoples Services,Head of Education and Skills,Transport,230007,Contract Hire,02/12/2022,4074979-24237,"6,191.90",GARNETTS LTD (COACHES).
Children and Young Peoples Services,Head of Education and Skills,Transport,230034,Contract Hire,02/12/2022,4074980-SM014,"1,726.56",GARY JACKSON PRIVATE HIRE.
Neighbourhoods and Climate Change,Environmental Services,Stock A926,926004,Stock,02/12/2022,4074981-IN260343,601.68,GB LUBRICANTS LTD.
Children and Young Peoples Services,Head of Education and Skills,Transport,230008,Contract Hire,02/12/2022,4074983-032,"4,069.56",GMC TAXIS NORTH EAST.
Children and Young Peoples Services,Head of Education and Skills,Transport,230003,Contract Hire,02/12/2022,4074984-80409,"5,607.58",GO GATESHEAD LTD.
Children and Young Peoples Services,Head of Education and Skills,Transport,230007,Contract Hire,02/12/2022,4074984-80410,"10,042.12",GO GATESHEAD LTD.
Regeneration Economy and Growth,Corporate Property and Land,Supplies and Services,304221,Equipment and Materials,02/12/2022,4074991-4748815,584.68,HEADLAM (FLOORCOVERING DISTRIBUTORS) LTD.
Children and Young Peoples Services,Head of Education and Skills,Transport,230008,Contract Hire,02/12/2022,4075003-1114,"2,321.00",I & R EXECUTIVE TRAVEL.
Children and Young Peoples Services,Head of Education and Skills,Transport,230008,Contract Hire,02/12/2022,4075003-1115,"3,104.84",I & R EXECUTIVE TRAVEL.
Adult and Health Services,Head of Adults,Transport,230005,Contract Hire,02/12/2022,4075003-1116,"2,195.60",I & R EXECUTIVE TRAVEL.
Resources BK0010,Digital Services,Supplies and Services,342033,Computers and Communications,02/12/2022,4075006-2100425024,"1,593.28",INSIGHT DIRECT (UK) LTD.
Children and Young Peoples Services,Head of Early Help Inclusion & Vulnerable Children.,Premises,108099,Service Repairs and Maintenance,02/12/2022,4075007-90032942,616.77,INTEGRATED UTILITY SERVICES LTD.*
Children and Young Peoples Services,Head of Education and Skills,Transport,230007,Contract Hire,02/12/2022,4075011-6515,"1,320.00",J YOUNG T/A VIP TAXIS.
Children and Young Peoples Services,Head of Education and Skills,Transport,230007,Contract Hire,02/12/2022,4075011-6516-22,"1,144.00",J YOUNG T/A VIP TAXIS.
Children and Young Peoples Services,Head of Education and Skills,Transport,230007,Contract Hire,02/12/2022,4075011-6519-22,"1,712.70",J YOUNG T/A VIP TAXIS.
Regeneration Economy and Growth,Transport and Contracted Services,Construction work A908,908105,Construction work,02/12/2022,4075012-27173,"1,831.62",JACK COUPE & SONS LTD T/A COUPE LINE.
Children and Young Peoples Services,Head of Education and Skills,Transport,230008,Contract Hire,02/12/2022,4075013-0926,"2,793.78",JACKSON`S TAXI.
Adult and Health Services,Head of Adults,Transport,230005,Contract Hire,02/12/2022,4075013-0929,"1,213.56",JACKSON`S TAXI.
Adult and Health Services,Head of Adults,Transport,230005,Contract Hire,02/12/2022,4075013-0930,806.00,JACKSON`S TAXI.
Children and Young Peoples Services,Head of Education and Skills,Transport,230034,Contract Hire,02/12/2022,4075013-0931,"2,567.84",JACKSON`S TAXI.
Children and Young Peoples Services,Head of Education and Skills,Transport,230008,Contract Hire,02/12/2022,4075013-0932,"2,993.98",JACKSON`S TAXI.
Adult and Health Services,Head of Adults,Transport,230005,Contract Hire,02/12/2022,4075013-0933,"1,864.52",JACKSON`S TAXI.
Regeneration Economy and Growth,Corporate Property and Land,Third Party Payments,430100,Rendered by Private Contractors,02/12/2022,4075014-52007,976.00,JBL SERVICES LTD.
Neighbourhoods and Climate Change,Environmental Services,Premises,106082,Centrally Controlled Rep and Maint,02/12/2022,4075015-27183,685.05,JC MAINTENANCE SERVICES LTD.
Children and Young Peoples Services,Head of Education and Skills,Transport,230034,Contract Hire,02/12/2022,4075016-2489,"2,230.20",JDS PRIVATE HIRE DURHAM.
Children and Young Peoples Services,Head of Education and Skills,Transport,230007,Contract Hire,02/12/2022,4075016-2491,"1,321.32",JDS PRIVATE HIRE DURHAM.
Children and Young Peoples Services,Head of Education and Skills,Transport,230008,Contract Hire,02/12/2022,4075016-2492,"4,400.00",JDS PRIVATE HIRE DURHAM.
Children and Young Peoples Services,Head of Education and Skills,Transport,230008,Contract Hire,02/12/2022,4075016-2493,"2,862.42",JDS PRIVATE HIRE DURHAM.
Children and Young Peoples Services,Head of Education and Skills,Transport,230008,Contract Hire,02/12/2022,4075016-2495,"3,359.58",JDS PRIVATE HIRE DURHAM.
Children and Young Peoples Services,Head of Education and Skills,Transport,230008,Contract Hire,02/12/2022,4075016-2496,"2,907.52",JDS PRIVATE HIRE DURHAM.
Children and Young Peoples Services,Head of Education and Skills,Transport,230008,Contract Hire,02/12/2022,4075016-2497,"2,773.10",JDS PRIVATE HIRE DURHAM.
Children and Young Peoples Services,Head of Education and Skills,Transport,230008,Contract Hire,02/12/2022,4075016-2498,"2,628.12",JDS PRIVATE HIRE DURHAM.
Children and Young Peoples Services,Head of Education and Skills,Transport,230008,Contract Hire,02/12/2022,4075016-2499,"2,487.10",JDS PRIVATE HIRE DURHAM.
Children and Young Peoples Services,Head of Education and Skills,Transport,230012,Contract Hire,02/12/2022,4075016-2500,"2,299.44",JDS PRIVATE HIRE DURHAM.
Children and Young Peoples Services,Head of Education and Skills,Transport,230008,Contract Hire,02/12/2022,4075016-2501,"2,523.80",JDS PRIVATE HIRE DURHAM.
Children and Young Peoples Services,Head of Education and Skills,Transport,230012,Contract Hire,02/12/2022,4075016-2502,"2,627.90",JDS PRIVATE HIRE DURHAM.
Children and Young Peoples Services,Head of Education and Skills,Transport,230006,Contract Hire,02/12/2022,4075016-2503,"1,691.14",JDS PRIVATE HIRE DURHAM.
Children and Young Peoples Services,Head of Education and Skills,Transport,230034,Contract Hire,02/12/2022,4075016-30/11/22,"2,970.00",JDS PRIVATE HIRE DURHAM.
Children and Young Peoples Services,Head of Education and Skills,Transport,230007,Contract Hire,02/12/2022,4075018-36752,"3,345.92",JIM HUGHES COACHES LTD.
Children and Young Peoples Services,Head of Education and Skills,Transport,230003,Contract Hire,02/12/2022,4075018-36753,"4,051.20",JIM HUGHES COACHES LTD.
Children and Young Peoples Services,Head of Education and Skills,Transport,230007,Contract Hire,02/12/2022,4075018-36757,"9,440.00",JIM HUGHES COACHES LTD.
Children and Young Peoples Services,Head of Education and Skills,Transport,230003,Contract Hire,02/12/2022,4075018-36758,"3,120.00",JIM HUGHES COACHES LTD.
Children and Young Peoples Services,Head of Education and Skills,Transport,230003,Contract Hire,02/12/2022,4075018-36759,"5,600.00",JIM HUGHES COACHES LTD.
Children and Young Peoples Services,Head of Education and Skills,Transport,230003,Contract Hire,02/12/2022,4075018-36760,"5,925.00",JIM HUGHES COACHES LTD.
Children and Young Peoples Services,Head of Education and Skills,Transport,230007,Contract Hire,02/12/2022,4075018-36761,"6,320.00",JIM HUGHES COACHES LTD.
Children and Young Peoples Services,Head of Education and Skills,Transport,230003,Contract Hire,02/12/2022,4075018-36762,"6,000.00",JIM HUGHES COACHES LTD.
Children and Young Peoples Services,Head of Education and Skills,Transport,230007,Contract Hire,02/12/2022,4075018-36763,"5,925.00",JIM HUGHES COACHES LTD.
Children and Young Peoples Services,Head of Education and Skills,Transport,230003,Contract Hire,02/12/2022,4075018-36766,"6,800.00",JIM HUGHES COACHES LTD.
Neighbourhoods and Climate Change,Highways,Supplies and Services,304358,Equipment and Materials,02/12/2022,4075022-32240,"1,146.30",JOHN R BUTTERFIELD LTD.
Neighbourhoods and Climate Change,Highways,Supplies and Services,304358,Equipment and Materials,02/12/2022,4075022-32252,705.00,JOHN R BUTTERFIELD LTD.
Neighbourhoods and Climate Change,Highways,Supplies and Services,304358,Equipment and Materials,02/12/2022,4075022-32253,922.05,JOHN R BUTTERFIELD LTD.
Neighbourhoods and Climate Change,Highways,Supplies and Services,304358,Equipment and Materials,02/12/2022,4075022-32254,"1,269.50",JOHN R BUTTERFIELD LTD.
Neighbourhoods and Climate Change,Highways,Supplies and Services,304358,Equipment and Materials,02/12/2022,4075022-32257,"1,269.50",JOHN R BUTTERFIELD LTD.
Neighbourhoods and Climate Change,Highways,Supplies and Services,304358,Equipment and Materials,02/12/2022,4075022-32260,674.25,JOHN R BUTTERFIELD LTD.
Neighbourhoods and Climate Change,Highways,Supplies and Services,304358,Equipment and Materials,02/12/2022,4075022-32263,"1,416.75",JOHN R BUTTERFIELD LTD.
Neighbourhoods and Climate Change,Highways,Supplies and Services,304358,Equipment and Materials,02/12/2022,4075022-32266,712.75,JOHN R BUTTERFIELD LTD.
Neighbourhoods and Climate Change,Highways,Supplies and Services,304358,Equipment and Materials,02/12/2022,4075022-32268,"1,269.50",JOHN R BUTTERFIELD LTD.
Neighbourhoods and Climate Change,Highways,Supplies and Services,304358,Equipment and Materials,02/12/2022,4075022-32270,"1,416.75",JOHN R BUTTERFIELD LTD.
Regeneration Economy and Growth,Corporate Property and Land,Supplies and Services,304221,Equipment and Materials,02/12/2022,4075024-0213/00788019,"9,487.28",JT DOVE LTD.
Children and Young Peoples Services,Head of Education and Skills,Transport,230008,Contract Hire,02/12/2022,4075026-1336,"1,894.86",K & R TAXIS (STANLEY).
Children and Young Peoples Services,Head of Education and Skills,Transport,230008,Contract Hire,02/12/2022,4075026-1337,632.00,K & R TAXIS (STANLEY).
Children and Young Peoples Services,Head of Education and Skills,Transport,230008,Contract Hire,02/12/2022,4075026-1338,594.00,K & R TAXIS (STANLEY).
Children and Young Peoples Services,Head of Education and Skills,Transport,230008,Contract Hire,02/12/2022,4075026-1339,"4,271.30",K & R TAXIS (STANLEY).
Adult and Health Services,Head of Adults,Transport,230005,Contract Hire,02/12/2022,4075026-1340,"2,072.00",K & R TAXIS (STANLEY).
Children and Young Peoples Services,Head of Education and Skills,Transport,230016,Contract Hire,02/12/2022,4075026-1341,"4,356.00",K & R TAXIS (STANLEY).
Children and Young Peoples Services,Head of Education and Skills,Transport,230034,Contract Hire,02/12/2022,4075026-1342,"4,656.30",K & R TAXIS (STANLEY).
Children and Young Peoples Services,Head of Education and Skills,Transport,230008,Contract Hire,02/12/2022,4075026-1343,"3,348.04",K & R TAXIS (STANLEY).
Children and Young Peoples Services,Head of Education and Skills,Transport,230012,Contract Hire,02/12/2022,4075026-1344,"4,082.54",K & R TAXIS (STANLEY).
Children and Young Peoples Services,Head of Education and Skills,Transport,230008,Contract Hire,02/12/2022,4075026-1345,"4,460.72",K & R TAXIS (STANLEY).
Children and Young Peoples Services,Head of Education and Skills,Transport,230008,Contract Hire,02/12/2022,4075026-1346,"3,289.62",K & R TAXIS (STANLEY).
Children and Young Peoples Services,Head of Education and Skills,Transport,230008,Contract Hire,02/12/2022,4075026-1347,"5,039.90",K & R TAXIS (STANLEY).
Children and Young Peoples Services,Head of Education and Skills,Transport,230008,Contract Hire,02/12/2022,4075026-1348,"5,274.94",K & R TAXIS (STANLEY).
Children and Young Peoples Services,Head of Education and Skills,Transport,230012,Contract Hire,02/12/2022,4075026-1349,"4,048.44",K & R TAXIS (STANLEY).
Children and Young Peoples Services,Head of Education and Skills,Transport,230008,Contract Hire,02/12/2022,4075026-1350,"4,036.30",K & R TAXIS (STANLEY).
Neighbourhoods and Climate Change,Highways,Supplies and Services,304358,Equipment and Materials,02/12/2022,4075066-NC/217/BW,"1,070.00",NEDCO CONTRACTS (NE) LTD.
Neighbourhoods and Climate Change,Environmental Services,Supplies and Services,304259,Equipment and Materials,02/12/2022,4075068-065719,"2,000.00",NEW ROW FARM NURSERIES.
Resources BK0010,Legal & Democratic Services,Supplies and Services,338108,Services,02/12/2022,4075069-3010038919,"39,894.50",NEWCASTLE UPON TYNE HOSPITALS NHS FOUNDATION TRUST.
Resources BK0010,Legal & Democratic Services,Supplies and Services,338108,Services,02/12/2022,4075069-3010038954,"32,535.00",NEWCASTLE UPON TYNE HOSPITALS NHS FOUNDATION TRUST.
Neighbourhoods and Climate Change,Environmental Services,Third Party Payments,430100,Rendered by Private Contractors,02/12/2022,4075075-1438660,"1,145.71",NORTH EAST TRUCK & VAN LTD.
Resources BK0010,HR & Employee Services,Supplies and Services,352001,Conference Expenses,02/12/2022,4075078-18477,"4,950.00",NORTHERN COUNTIES SAFETY GROUP LTD (NCGS).
Neighbourhoods and Climate Change,Highways,Construction work A908,908105,Construction work,02/12/2022,4075079-DI20395564,"1,046.53",NORTHERN POWERGRID (NORTHEAST) LTD.
Children and Young Peoples Services,Head of Early Help Inclusion & Vulnerable Children.,Third Party Payments,410037,Rendered by Other Local Authorities,02/12/2022,4075083-INV-5430,"2,353.92",NUDGE EDUCATION LTD.
Children and Young Peoples Services,Head of Early Help Inclusion & Vulnerable Children.,Third Party Payments,410037,Rendered by Other Local Authorities,02/12/2022,4075083-INV-5518,"2,513.16",NUDGE EDUCATION LTD.
Children and Young Peoples Services,Head of Early Help Inclusion & Vulnerable Children.,Third Party Payments,410037,Rendered by Other Local Authorities,02/12/2022,4075083-INV-5891,"3,332.34",NUDGE EDUCATION LTD.
Regeneration Economy and Growth,Business Durham CL0850,Supplies and Services,377015,County Durham Development,02/12/2022,4075092-69764118,907.50,PARK RETAIL LTD T/A LOVE2SHOP.
Neighbourhoods and Climate Change,Environmental Services,Transport,210057,Repair and Maintenance of Vehicles,02/12/2022,4075093-21429071,853.84,PARTSPLUS.
Neighbourhoods and Climate Change,Environmental Services,Supplies and Services,304221,Equipment and Materials,02/12/2022,4075094-321922,"1,323.05",PEART FENCING LTD.
Children and Young Peoples Services,Head of Education and Skills,Supplies and Services,312011,Newspapers books and periodicals E312,02/12/2022,4075097-1948483,"1,553.33",PETERS LTD.
Children and Young Peoples Services,Head of Education and Skills,Supplies and Services,312011,Newspapers books and periodicals E312,02/12/2022,4075097-1948652,859.20,PETERS LTD.
Children and Young Peoples Services,Head of Education and Skills,Supplies and Services,312011,Newspapers books and periodicals E312,02/12/2022,4075097-1948653,786.92,PETERS LTD.
Neighbourhoods and Climate Change,Highways,Third Party Payments,430100,Rendered by Private Contractors,02/12/2022,4075107-14357,"5,529.98",QUANTUM POWER CONNECTIONS LTD.
Neighbourhoods and Climate Change,Highways,Third Party Payments,430100,Rendered by Private Contractors,02/12/2022,4075107-14468,522.36,QUANTUM POWER CONNECTIONS LTD.
Neighbourhoods and Climate Change,Highways,Third Party Payments,430100,Rendered by Private Contractors,02/12/2022,4075107-14469,682.74,QUANTUM POWER CONNECTIONS LTD.
Neighbourhoods and Climate Change,Highways,Third Party Payments,430100,Rendered by Private Contractors,02/12/2022,4075107-14473,"1,044.72",QUANTUM POWER CONNECTIONS LTD.
Neighbourhoods and Climate Change,Highways,Third Party Payments,430100,Rendered by Private Contractors,02/12/2022,4075107-14475,"1,763.28",QUANTUM POWER CONNECTIONS LTD.
Neighbourhoods and Climate Change,Highways,Third Party Payments,430100,Rendered by Private Contractors,02/12/2022,4075107-14476,522.36,QUANTUM POWER CONNECTIONS LTD.
Neighbourhoods and Climate Change,Highways,Third Party Payments,430100,Rendered by Private Contractors,02/12/2022,4075107-14505,"1,356.64",QUANTUM POWER CONNECTIONS LTD.
Neighbourhoods and Climate Change,Highways,Third Party Payments,430100,Rendered by Private Contractors,02/12/2022,4075107-14542,533.76,QUANTUM POWER CONNECTIONS LTD.
Children and Young Peoples Services,Head of Education and Skills,Transport,230031,Contract Hire,02/12/2022,4075115-ROXDCC291,"1,680.00",ROXBYS BUS HIRE.
Neighbourhoods and Climate Change,Highways,Supplies and Services,372009,Subscriptions E372,02/12/2022,4075121-WWB1174866,"5,075.00",SGS UNITED KINGDOM LTD.
Neighbourhoods and Climate Change,Highways,Supplies and Services,372009,Subscriptions E372,02/12/2022,4075121-WWB1176755,"4,625.00",SGS UNITED KINGDOM LTD.
Children and Young Peoples Services,Head of Education and Skills,Transport,230008,Contract Hire,02/12/2022,4075132-74216,"3,021.48",SPENNYMOOR TAXIS.
Children and Young Peoples Services,Head of Education and Skills,Transport,230008,Contract Hire,02/12/2022,4075132-74219,"2,815.56",SPENNYMOOR TAXIS.
Children and Young Peoples Services,Head of Education and Skills,Transport,230008,Contract Hire,02/12/2022,4075132-AAN74221,"2,451.02",SPENNYMOOR TAXIS.
Children and Young Peoples Services,Head of Education and Skills,Transport,230008,Contract Hire,02/12/2022,4075132-AL74217,"2,100.00",SPENNYMOOR TAXIS.
Children and Young Peoples Services,Head of Education and Skills,Transport,230008,Contract Hire,02/12/2022,4075132-AL74220,"2,860.00",SPENNYMOOR TAXIS.
Children and Young Peoples Services,Head of Education and Skills,Transport,230008,Contract Hire,02/12/2022,4075132-LTDD74218,"1,338.39",SPENNYMOOR TAXIS.
Regeneration Economy and Growth,Corporate Property and Land,Third Party Payments,430100,Rendered by Private Contractors,02/12/2022,4075133-8325,"7,745.00",ST ASTIER LTD.
Regeneration Economy and Growth,Corporate Property and Land,Third Party Payments,430100,Rendered by Private Contractors,02/12/2022,4075138-18755,"3,185.00",STEADFAST SECURITY SOLUTIONS LTD.
Children and Young Peoples Services,Childrens Services Operational Support,Supplies and Services,338089,Services,02/12/2022,4075142-4100803530,900.00,SUSAN BELL (EXTERNAL TRAINER).
Regeneration Economy and Growth,Corporate Property and Land,Supplies and Services,304221,Equipment and Materials,02/12/2022,4075144-896291,663.35,T CROSSLING & CO LTD.
Regeneration Economy and Growth,Corporate Property and Land,Supplies and Services,304221,Equipment and Materials,02/12/2022,4075144-898284,851.85,T CROSSLING & CO LTD.
Children and Young Peoples Services,Head of Education and Skills,Transport,230006,Contract Hire,02/12/2022,4075155-1-A105-NOV22,"3,155.88",TONYS TAXIS (J BIRCH).
Adult and Health Services,Head of Adults,Transport,230005,Contract Hire,02/12/2022,4075155-3-EAS001,637.78,TONYS TAXIS (J BIRCH).
Children and Young Peoples Services,Head of Education and Skills,Transport,230008,Contract Hire,02/12/2022,4075155-4-E058,"3,005.20",TONYS TAXIS (J BIRCH).
Adult and Health Services,Head of Adults,Transport,230005,Contract Hire,02/12/2022,4075155-5-EAS196,"2,668.47",TONYS TAXIS (J BIRCH).
Resources BK0010,Legal & Democratic Services,Supplies and Services,338042,Services,02/12/2022,4075157-298749/INVJCT139,710.00,TRINITY CHAMBERS.
Resources BK0010,Legal & Democratic Services,Supplies and Services,338042,Services,02/12/2022,4075157-300436/INVKC122,720.00,TRINITY CHAMBERS.
Regeneration Economy and Growth,Planning & Housing,Supplies and Services,304245,Equipment and Materials,02/12/2022,4075158-3IN/10395842,"1,090.00",TUNSTALL HEALTHCARE (UK) LTD.
Neighbourhoods and Climate Change,Highways,Supplies and Services,304221,Equipment and Materials,02/12/2022,4075161-240060,"1,101.25",TYNEDALE ROADSTONE LTD.
Neighbourhoods and Climate Change,Highways,Supplies and Services,304221,Equipment and Materials,02/12/2022,4075161-240061,794.20,TYNEDALE ROADSTONE LTD.
Neighbourhoods and Climate Change,Highways,Supplies and Services,304221,Equipment and Materials,02/12/2022,4075161-240062,"2,033.35",TYNEDALE ROADSTONE LTD.
Neighbourhoods and Climate Change,Highways,Supplies and Services,304221,Equipment and Materials,02/12/2022,4075161-240063,"1,474.41",TYNEDALE ROADSTONE LTD.
Neighbourhoods and Climate Change,Highways,Supplies and Services,304221,Equipment and Materials,02/12/2022,4075161-240064,"1,601.06",TYNEDALE ROADSTONE LTD.
Regeneration Economy and Growth,Economic Development Level C,Supplies and Services,384899,Miscellaneous Expenses,02/12/2022,4075162-SD013/16,"12,993.25",UMI COMMERCIAL LTD.
Resources BK0010,Digital Services,Supplies and Services,344015,Telephones,02/12/2022,4075170-RT09001,"1,242.00",VODAFONE CORPORATE LTD.
Regeneration Economy and Growth,Corporate Property and Land,Premises,108099,Service Repairs and Maintenance,02/12/2022,4075172-52182165,"7,770.00",VWS (UK) LTD.
Regeneration Economy and Growth,Planning & Housing,Premises,106080,Centrally Controlled Rep and Maint,02/12/2022,4075176-19261,"8,476.55",WATERMAN ENVIRONMENTAL SERVICES.
Children and Young Peoples Services,Head of Education and Skills,Transport,230005,Contract Hire,02/12/2022,4075177-18377,"1,150.00",WEARDALE MOTOR SERVICES LTD.
Children and Young Peoples Services,Head of Education and Skills,Transport,230008,Contract Hire,02/12/2022,4074890-122-A,924.00,REDACTED - PAYMENT TO INDIVIDUAL
Children and Young Peoples Services,Head of Education and Skills,Transport,230008,Contract Hire,02/12/2022,4074890-122-B,924.00,REDACTED - PAYMENT TO INDIVIDUAL
Children and Young Peoples Services,Head of Education and Skills,Transport,230010,Contract Hire,02/12/2022,4074894-B045-NOV22,"4,072.65",REDACTED - PAYMENT TO INDIVIDUAL
Children and Young Peoples Services,Head of Education and Skills,Transport,230008,Contract Hire,02/12/2022,4074894-E055-NOV22,"2,281.45",REDACTED - PAYMENT TO INDIVIDUAL
Children and Young Peoples Services,Head of Education and Skills,Transport,230008,Contract Hire,02/12/2022,4074894-E202-NOV22,"3,119.82",REDACTED - PAYMENT TO INDIVIDUAL
Children and Young Peoples Services,Head of Education and Skills,Transport,230008,Contract Hire,02/12/2022,4074895-0145,"3,850.00",REDACTED - PAYMENT TO INDIVIDUAL
Children and Young Peoples Services,Head of Education and Skills,Transport,230008,Contract Hire,02/12/2022,4074918-INVOICENO3,"2,932.82",REDACTED - PAYMENT TO INDIVIDUAL
Children and Young Peoples Services,Head of Education and Skills,Transport,230031,Contract Hire,02/12/2022,4074931-47574,"1,560.00",REDACTED - PAYMENT TO INDIVIDUAL
Children and Young Peoples Services,Head of Education and Skills,Transport,230008,Contract Hire,02/12/2022,4074951-20,"3,795.88",REDACTED - PAYMENT TO INDIVIDUAL
Children and Young Peoples Services,Head of Education and Skills,Transport,230008,Contract Hire,02/12/2022,4074953-0094,"3,976.94",REDACTED - PAYMENT TO INDIVIDUAL
Children and Young Peoples Services,Head of Education and Skills,Transport,230007,Contract Hire,02/12/2022,4074989-03-4518,"1,168.42",REDACTED - PAYMENT TO INDIVIDUAL
Children and Young Peoples Services,Head of Education and Skills,Transport,230006,Contract Hire,02/12/2022,4074989-03-F253,"2,641.00",REDACTED - PAYMENT TO INDIVIDUAL
Adult and Health Services,Head of Adults,Transport,230005,Contract Hire,02/12/2022,4074989-14-CLS086,804.80,REDACTED - PAYMENT TO INDIVIDUAL
Children and Young Peoples Services,Head of Education and Skills,Transport,230006,Contract Hire,02/12/2022,4074989-14-F802,"2,169.34",REDACTED - PAYMENT TO INDIVIDUAL
Children and Young Peoples Services,Head of Education and Skills,Transport,230008,Contract Hire,02/12/2022,4075019-NOV22-M038,"3,416.56",REDACTED - PAYMENT TO INDIVIDUAL
Children and Young Peoples Services,Head of Education and Skills,Transport,230008,Contract Hire,02/12/2022,4075019-NOV22-S033,"3,764.64",REDACTED - PAYMENT TO INDIVIDUAL
Children and Young Peoples Services,Head of Education and Skills,Transport,230008,Contract Hire,02/12/2022,4075019-NOV22-W071,"3,520.00",REDACTED - PAYMENT TO INDIVIDUAL
Children and Young Peoples Services,Head of Education and Skills,Transport,230008,Contract Hire,02/12/2022,4075019-NOV22-W090,"2,964.72",REDACTED - PAYMENT TO INDIVIDUAL
Children and Young Peoples Services,Head of Education and Skills,Transport,230008,Contract Hire,02/12/2022,4075019-NOV22-W103,"4,241.16",REDACTED - PAYMENT TO INDIVIDUAL
Children and Young Peoples Services,Head of Education and Skills,Transport,230008,Contract Hire,02/12/2022,4075021-120/A005,"3,836.80",REDACTED - PAYMENT TO INDIVIDUAL
Children and Young Peoples Services,Head of Education and Skills,Transport,230008,Contract Hire,02/12/2022,4075021-121/A021,"2,346.30",REDACTED - PAYMENT TO INDIVIDUAL
Children and Young Peoples Services,Head of Education and Skills,Transport,230008,Contract Hire,02/12/2022,4075021-122/E056,"4,458.08",REDACTED - PAYMENT TO INDIVIDUAL
Children and Young Peoples Services,Head of Education and Skills,Transport,230008,Contract Hire,02/12/2022,4075021-123/M065,"4,482.50",REDACTED - PAYMENT TO INDIVIDUAL
Children and Young Peoples Services,Head of Education and Skills,Transport,230008,Contract Hire,02/12/2022,4075021-124/M080,"3,626.48",REDACTED - PAYMENT TO INDIVIDUAL
Children and Young Peoples Services,Head of Education and Skills,Transport,230008,Contract Hire,02/12/2022,4075021-125/M105,"1,918.40",REDACTED - PAYMENT TO INDIVIDUAL
Children and Young Peoples Services,Head of Education and Skills,Transport,230016,Contract Hire,02/12/2022,4075021-126/N003,"3,284.82",REDACTED - PAYMENT TO INDIVIDUAL
Children and Young Peoples Services,Head of Education and Skills,Transport,230016,Contract Hire,02/12/2022,4075021-127/M003,"3,520.00",REDACTED - PAYMENT TO INDIVIDUAL
Children and Young Peoples Services,Head of Education and Skills,Transport,230008,Contract Hire,02/12/2022,4075021-128/A038,"3,626.70",REDACTED - PAYMENT TO INDIVIDUAL
Children and Young Peoples Services,Head of Education and Skills,Transport,230009,Contract Hire,02/12/2022,4075021-129,"3,080.00",REDACTED - PAYMENT TO INDIVIDUAL
Children and Young Peoples Services,Head of Education and Skills,Transport,230034,Contract Hire,02/12/2022,4075021-130,"3,520.00",REDACTED - PAYMENT TO INDIVIDUAL
Children and Young Peoples Services,Head of Education and Skills,Transport,230008,Contract Hire,02/12/2022,4075021-131,"3,080.00",REDACTED - PAYMENT TO INDIVIDUAL
Children and Young Peoples Services,Head of Education and Skills,Transport,230008,Contract Hire,02/12/2022,4075021-132,"2,860.00",REDACTED - PAYMENT TO INDIVIDUAL
Children and Young Peoples Services,Head of Education and Skills,Transport,230008,Contract Hire,02/12/2022,4075021-133,"3,380.00",REDACTED - PAYMENT TO INDIVIDUAL
Children and Young Peoples Services,Head of Education and Skills,Transport,230007,Contract Hire,02/12/2022,4075027-011122,816.84,REDACTED - PAYMENT TO INDIVIDUAL
Children and Young Peoples Services,Head of Education and Skills,Transport,230007,Contract Hire,02/12/2022,4075027-011122/2,"1,244.88",REDACTED - PAYMENT TO INDIVIDUAL
Children and Young Peoples Services,Head of Education and Skills,Transport,230007,Contract Hire,02/12/2022,4075029-CTD0014/22,"1,890.90",REDACTED - PAYMENT TO INDIVIDUAL
Children and Young Peoples Services,Head of Education and Skills,Transport,230008,Contract Hire,02/12/2022,4075037-14-NOV22,"2,690.16",REDACTED - PAYMENT TO INDIVIDUAL
Children and Young Peoples Services,Head of Education and Skills,Transport,230007,Contract Hire,02/12/2022,4075040-6075/11,"3,960.00",REDACTED - PAYMENT TO INDIVIDUAL
Children and Young Peoples Services,Head of Education and Skills,Transport,230008,Contract Hire,02/12/2022,4075040-A011/0922-NOV22,"5,224.89",REDACTED - PAYMENT TO INDIVIDUAL
Children and Young Peoples Services,Head of Education and Skills,Transport,230006,Contract Hire,02/12/2022,4075040-F831/11,"3,500.00",REDACTED - PAYMENT TO INDIVIDUAL
Children and Young Peoples Services,Head of Education and Skills,Transport,230006,Contract Hire,02/12/2022,4075046-702-F255,"1,830.00",REDACTED - PAYMENT TO INDIVIDUAL
Children and Young Peoples Services,Head of Education and Skills,Transport,230006,Contract Hire,02/12/2022,4075047-AT303,"2,809.66",REDACTED - PAYMENT TO INDIVIDUAL
Children and Young Peoples Services,Head of Education and Skills,Transport,230008,Contract Hire,02/12/2022,4075048-CROFT1/11-22,"2,413.84",REDACTED - PAYMENT TO INDIVIDUAL
Children and Young Peoples Services,Head of Education and Skills,Transport,230008,Contract Hire,02/12/2022,4075048-DTR1/11-22,"2,820.92",REDACTED - PAYMENT TO INDIVIDUAL
Children and Young Peoples Services,Head of Education and Skills,Transport,230009,Contract Hire,02/12/2022,4075048-FRAM1/11-22,"1,660.40",REDACTED - PAYMENT TO INDIVIDUAL
Children and Young Peoples Services,Head of Education and Skills,Transport,230008,Contract Hire,02/12/2022,4075048-OAK2/11-22,"2,876.50",REDACTED - PAYMENT TO INDIVIDUAL
Children and Young Peoples Services,Head of Education and Skills,Transport,230008,Contract Hire,02/12/2022,4075049-W174/25,"3,271.96",REDACTED - PAYMENT TO INDIVIDUAL
Children and Young Peoples Services,Head of Education and Skills,Transport,230007,Contract Hire,02/12/2022,4075050-DURHAMGATEWAYNOV312022,"1,112.05",REDACTED - PAYMENT TO INDIVIDUAL
Adult and Health Services,Head of Adults,Transport,230005,Contract Hire,02/12/2022,4075050-THORNOV302022,"1,590.27",REDACTED - PAYMENT TO INDIVIDUAL
Children and Young Peoples Services,Head of Education and Skills,Transport,230035,Contract Hire,02/12/2022,4075050-WHIT311122,"1,515.58",REDACTED - PAYMENT TO INDIVIDUAL
Children and Young Peoples Services,Head of Education and Skills,Transport,230006,Contract Hire,02/12/2022,4075051-06-F894,"4,820.33",REDACTED - PAYMENT TO INDIVIDUAL
Children and Young Peoples Services,Head of Education and Skills,Transport,230034,Contract Hire,02/12/2022,4075052-5455-NOV22,"3,485.54",REDACTED - PAYMENT TO INDIVIDUAL
Children and Young Peoples Services,Head of Education and Skills,Transport,230009,Contract Hire,02/12/2022,4075052-E038-NOV22,"2,580.00",REDACTED - PAYMENT TO INDIVIDUAL
Children and Young Peoples Services,Head of Education and Skills,Transport,230006,Contract Hire,02/12/2022,4075052-F262-NOV22,"2,470.00",REDACTED - PAYMENT TO INDIVIDUAL
Children and Young Peoples Services,Head of Education and Skills,Transport,230008,Contract Hire,02/12/2022,4075052-N014-NOV22,"3,938.00",REDACTED - PAYMENT TO INDIVIDUAL
Children and Young Peoples Services,Head of Education and Skills,Transport,230008,Contract Hire,02/12/2022,4075052-S024-NOV22,"4,654.00",REDACTED - PAYMENT TO INDIVIDUAL
Children and Young Peoples Services,Head of Education and Skills,Transport,230006,Contract Hire,02/12/2022,4075053-PEC23,"1,062.00",REDACTED - PAYMENT TO INDIVIDUAL
Children and Young Peoples Services,Head of Education and Skills,Transport,230008,Contract Hire,02/12/2022,4075054-JK771128,"5,980.00",REDACTED - PAYMENT TO INDIVIDUAL
Children and Young Peoples Services,Head of Education and Skills,Transport,230006,Contract Hire,02/12/2022,4075056-DCC090,"1,287.00",REDACTED - PAYMENT TO INDIVIDUAL
Children and Young Peoples Services,Head of Education and Skills,Transport,230008,Contract Hire,02/12/2022,4075056-DCC091,"3,026.00",REDACTED - PAYMENT TO INDIVIDUAL
Children and Young Peoples Services,Head of Education and Skills,Transport,230008,Contract Hire,02/12/2022,4075057-3232-NOV22,"5,161.86",REDACTED - PAYMENT TO INDIVIDUAL
Children and Young Peoples Services,Head of Education and Skills,Transport,230008,Contract Hire,02/12/2022,4075057-3243,"2,887.72",REDACTED - PAYMENT TO INDIVIDUAL
Children and Young Peoples Services,Head of Education and Skills,Transport,230007,Contract Hire,02/12/2022,4075058-ACD1122,"1,642.52",REDACTED - PAYMENT TO INDIVIDUAL
Children and Young Peoples Services,Head of Education and Skills,Transport,230010,Contract Hire,02/12/2022,4075058-FERRY1122,"2,622.97",REDACTED - PAYMENT TO INDIVIDUAL
Children and Young Peoples Services,Head of Education and Skills,Transport,230006,Contract Hire,02/12/2022,4075059-215510,"3,928.62",REDACTED - PAYMENT TO INDIVIDUAL
Children and Young Peoples Services,Head of Education and Skills,Transport,230007,Contract Hire,02/12/2022,4075059-215511,"1,096.20",REDACTED - PAYMENT TO INDIVIDUAL
Children and Young Peoples Services,Head of Education and Skills,Transport,230008,Contract Hire,02/12/2022,4075059-215512,"3,630.00",REDACTED - PAYMENT TO INDIVIDUAL
Children and Young Peoples Services,Head of Education and Skills,Transport,230035,Contract Hire,02/12/2022,4075059-215513,"2,146.83",REDACTED - PAYMENT TO INDIVIDUAL
Children and Young Peoples Services,Head of Education and Skills,Transport,230008,Contract Hire,02/12/2022,4075127-000012,"3,694.60",REDACTED - PAYMENT TO INDIVIDUAL
Children and Young Peoples Services,Head of Education and Skills,Transport,230006,Contract Hire,02/12/2022,4075128-NOV22-F774,"2,595.91",REDACTED - PAYMENT TO INDIVIDUAL
Children and Young Peoples Services,Head of Education and Skills,Transport,230007,Contract Hire,02/12/2022,4075139-5290,"1,728.98",REDACTED - PAYMENT TO INDIVIDUAL
Adult and Health Services,Head of Adults,Transport,230005,Contract Hire,02/12/2022,4075153-DM223-NOV22,"1,360.92",REDACTED - PAYMENT TO INDIVIDUAL
Children and Young Peoples Services,Head of Education and Skills,Transport,230006,Contract Hire,02/12/2022,4075174-011201,528.00,REDACTED - PAYMENT TO INDIVIDUAL
Children and Young Peoples Services,Head of Education and Skills,Transport,230004,Contract Hire,02/12/2022,4075174-11144,608.00,REDACTED - PAYMENT TO INDIVIDUAL
Children and Young Peoples Services,Head of Education and Skills,Transport,230035,Contract Hire,02/12/2022,4075174-113493,"1,500.00",REDACTED - PAYMENT TO INDIVIDUAL
Resources BK0010,Legal & Democratic Services,Supplies and Services,338105,Services,02/12/2022,4075122-21002222906,"3,085.04",SHEFFIELD CHILDREN`S NHS FOUNDATION TRUST.
Regeneration Economy and Growth,Culture Sport and Tourism,Premises,106080,Centrally Controlled Rep and Maint,02/12/2022,4075123-1951873,"4,000.00",SHENTON GLOBAL LTD T/A SHENTON GROUP.
Neighbourhoods and Climate Change,Highways,Supplies and Services,304358,Equipment and Materials,02/12/2022,4074922-09512,540.00,BW HAULAGE LTD.
Adult and Health Services,Public Health CC0450,Third Party Payments,460803,Contract Payments,02/12/2022,4075030-SIN-018016,"14,150.00",KINGS FUND.
Regeneration Economy and Growth,Corporate Property and Land,Third Party Payments,430100,Rendered by Private Contractors,02/12/2022,4075043-53080012,"38,682.36",MITSUBISHI ELECTRIC EUROPE.
Regeneration Economy and Growth,Transport and Contracted Services,Third Party Payments,430108,Rendered by Private Contractors,02/12/2022,4075163-301688,"4,950.00",UNIVERSAL SYSTEMS SOLUTIONS (SECURITY) LTD.
Children and Young Peoples Services,Head of Education and Skills,Transport,230008,Contract Hire,05/12/2022,4075191-10/22,"5,761.00",ADVANCE TRAVEL.
Dedicated Schools Grant BG0015,DSG Schools Block,Transport,230031,Contract Hire,05/12/2022,4075192-INV-22089,600.00,AE SPORTS COACHING LTD.
Neighbourhoods and Climate Change,Environmental Services,Third Party Payments,430100,Rendered by Private Contractors,05/12/2022,4075195-126R/22/92760,"1,395.00",ALAN M RANSON FUNERAL SERVICE.
Neighbourhoods and Climate Change,Environmental Services,Third Party Payments,430100,Rendered by Private Contractors,05/12/2022,4075195-196R/22/92761,"1,760.00",ALAN M RANSON FUNERAL SERVICE.
Neighbourhoods and Climate Change,Environmental Services,Supplies and Services,304221,Equipment and Materials,05/12/2022,4075199-0000022268,"2,104.00",AMBEROL LTD.
Neighbourhoods and Climate Change,Highways,Supplies and Services,304221,Equipment and Materials,05/12/2022,4075218-101803,"1,065.00",BARHALE CONSTRUCTION SERVICES LTD (BCS).
Neighbourhoods and Climate Change,Highways,Supplies and Services,338027,Services,05/12/2022,4075219-BE4868,650.00,BARRETT ENVIRONMENTAL LTD.
Neighbourhoods and Climate Change,Highways,Supplies and Services,304221,Equipment and Materials,05/12/2022,4075224-207R02294,554.40,BIFFA WASTE SERVICES LTD.
Dedicated Schools Grant BG0015,DSG High Needs Block,Central Support and Other Recharges,615092,Support Services,05/12/2022,4075227-RES-12-2022-019,"2,859.00",BISHOP WILKINSON CATHOLIC EDUCATION TRUST.
Regeneration Economy and Growth,Planning & Housing,Supplies and Services,304245,Equipment and Materials,05/12/2022,4075231-62838,"1,080.00",BUDDI.
Adult and Health Services,Public Health CC0450,Third Party Payments,460803,Contract Payments,05/12/2022,4075235-2237,"1,750.00",C HEWISON (CONSULTANT PROJECT MANAGEMENT TRAINING).
Regeneration Economy and Growth,Corporate Property and Land,Third Party Payments,430100,Rendered by Private Contractors,05/12/2022,4075240-10348,"1,302.99",CATHEDRAL LOCK & SAFE SERVICES LTD.
Children and Young Peoples Services,Head of Early Help Inclusion & Vulnerable Children.,Premises,108001,Service Repairs and Maintenance,05/12/2022,4075246-DGN/358466,599.00,CITY ELECTRICAL FACTORS LTD.
Regeneration Economy and Growth,Corporate Property and Land,Supplies and Services,304221,Equipment and Materials,05/12/2022,4075247-2852ABR216,"1,692.99",CITY PLUMBING SUPPLIES HOLDINGS LTD.
Neighbourhoods and Climate Change,Environmental Services,Supplies and Services,304259,Equipment and Materials,05/12/2022,4075253-INVHEL23753A,"3,482.50",COLENA LTD T/A HELIGUY.
Regeneration Economy and Growth,Culture Sport and Tourism,Third Party Payments,430100,Rendered by Private Contractors,05/12/2022,4075254-INV00185,"43,557.97",COMPETITION LINE UK LTD T/A LIFESTYLE FITNESS.
Regeneration Economy and Growth,Culture Sport and Tourism,Third Party Payments,430100,Rendered by Private Contractors,05/12/2022,4075254-INV00186,"8,473.91",COMPETITION LINE UK LTD T/A LIFESTYLE FITNESS.
Regeneration Economy and Growth,Culture Sport and Tourism,Third Party Payments,430100,Rendered by Private Contractors,05/12/2022,4075254-INV00187,"30,258.81",COMPETITION LINE UK LTD T/A LIFESTYLE FITNESS.
Regeneration Economy and Growth,Culture Sport and Tourism,Third Party Payments,430100,Rendered by Private Contractors,05/12/2022,4075254-INV00188,"4,059.10",COMPETITION LINE UK LTD T/A LIFESTYLE FITNESS.
Regeneration Economy and Growth,Culture Sport and Tourism,Third Party Payments,430100,Rendered by Private Contractors,05/12/2022,4075254-INV00189,"16,913.57",COMPETITION LINE UK LTD T/A LIFESTYLE FITNESS.
Regeneration Economy and Growth,Culture Sport and Tourism,Third Party Payments,430100,Rendered by Private Contractors,05/12/2022,4075254-INV00190,"29,814.70",COMPETITION LINE UK LTD T/A LIFESTYLE FITNESS.
Regeneration Economy and Growth,Culture Sport and Tourism,Third Party Payments,430100,Rendered by Private Contractors,05/12/2022,4075254-INV00191,"4,326.85",COMPETITION LINE UK LTD T/A LIFESTYLE FITNESS.
Children and Young Peoples Services,Head of Education and Skills,Supplies and Services,338094,Services,05/12/2022,4075260-1133,"1,208.00",CORNERSTONES CENTRE FOR THE COMMUNITY.
Regeneration Economy and Growth,REG - Central Costs,Supplies and Services,338094,Services,05/12/2022,4075287-1223,626.42,DURHAM CRICKET EVENTS LTD.
Neighbourhoods and Climate Change,Environmental Services,Third Party Payments,430100,Rendered by Private Contractors,05/12/2022,4075292-R045817,"8,121.50",ECON ENGINEERING LTD.
Regeneration Economy and Growth,Corporate Property and Land,Supplies and Services,304221,Equipment and Materials,05/12/2022,4075295-059-309629,"1,647.56",EDMUNDSON ELECTRICAL LTD.
Regeneration Economy and Growth,Corporate Property and Land,Supplies and Services,304221,Equipment and Materials,05/12/2022,4075295-059-309946,748.80,EDMUNDSON ELECTRICAL LTD.
Children and Young Peoples Services,Head of Childrens Social Care,Supplies and Services,338044,Services,05/12/2022,4075310-22071,"2,045.94",FOCUS MENTAL HEALTH.
Neighbourhoods and Climate Change,Highways,Supplies and Services,304357,Equipment and Materials,05/12/2022,4075318-DCC061122,"17,474.30",GAP GROUP LTD.
Neighbourhoods and Climate Change,Highways,Supplies and Services,338027,Services,05/12/2022,4075322-GEOUK2842,780.00,GEOMATICS UK LTD.
Children and Young Peoples Services,Head of Early Help Inclusion & Vulnerable Children.,Supplies and Services,384491,Miscellaneous Expenses,05/12/2022,4075332-EY334279/SEPTEMBER22,749.50,HAPPYTIMES DAYCARE LTD.
Neighbourhoods and Climate Change,Environmental Services,Supplies and Services,338099,Services,05/12/2022,4075334-RES-11-2022-199,"61,301.10",HARTLEPOOL BOROUGH COUNCIL.
Regeneration Economy and Growth,Corporate Property and Land,Premises,108099,Service Repairs and Maintenance,05/12/2022,4075336-62128,"17,035.82",HEALTHY BUILDINGS (IRELAND) T/A HBE.
Regeneration Economy and Growth,Corporate Property and Land,Premises,108099,Service Repairs and Maintenance,05/12/2022,4075340-7080993390,"44,567.59",HONEYWELL NOVAR SYSTEMS LTD.
Regeneration Economy and Growth,Corporate Property and Land,Supplies and Services,304221,Equipment and Materials,05/12/2022,4075369-0113/00790277,"1,932.00",JT DOVE LTD.
Regeneration Economy and Growth,Corporate Property and Land,Supplies and Services,304221,Equipment and Materials,05/12/2022,4075369-0213/00789147,861.53,JT DOVE LTD.
Regeneration Economy and Growth,Corporate Property and Land,Supplies and Services,304221,Equipment and Materials,05/12/2022,4075369-0213/00789148,"1,686.57",JT DOVE LTD.
Neighbourhoods and Climate Change,Environmental Services,Stock A926,926900,Stock in hand-Inventory system,05/12/2022,4075376-SI02-0376178,691.95,KILLGERM CHEMICALS LTD.
Children and Young Peoples Services,Head of Childrens Social Care,Supplies and Services,338044,Services,05/12/2022,4075385-275285,732.50,LEXTOX.
Regeneration Economy and Growth,Culture Sport and Tourism,Supplies and Services,324001,Provisions E324,05/12/2022,4075402-906858429,"2,323.59",MOLSON COORS BREWING COMPANY (UK) LTD.
Neighbourhoods and Climate Change,Environmental Services,Supplies and Services,338099,Services,05/12/2022,4075413-RES-11-2022-202,"1,974.99",NATIONAL TRUST.
Neighbourhoods and Climate Change,Environmental Services,Supplies and Services,304221,Equipment and Materials,05/12/2022,4075415-065718,"1,291.67",NEW ROW FARM NURSERIES.
Regeneration Economy and Growth,Culture Sport and Tourism,Supplies and Services,384199,Miscellaneous Expenses,05/12/2022,4075416-1508,"24,365.85",NEW WRITING NORTH LTD.
Regeneration Economy and Growth,Planning & Housing,Supplies and Services,336005,Advertising E336,05/12/2022,4075419-41404058,956.65,NEWSQUEST (YORKSHIRE & NORTH EAST) LTD.
Adult and Health Services,Public Health CC0450,Third Party Payments,460803,Contract Payments,05/12/2022,4075423-3610053169,"32,000.00",NORTH TEES & HARTLEPOOL NHS FOUNDATION TRUST.
Neighbourhoods and Climate Change,Environmental Services,Third Party Payments,430100,Rendered by Private Contractors,05/12/2022,4075424-4600,524.57,NORTHERN SKY MOTOR CARS LTD.
Regeneration Economy and Growth,Corporate Property and Land,Premises,145023,Cleaning and Domestic Supplies,05/12/2022,4075428-13264342,"3,810.00",NUMATIC INTERNATIONAL LTD.
Neighbourhoods and Climate Change,Highways,Third Party Payments,430101,Rendered by Private Contractors,05/12/2022,4075431-25908,"1,380.00",OLIVERS TREE SERVICES LTD.
Neighbourhoods and Climate Change,Highways,Third Party Payments,430101,Rendered by Private Contractors,05/12/2022,4075431-25909,"3,660.00",OLIVERS TREE SERVICES LTD.
Neighbourhoods and Climate Change,Highways,Construction work A908,908202,Capital - Public Utilities - Telephones Services,05/12/2022,4075434-A231664,"11,496.10",OPENREACH LLU.
Regeneration Economy and Growth,Corporate Property and Land,Third Party Payments,430100,Rendered by Private Contractors,05/12/2022,4075437-5234,"8,541.71",ORA PROPERTY SERVICES LTD.
Neighbourhoods and Climate Change,Highways,Stock A926,926900,Stock in hand-Inventory system,05/12/2022,4075441-XL293313,"1,984.02",PARK ELECTRICAL DISTRIBUTORS LTD.
Children and Young Peoples Services,Head of Education and Skills,Supplies and Services,312009,Newspapers books and periodicals E312,05/12/2022,4075446-1949091,545.64,PETERS LTD.
Children and Young Peoples Services,Head of Education and Skills,Supplies and Services,312011,Newspapers books and periodicals E312,05/12/2022,4075446-1949092,595.20,PETERS LTD.
Adult and Health Services,Head of Adults,Third Party Payments,479102,Purchase of Care,05/12/2022,4075457-INV-0055,"1,032.50",POSITIVE CARE & SUPPORT LTD.
Adult and Health Services,Head of Adults,Third Party Payments,479102,Purchase of Care,05/12/2022,4075457-INV-0056,"1,032.50",POSITIVE CARE & SUPPORT LTD.
Neighbourhoods and Climate Change,Environmental Services,Supplies and Services,384199,Miscellaneous Expenses,05/12/2022,4075465-0000058241,620.00,RA DALTON LTD.
Adult and Health Services,Head of Adults,Supplies and Services,338066,Services,05/12/2022,4075484-363,545.20,SHAH MEDICAL SERVICES LTD.
Regeneration Economy and Growth,Corporate Property and Land,Supplies and Services,304259,Equipment and Materials,05/12/2022,4075489-0001/10151282,720.00,SMH PRODUCTS LTD.
Neighbourhoods and Climate Change,Environmental Services,Supplies and Services,338099,Services,05/12/2022,4075492-RES-11-2022-200,"20,279.13",SOUTH TYNESIDE COUNCIL.
Regeneration Economy and Growth,Economic Development Level C,Supplies and Services,336005,Advertising E336,05/12/2022,4075500-INV-6388,"1,978.19",STEVE DAVIDSON ADVERTISING LTD T/A SD ADVERTISING LTD.
Neighbourhoods and Climate Change,Environmental Services,Supplies and Services,338099,Services,05/12/2022,4075501-RES-11-2022-203,"20,866.01",STOCKTON ON TEES BOROUGH COUNCIL.
Neighbourhoods and Climate Change,Environmental Services,Supplies and Services,338099,Services,05/12/2022,4075503-RES-11-2022-201,"3,660.95",SUNDERLAND CITY COUNCIL.
Regeneration Economy and Growth,Planning & Housing,Supplies and Services,328041,Clothing uniforms and laundry E328,05/12/2022,4075506-INV1145548,718.40,SWIFT INDUSTRIAL SUPPLIES LTD.
Regeneration Economy and Growth,Corporate Property and Land,Supplies and Services,304221,Equipment and Materials,05/12/2022,4075507-901621,777.71,T CROSSLING & CO LTD.
Neighbourhoods and Climate Change,Highways,Supplies and Services,304221,Equipment and Materials,05/12/2022,4075508-9046143331,562.52,TARMAC TRADING LTD.
Children and Young Peoples Services,Head of Early Help Inclusion & Vulnerable Children.,Supplies and Services,352001,Conference Expenses,05/12/2022,4075517-INV-3379,855.00,THE WORK PLACE (AYCLIFFE) LTD.
Neighbourhoods and Climate Change,Environmental Services,Supplies and Services,328041,Clothing uniforms and laundry E328,05/12/2022,4075518-NSIN00084374,823.82,THOMAS OWEN & SONS (NEWCASTLE) LTD.
Resources BK0010,Legal & Democratic Services,Supplies and Services,338042,Services,05/12/2022,4075526-269213/INVFP639,720.00,TRINITY CHAMBERS.
Resources BK0010,Legal & Democratic Services,Supplies and Services,338042,Services,05/12/2022,4075526-295310/INVPG405,720.00,TRINITY CHAMBERS.
Resources BK0010,Legal & Democratic Services,Supplies and Services,338042,Services,05/12/2022,4075526-298749/INVLM190,"8,720.00",TRINITY CHAMBERS.
Resources BK0010,Legal & Democratic Services,Supplies and Services,338042,Services,05/12/2022,4075526-299556/INVRP231,"1,030.00",TRINITY CHAMBERS.
Resources BK0010,Legal & Democratic Services,Supplies and Services,338042,Services,05/12/2022,4075526-300249/INVKF427,920.00,TRINITY CHAMBERS.
Resources BK0010,Legal & Democratic Services,Supplies and Services,338042,Services,05/12/2022,4075526-301219/INVLM191,"1,250.00",TRINITY CHAMBERS.
Resources BK0010,Legal & Democratic Services,Supplies and Services,338042,Services,05/12/2022,4075526-301484/INVRSU315,720.00,TRINITY CHAMBERS.
Resources BK0010,Legal & Democratic Services,Supplies and Services,338042,Services,05/12/2022,4075526-302155/INVRSH116,720.00,TRINITY CHAMBERS.
Resources BK0010,Legal & Democratic Services,Supplies and Services,338042,Services,05/12/2022,4075526-302941/INVSAW48,720.00,TRINITY CHAMBERS.
Neighbourhoods and Climate Change,Highways,Supplies and Services,304221,Equipment and Materials,05/12/2022,4075530-240065,"1,431.00",TYNEDALE ROADSTONE LTD.
Neighbourhoods and Climate Change,Highways,Supplies and Services,304221,Equipment and Materials,05/12/2022,4075530-240066,"2,301.50",TYNEDALE ROADSTONE LTD.
Neighbourhoods and Climate Change,Highways,Supplies and Services,304221,Equipment and Materials,05/12/2022,4075530-240067,"2,081.64",TYNEDALE ROADSTONE LTD.
Neighbourhoods and Climate Change,Highways,Supplies and Services,304221,Equipment and Materials,05/12/2022,4075530-240069,764.11,TYNEDALE ROADSTONE LTD.
Neighbourhoods and Climate Change,Highways,Supplies and Services,304221,Equipment and Materials,05/12/2022,4075530-240070,"1,966.70",TYNEDALE ROADSTONE LTD.
Neighbourhoods and Climate Change,Highways,Supplies and Services,304221,Equipment and Materials,05/12/2022,4075530-240071,"1,236.01",TYNEDALE ROADSTONE LTD.
Neighbourhoods and Climate Change,Highways,Supplies and Services,304221,Equipment and Materials,05/12/2022,4075530-240074,885.56,TYNEDALE ROADSTONE LTD.
Children and Young Peoples Services,Head of Early Help Inclusion & Vulnerable Children.,Supplies and Services,344033,Telephones,05/12/2022,4075532-208988,572.70,UNIFY BUSINESS SOLUTIONS LTD.
Resources BK0010,Digital Services,Supplies and Services,344015,Telephones,05/12/2022,4075538-RT18978,828.00,VODAFONE CORPORATE LTD.
Neighbourhoods and Climate Change,Environmental Services,Supplies and Services,338099,Services,05/12/2022,4075539-RT28335,"4,258.00",VODAFONE LTD.
Children and Young Peoples Services,Head of Education and Skills,Transfer Payments,510028,School Children,05/12/2022,4075545-RES-12-2022-012,"8,421.60",WHEATLEY HILL COMMUNITY NURSERY LTD.
Neighbourhoods and Climate Change,Environmental Services,Supplies and Services,304259,Equipment and Materials,05/12/2022,4075547-0000819925,"1,247.44",WICKSTEED LEISURE LTD.
Regeneration Economy and Growth,Corporate Property and Land,Supplies and Services,304221,Equipment and Materials,05/12/2022,4075548-85951811,583.72,WOLSELEY UK LTD.
Non-Service Specific,Insurances,Expenditure 8INSEX,810012,Insurance Expenditure,05/12/2022,4075549-MPS/9438479V/454610,722.00,WOODGATE & CLARK LTD.
Regeneration Economy and Growth,Corporate Property and Land,Supplies and Services,304221,Equipment and Materials,05/12/2022,4075555-SI-2257650,843.10,YORKSHIRE PURCHASING ORGANISATION.
Neighbourhoods and Climate Change,Highways,Supplies and Services,304221,Equipment and Materials,05/12/2022,4075556-145502904,"1,536.00",ZG LIGHTING (UK) LTD.
Neighbourhoods and Climate Change,Highways,Stock A926,926900,Stock in hand-Inventory system,05/12/2022,4075556-145503090,"4,423.50",ZG LIGHTING (UK) LTD.
Children and Young Peoples Services,Head of Education and Skills,Transport,230006,Contract Hire,05/12/2022,4075390-301122,"2,122.00",REDACTED - PAYMENT TO INDIVIDUAL
Children and Young Peoples Services,Head of Education and Skills,Transport,230006,Contract Hire,05/12/2022,4075390-301122-NOV22,"3,615.03",REDACTED - PAYMENT TO INDIVIDUAL
Children and Young Peoples Services,Head of Education and Skills,Supplies and Services,338027,Services,05/12/2022,4075401-DCC6005,"2,565.00",REDACTED - PAYMENT TO INDIVIDUAL
Regeneration Economy and Growth,Corporate Property and Land,Supplies and Services,304221,Equipment and Materials,05/12/2022,4075448-435988,"1,247.85",PEW ELECTRICAL DISTRIBUTORS LTD.
Regeneration Economy and Growth,Planning & Housing,Supplies and Services,384999,Miscellaneous Expenses,05/12/2022,4075476-0002-52THEAVENUE-LW,525.72,ROCKWOOD ESTATES NE LTD.
Resources BK0010,Legal & Democratic Services,Supplies and Services,338025,Services,05/12/2022,4075252-CW/3612,590.00,COCHRANE`S FUNERAL DIRECTORS.
Regeneration Economy and Growth,Culture Sport and Tourism,Supplies and Services,304252,Equipment and Materials,05/12/2022,4075255-SI-199587,501.60,CONTINENTAL SPORTS LTD.
Resources BK0010,Digital Services,Supplies and Services,332029,Printing Stationery and Gen Off Exps,05/12/2022,4075270-INV-22860,"2,170.00",DATA DESIGN SERVICES LTD.
Neighbourhoods and Climate Change,Environmental Services,Supplies and Services,338066,Services,05/12/2022,4075293-2494,"10,000.00",ECONOMIC RESEARCH SERVICES LTD T/A ERS RESEARCH & CONSULTANCY.
Neighbourhoods and Climate Change,Highways,Supplies and Services,342051,Computers and Communications,05/12/2022,4075386-INV-3401,"1,925.00",LIGHTING REALITY LTD.
Regeneration Economy and Growth,Corporate Property and Land,Third Party Payments,430100,Rendered by Private Contractors,05/12/2022,4075516-0000007197,990.13,THE SEKURA GROUP T/A SEKURA TRADE FRAMES LTD.
Adult and Health Services,Public Health CC0450,Third Party Payments,460803,Contract Payments,05/12/2022,4075524-BHAWAICS2022/23,"8,333.00",TRADES UNION CONGRESS T/A BETTER HEALTH AT WORK AWARD.
Regeneration Economy and Growth,Culture Sport and Tourism,Supplies and Services,338047,Services,05/12/2022,4075408-INV-20181064,"4,917.73",REDACTED - PAYMENT TO INDIVIDUAL
Dedicated Schools Grant BG0015,DSG Early Years Block,Transfer Payments,510030,School Children,06/12/2022,4076144-33192,"9,563.01",1EXCELLENCE MULTI ACADEMY TRUST.
Dedicated Schools Grant BG0015,DSG Early Years Block,Transfer Payments,510030,School Children,06/12/2022,4076145-33325,"4,927.29",1EXCELLENCE MULTI ACADEMY TRUST.
Children and Young Peoples Services,Head of Education and Skills,Transport,230007,Contract Hire,06/12/2022,4076146-102203-NOV,"1,020.18",24/7 TAXI SERVICES (PETERLEE) LTD.
Children and Young Peoples Services,Head of Education and Skills,Transport,230007,Contract Hire,06/12/2022,4076146-112201-2,"1,919.34",24/7 TAXI SERVICES (PETERLEE) LTD.
Children and Young Peoples Services,Head of Education and Skills,Transport,230007,Contract Hire,06/12/2022,4076146-112202,704.00,24/7 TAXI SERVICES (PETERLEE) LTD.
Children and Young Peoples Services,Head of Education and Skills,Transport,230034,Contract Hire,06/12/2022,4076146-112204,"3,600.00",24/7 TAXI SERVICES (PETERLEE) LTD.
Children and Young Peoples Services,Head of Education and Skills,Transport,230034,Contract Hire,06/12/2022,4076146-112205,"1,534.50",24/7 TAXI SERVICES (PETERLEE) LTD.
Children and Young Peoples Services,Head of Education and Skills,Transport,230008,Contract Hire,06/12/2022,4076146-112206,"3,498.00",24/7 TAXI SERVICES (PETERLEE) LTD.
Children and Young Peoples Services,Head of Education and Skills,Transport,230006,Contract Hire,06/12/2022,4076146-112207,"3,220.00",24/7 TAXI SERVICES (PETERLEE) LTD.
Adult and Health Services,Head of Adults,Transport,230005,Contract Hire,06/12/2022,4076146-112208,"1,830.24",24/7 TAXI SERVICES (PETERLEE) LTD.
Children and Young Peoples Services,Head of Education and Skills,Transport,230008,Contract Hire,06/12/2022,4076146-112209,"3,339.00",24/7 TAXI SERVICES (PETERLEE) LTD.
Children and Young Peoples Services,Head of Education and Skills,Transport,230008,Contract Hire,06/12/2022,4076146-112210,"3,215.52",24/7 TAXI SERVICES (PETERLEE) LTD.
Children and Young Peoples Services,Head of Education and Skills,Transport,230008,Contract Hire,06/12/2022,4076146-112211,"5,759.96",24/7 TAXI SERVICES (PETERLEE) LTD.
Children and Young Peoples Services,Head of Education and Skills,Transport,230008,Contract Hire,06/12/2022,4076146-112212,"4,844.84",24/7 TAXI SERVICES (PETERLEE) LTD.
Children and Young Peoples Services,Head of Education and Skills,Transport,230009,Contract Hire,06/12/2022,4076146-112213,"4,105.64",24/7 TAXI SERVICES (PETERLEE) LTD.
Children and Young Peoples Services,Head of Education and Skills,Transport,230008,Contract Hire,06/12/2022,4076146-112214,"5,116.83",24/7 TAXI SERVICES (PETERLEE) LTD.
Children and Young Peoples Services,Head of Education and Skills,Transport,230008,Contract Hire,06/12/2022,4076146-112216,"2,374.02",24/7 TAXI SERVICES (PETERLEE) LTD.
Children and Young Peoples Services,Head of Education and Skills,Transport,230008,Contract Hire,06/12/2022,4076146-112217,"3,652.00",24/7 TAXI SERVICES (PETERLEE) LTD.
Children and Young Peoples Services,Head of Education and Skills,Transport,230006,Contract Hire,06/12/2022,4076146-112218,"1,738.00",24/7 TAXI SERVICES (PETERLEE) LTD.
Children and Young Peoples Services,Head of Education and Skills,Transport,230006,Contract Hire,06/12/2022,4076146-112220,"1,979.50",24/7 TAXI SERVICES (PETERLEE) LTD.
Adult and Health Services,Head of Adults,Transport,230005,Contract Hire,06/12/2022,4076146-112222,"1,061.45",24/7 TAXI SERVICES (PETERLEE) LTD.
Children and Young Peoples Services,Head of Education and Skills,Transport,230008,Contract Hire,06/12/2022,4076146-112223,"4,254.14",24/7 TAXI SERVICES (PETERLEE) LTD.
Children and Young Peoples Services,Head of Education and Skills,Transport,230006,Contract Hire,06/12/2022,4076147-NOVEMBER01-F896,"2,719.72",A & P TAXIS.
Children and Young Peoples Services,Head of Education and Skills,Transport,230034,Contract Hire,06/12/2022,4076151-1122/SA,"2,772.00",AABAT TAXIS.
Children and Young Peoples Services,Head of Education and Skills,Transport,230008,Contract Hire,06/12/2022,4076151-1122/SB,"1,593.14",AABAT TAXIS.
Children and Young Peoples Services,Head of Education and Skills,Transport,230008,Contract Hire,06/12/2022,4076151-1122/SC,"4,517.92",AABAT TAXIS.
Children and Young Peoples Services,Head of Education and Skills,Transport,230008,Contract Hire,06/12/2022,4076151-1122/SD,"2,574.80",AABAT TAXIS.
Children and Young Peoples Services,Head of Education and Skills,Transport,230034,Contract Hire,06/12/2022,4076151-1122/SE,"2,082.52",AABAT TAXIS.
Children and Young Peoples Services,Head of Education and Skills,Transport,230008,Contract Hire,06/12/2022,4076151-1122/SF,"1,869.00",AABAT TAXIS.
Children and Young Peoples Services,Head of Education and Skills,Transport,230007,Contract Hire,06/12/2022,4076151-1122/SG,"1,949.37",AABAT TAXIS.
Adult and Health Services,Head of Adults,Transport,230005,Contract Hire,06/12/2022,4076151-1122/SH,"2,229.48",AABAT TAXIS.
Children and Young Peoples Services,Head of Education and Skills,Transport,230008,Contract Hire,06/12/2022,4076151-1122/SJ,"1,667.60",AABAT TAXIS.
Adult and Health Services,Head of Adults,Transport,230005,Contract Hire,06/12/2022,4076151-1122/SK,"2,792.02",AABAT TAXIS.
Children and Young Peoples Services,Head of Education and Skills,Transport,230007,Contract Hire,06/12/2022,4076151-1122/SL,"2,196.02",AABAT TAXIS.
Children and Young Peoples Services,Head of Education and Skills,Transport,230007,Contract Hire,06/12/2022,4076151-1122/SM,"2,676.66",AABAT TAXIS.
Children and Young Peoples Services,Head of Education and Skills,Transport,230034,Contract Hire,06/12/2022,4076151-1122/SO,"1,303.50",AABAT TAXIS.
Children and Young Peoples Services,Head of Education and Skills,Transport,230007,Contract Hire,06/12/2022,4076151-1122/SR,"1,479.72",AABAT TAXIS.
Children and Young Peoples Services,Head of Education and Skills,Transport,230012,Contract Hire,06/12/2022,4076151-1122/SS,"1,628.22",AABAT TAXIS.
Dedicated Schools Grant BG0015,DSG Early Years Block,Transfer Payments,510030,School Children,06/12/2022,4076154-33282,"4,082.10",ADVANCE LEARNING PARTNERSHIP.
Dedicated Schools Grant BG0015,DSG Early Years Block,Transfer Payments,510030,School Children,06/12/2022,4076155-33146,"5,863.72",ADVANCE LEARNING PARTNERSHIP.
Dedicated Schools Grant BG0015,DSG Early Years Block,Transfer Payments,510030,School Children,06/12/2022,4076156-33213,"6,280.50",ADVANCE LEARNING PARTNERSHIP.
Dedicated Schools Grant BG0015,DSG Early Years Block,Transfer Payments,510032,School Children,06/12/2022,4076158-32932,"6,030.67",ADVENTURE VALLEY DAY NURSERY LTD.
Dedicated Schools Grant BG0015,DSG Early Years Block,Transfer Payments,510030,School Children,06/12/2022,4076158-33124,"18,354.60",ADVENTURE VALLEY DAY NURSERY LTD.
Children and Young Peoples Services,Head of Education and Skills,Transport,230009,Contract Hire,06/12/2022,4076170-NOV22-7390,840.00,ANGIE`S TAXIS.
Children and Young Peoples Services,Head of Education and Skills,Transport,230009,Contract Hire,06/12/2022,4076170-NOVE22-7373,"1,302.00",ANGIE`S TAXIS.
Children and Young Peoples Services,Head of Education and Skills,Transport,230006,Contract Hire,06/12/2022,4076180-NOV2022-1,"1,404.00",ARMSTRONG`S TAXIS.
Children and Young Peoples Services,Head of Education and Skills,Transport,230006,Contract Hire,06/12/2022,4076180-NOV2022-2,"3,058.00",ARMSTRONG`S TAXIS.
Children and Young Peoples Services,Head of Education and Skills,Transport,230007,Contract Hire,06/12/2022,4076180-NOV2022-3,619.50,ARMSTRONG`S TAXIS.
Children and Young Peoples Services,Head of Education and Skills,Transport,230012,Contract Hire,06/12/2022,4076180-NOV2022-4,"1,428.00",ARMSTRONG`S TAXIS.
Non-Service Specific,Non Service Specific-Financing,Long Term Debtors,924001,Car loans,06/12/2022,4076182-120122,793.00,ARRIVA NORTHUMBRIA LTD.
Regeneration Economy and Growth,Culture Sport and Tourism,Supplies and Services,312013,Newspapers books and periodicals E312,06/12/2022,4076184-6799289,765.40,ASKEWS & HOLTS LIBRARY SERVICES LTD.
Regeneration Economy and Growth,Culture Sport and Tourism,Supplies and Services,312013,Newspapers books and periodicals E312,06/12/2022,4076184-6800459,519.64,ASKEWS & HOLTS LIBRARY SERVICES LTD.
Regeneration Economy and Growth,Culture Sport and Tourism,Supplies and Services,312013,Newspapers books and periodicals E312,06/12/2022,4076184-6800620,637.76,ASKEWS & HOLTS LIBRARY SERVICES LTD.
Children and Young Peoples Services,Head of Education and Skills,Transport,230008,Contract Hire,06/12/2022,4076185-944,"4,025.56",AT TAXIS LTD.
Children and Young Peoples Services,Head of Education and Skills,Transport,230008,Contract Hire,06/12/2022,4076185-945,"3,550.58",AT TAXIS LTD.
Children and Young Peoples Services,Head of Education and Skills,Transport,230007,Contract Hire,06/12/2022,4076185-946,"2,353.34",AT TAXIS LTD.
Children and Young Peoples Services,Head of Education and Skills,Transport,230034,Contract Hire,06/12/2022,4076185-947,"2,720.30",AT TAXIS LTD.
Children and Young Peoples Services,Head of Education and Skills,Transport,230009,Contract Hire,06/12/2022,4076185-948,"4,334.00",AT TAXIS LTD.
Dedicated Schools Grant BG0015,DSG Early Years Block,Transfer Payments,510032,School Children,06/12/2022,4076187-32940,"3,446.10",AYCLIFFE DAY NURSERY.
Dedicated Schools Grant BG0015,DSG Early Years Block,Transfer Payments,510030,School Children,06/12/2022,4076187-33138,"10,909.61",AYCLIFFE DAY NURSERY.
Neighbourhoods and Climate Change,Highways,Fees,901002,Consultants fees 901002,06/12/2022,4076191-400174101,"6,500.00",BAM NUTTALL LTD.
Neighbourhoods and Climate Change,Environmental Services,Transport,210057,Repair and Maintenance of Vehicles,06/12/2022,4076194-15214117,596.16,BELL TRUCK SALES LTD T/A BELL TRUCK & VAN.
Neighbourhoods and Climate Change,Environmental Services,Transport,210057,Repair and Maintenance of Vehicles,06/12/2022,4076194-35234892,"1,116.50",BELL TRUCK SALES LTD T/A BELL TRUCK & VAN.
Neighbourhoods and Climate Change,Environmental Services,Transport,210057,Repair and Maintenance of Vehicles,06/12/2022,4076194-35234903,"1,019.74",BELL TRUCK SALES LTD T/A BELL TRUCK & VAN.
Neighbourhoods and Climate Change,Environmental Services,Transport,210057,Repair and Maintenance of Vehicles,06/12/2022,4076194-35234988,"1,150.20",BELL TRUCK SALES LTD T/A BELL TRUCK & VAN.
Neighbourhoods and Climate Change,Environmental Services,Transport,210057,Repair and Maintenance of Vehicles,06/12/2022,4076194-35235078,508.20,BELL TRUCK SALES LTD T/A BELL TRUCK & VAN.
Neighbourhoods and Climate Change,Environmental Services,Transport,210057,Repair and Maintenance of Vehicles,06/12/2022,4076194-35235347,821.71,BELL TRUCK SALES LTD T/A BELL TRUCK & VAN.
Children and Young Peoples Services,Head of Education and Skills,Transport,230006,Contract Hire,06/12/2022,4076195-40,"1,581.00",BELMONT TAXIS.
Children and Young Peoples Services,Head of Education and Skills,Transport,230007,Contract Hire,06/12/2022,4076198-NOV22-6069,"1,679.58",BIG MAMA`S TAXI.
Children and Young Peoples Services,Head of Education and Skills,Transport,230006,Contract Hire,06/12/2022,4076199-INV-657,"1,996.57",BILL SCOTT TAXIS LTD.
Adult and Health Services,Head of Adults,Transport,230005,Contract Hire,06/12/2022,4076200-0659,"2,326.38",BIRDS TAXIS LTD.
Adult and Health Services,Head of Adults,Transport,230005,Contract Hire,06/12/2022,4076200-0660,945.12,BIRDS TAXIS LTD.
Adult and Health Services,Head of Adults,Transport,230005,Contract Hire,06/12/2022,4076200-0661,"1,340.88",BIRDS TAXIS LTD.
Adult and Health Services,Head of Adults,Transport,230005,Contract Hire,06/12/2022,4076200-0662,746.02,BIRDS TAXIS LTD.
Children and Young Peoples Services,Head of Education and Skills,Transport,230006,Contract Hire,06/12/2022,4076200-0664,"1,232.00",BIRDS TAXIS LTD.
Adult and Health Services,Head of Adults,Transport,230005,Contract Hire,06/12/2022,4076200-0665,"2,376.00",BIRDS TAXIS LTD.
Adult and Health Services,Head of Adults,Transport,230005,Contract Hire,06/12/2022,4076200-0666,"1,716.00",BIRDS TAXIS LTD.
Adult and Health Services,Head of Adults,Transport,230005,Contract Hire,06/12/2022,4076200-0667,"1,320.00",BIRDS TAXIS LTD.
Children and Young Peoples Services,Head of Education and Skills,Transport,230007,Contract Hire,06/12/2022,4076200-0668,901.60,BIRDS TAXIS LTD.
Children and Young Peoples Services,Head of Education and Skills,Transport,230008,Contract Hire,06/12/2022,4076200-0669,"2,220.90",BIRDS TAXIS LTD.
Children and Young Peoples Services,Head of Education and Skills,Transport,230008,Contract Hire,06/12/2022,4076200-0670,"3,424.22",BIRDS TAXIS LTD.
Children and Young Peoples Services,Head of Education and Skills,Transport,230005,Contract Hire,06/12/2022,4076200-0671,911.24,BIRDS TAXIS LTD.
Dedicated Schools Grant BG0015,DSG Early Years Block,Transfer Payments,510032,School Children,06/12/2022,4076201-32942,"5,677.86",BISHOP AUCKLAND COLLEGE NURSERY.
Dedicated Schools Grant BG0015,DSG Early Years Block,Transfer Payments,510030,School Children,06/12/2022,4076201-33140,"14,364.80",BISHOP AUCKLAND COLLEGE NURSERY.
Dedicated Schools Grant BG0015,DSG Early Years Block,Transfer Payments,510030,School Children,06/12/2022,4076202-33141,"3,950.77",BISHOP CHADWICK CATHOLIC EDUCATION TRUST (NSCET).
Dedicated Schools Grant BG0015,DSG Early Years Block,Transfer Payments,510030,School Children,06/12/2022,4076203-33285,"9,044.77",BISHOP CHADWICK CATHOLIC EDUCATION TRUST (NSCET).
Dedicated Schools Grant BG0015,DSG Early Years Block,Transfer Payments,510030,School Children,06/12/2022,4076204-33329,"5,136.97",BISHOP HOGARTH CATHOLIC EDUCATION TRUST.
Dedicated Schools Grant BG0015,DSG Early Years Block,Transfer Payments,510030,School Children,06/12/2022,4076205-33318,"2,715.30",BISHOP HOGARTH CATHOLIC EDUCATION TRUST.
Dedicated Schools Grant BG0015,DSG Early Years Block,Transfer Payments,510030,School Children,06/12/2022,4076206-33319,"9,420.92",BISHOP HOGARTH CATHOLIC EDUCATION TRUST.
Dedicated Schools Grant BG0015,DSG Early Years Block,Transfer Payments,510032,School Children,06/12/2022,4076207-33051,"2,297.40",BISHOP HOGARTH CATHOLIC EDUCATION TRUST.
Dedicated Schools Grant BG0015,DSG Early Years Block,Transfer Payments,510030,School Children,06/12/2022,4076207-33321,"6,683.97",BISHOP HOGARTH CATHOLIC EDUCATION TRUST.
Dedicated Schools Grant BG0015,DSG Early Years Block,Transfer Payments,510030,School Children,06/12/2022,4076208-33320,"5,827.00",BISHOP HOGARTH CATHOLIC EDUCATION TRUST.
Dedicated Schools Grant BG0015,DSG Early Years Block,Transfer Payments,510030,School Children,06/12/2022,4076209-33324,"7,602.80",BISHOP HOGARTH CATHOLIC EDUCATION TRUST.
Dedicated Schools Grant BG0015,DSG Early Years Block,Transfer Payments,510030,School Children,06/12/2022,4076210-33142,"13,392.35",BISHOP HOGARTH CATHOLIC EDUCATION TRUST.
Regeneration Economy and Growth,Culture Sport and Tourism,Supplies and Services,304359,Equipment and Materials,06/12/2022,4076211-BMPR/1038/SKIPS,700.00,BISHOP MIDDLEHAM PLANT & RECYCLING LTD.
Neighbourhoods and Climate Change,Environmental Services,Supplies and Services,304359,Equipment and Materials,06/12/2022,4076211-BMPR/1043/SKIPS,900.00,BISHOP MIDDLEHAM PLANT & RECYCLING LTD.
Neighbourhoods and Climate Change,Environmental Services,Supplies and Services,304359,Equipment and Materials,06/12/2022,4076211-BMPR/1045/SKIPS,900.00,BISHOP MIDDLEHAM PLANT & RECYCLING LTD.
Dedicated Schools Grant BG0015,DSG High Needs Block,Central Support and Other Recharges,615092,Support Services,06/12/2022,4076212-RES-12-2022-049,"1,080.00",BISHOP WILKINSON CATHOLIC EDUCATION TRUST.
Dedicated Schools Grant BG0015,DSG Early Years Block,Transfer Payments,510030,School Children,06/12/2022,4076213-33322,"5,244.51",BISHOP WILKINSON CATHOLIC EDUCATION TRUST.
Dedicated Schools Grant BG0015,DSG High Needs Block,Central Support and Other Recharges,615092,Support Services,06/12/2022,4076213-RES-12-2022-051,"2,859.00",BISHOP WILKINSON CATHOLIC EDUCATION TRUST.
Dedicated Schools Grant BG0015,DSG Early Years Block,Transfer Payments,510030,School Children,06/12/2022,4076214-33317,"39,427.20",BISHOP WILKINSON CATHOLIC EDUCATION TRUST.
Dedicated Schools Grant BG0015,DSG Early Years Block,Transfer Payments,510030,School Children,06/12/2022,4076215-33125,"3,290.55",BISHOP WILKINSON CATHOLIC EDUCATION TRUST.
Dedicated Schools Grant BG0015,DSG Early Years Block,Transfer Payments,510030,School Children,06/12/2022,4076216-33323,"2,778.30",BISHOP WILKINSON CATHOLIC EDUCATION TRUST.
Dedicated Schools Grant BG0015,DSG Early Years Block,Transfer Payments,510030,School Children,06/12/2022,4076217-33327,"11,622.00",BISHOP WILKINSON CATHOLIC EDUCATION TRUST.
Dedicated Schools Grant BG0015,DSG High Needs Block,Central Support and Other Recharges,615092,Support Services,06/12/2022,4076218-RES-12-2022-050,"2,859.00",BISHOP WILKINSON CATHOLIC EDUCATION TRUST.
Dedicated Schools Grant BG0015,DSG Early Years Block,Transfer Payments,510030,School Children,06/12/2022,4076219-33328,"3,003.89",BISHOP WILKINSON CATHOLIC EDUCATION TRUST.
Dedicated Schools Grant BG0015,DSG Early Years Block,Transfer Payments,510032,School Children,06/12/2022,4076221-33023,"4,020.45",BLUE SKY CHILDCARE.
Dedicated Schools Grant BG0015,DSG Early Years Block,Transfer Payments,510030,School Children,06/12/2022,4076221-33268,"23,959.51",BLUE SKY CHILDCARE.
Children and Young Peoples Services,Head of Education and Skills,Transport,230007,Contract Hire,06/12/2022,4076222-0,"3,829.54",BOBS TAXIS.
Children and Young Peoples Services,Head of Education and Skills,Transport,230034,Contract Hire,06/12/2022,4076223-5435,"2,578.68",BON VOYAGE TAXIS LTD.
Children and Young Peoples Services,Head of Education and Skills,Transport,230008,Contract Hire,06/12/2022,4076223-NOV22-N029,"4,374.09",BON VOYAGE TAXIS LTD.
Children and Young Peoples Services,Head of Education and Skills,Transport,230008,Contract Hire,06/12/2022,4076223-NOV22-N097,"4,918.32",BON VOYAGE TAXIS LTD.
Children and Young Peoples Services,Head of Education and Skills,Transport,230008,Contract Hire,06/12/2022,4076223-NOV22-N107,"3,960.00",BON VOYAGE TAXIS LTD.
Children and Young Peoples Services,Head of Education and Skills,Transport,230008,Contract Hire,06/12/2022,4076223-NOV22-N324,"4,400.22",BON VOYAGE TAXIS LTD.
Children and Young Peoples Services,Head of Education and Skills,Transport,230008,Contract Hire,06/12/2022,4076224-NOV22-A048,"4,400.00",BON VOYAGE TRANSPORT LTD.
Children and Young Peoples Services,Head of Education and Skills,Transport,230008,Contract Hire,06/12/2022,4076224-NOV22-N061,"4,065.90",BON VOYAGE TRANSPORT LTD.
Adult and Health Services,Head of Adults,Supplies and Services,338089,Services,06/12/2022,4076225-SIN397063,"2,000.00",BOND SOLON TRAINING LTD.*
Regeneration Economy and Growth,Planning & Housing,Supplies and Services,352001,Conference Expenses,06/12/2022,4076225-SIN397220,"8,870.00",BOND SOLON TRAINING LTD.*
Dedicated Schools Grant BG0015,DSG Early Years Block,Transfer Payments,510030,School Children,06/12/2022,4076226-33182,"14,888.89",BOW SCHOOL & NURSERY.
Neighbourhoods and Climate Change,Highways,Supplies and Services,304221,Equipment and Materials,06/12/2022,4076229-20983077,895.60,BREEDON TRADING LTD.
Dedicated Schools Grant BG0015,DSG Early Years Block,Transfer Payments,510032,School Children,06/12/2022,4076230-32947,"6,926.77",BRIGHT STAR NURSERY.
Dedicated Schools Grant BG0015,DSG Early Years Block,Transfer Payments,510030,School Children,06/12/2022,4076230-33148,"25,530.52",BRIGHT STAR NURSERY.
Regeneration Economy and Growth,Planning & Housing,Supplies and Services,344033,Telephones,06/12/2022,4076231-NE20902556Q05962,"2,854.66",BRITISH TELECOMMUNICATIONS PLC.
Dedicated Schools Grant BG0015,DSG Early Years Block,Transfer Payments,510030,School Children,06/12/2022,4076233-33149,"3,587.75",BUDDIES CHILDCARE CENTRE.
Dedicated Schools Grant BG0015,DSG Early Years Block,Transfer Payments,510032,School Children,06/12/2022,4076234-32948,"17,230.50",BUSY BEARS (DURHAM) LTD.
Dedicated Schools Grant BG0015,DSG Early Years Block,Transfer Payments,510030,School Children,06/12/2022,4076234-33151,"35,445.76",BUSY BEARS (DURHAM) LTD.
Dedicated Schools Grant BG0015,DSG Early Years Block,Transfer Payments,510032,School Children,06/12/2022,4076235-32949,"7,138.35",BUSY BEES (DURHAM) LTD.
Dedicated Schools Grant BG0015,DSG Early Years Block,Transfer Payments,510030,School Children,06/12/2022,4076235-33152,"35,221.35",BUSY BEES (DURHAM) LTD.
Dedicated Schools Grant BG0015,DSG Early Years Block,Transfer Payments,510032,School Children,06/12/2022,4076236-32950,"2,010.22",BUTTERFLIES DAY CARE.
Dedicated Schools Grant BG0015,DSG Early Years Block,Transfer Payments,510030,School Children,06/12/2022,4076236-33153,"2,594.25",BUTTERFLIES DAY CARE.
Dedicated Schools Grant BG0015,DSG Early Years Block,Transfer Payments,510032,School Children,06/12/2022,4076237-32951,"6,030.67",BYERLEY ROAD PRE SCHOOL.
Dedicated Schools Grant BG0015,DSG Early Years Block,Transfer Payments,510030,School Children,06/12/2022,4076237-33154,"11,454.87",BYERLEY ROAD PRE SCHOOL.
Children and Young Peoples Services,Head of Education and Skills,Central Support and Other Recharges,615208,Support Services,06/12/2022,4076239-RES-12-2022-014,"2,600.64",CARMEL COLLEGE.*
Dedicated Schools Grant BG0015,DSG Early Years Block,Transfer Payments,510032,School Children,06/12/2022,4076242-32953,"6,867.58",CASTLE KINDERGARTEN LTD.
Dedicated Schools Grant BG0015,DSG Early Years Block,Transfer Payments,510030,School Children,06/12/2022,4076242-33156,"21,551.42",CASTLE KINDERGARTEN LTD.
Dedicated Schools Grant BG0015,DSG Early Years Block,Transfer Payments,510032,School Children,06/12/2022,4076243-32954,"3,622.23",CASTLE KINDERGARTEN LTD.
Dedicated Schools Grant BG0015,DSG Early Years Block,Transfer Payments,510030,School Children,06/12/2022,4076243-33157,"7,053.27",CASTLE KINDERGARTEN LTD.
Children and Young Peoples Services,Head of Childrens Social Care,Third Party Payments,440046,Other third party payments E440,06/12/2022,4076244-22705,"3,370.00",CASTLE VIEW GROUP TRAINING.
Children and Young Peoples Services,Head of Childrens Social Care,Third Party Payments,440046,Other third party payments E440,06/12/2022,4076244-22764,"3,985.00",CASTLE VIEW GROUP TRAINING.
Children and Young Peoples Services,Head of Childrens Social Care,Third Party Payments,440046,Other third party payments E440,06/12/2022,4076244-22810,639.50,CASTLE VIEW GROUP TRAINING.
Children and Young Peoples Services,Head of Childrens Social Care,Third Party Payments,440046,Other third party payments E440,06/12/2022,4076244-22819,"3,700.00",CASTLE VIEW GROUP TRAINING.
Children and Young Peoples Services,Head of Childrens Social Care,Third Party Payments,440046,Other third party payments E440,06/12/2022,4076244-22899,"2,995.00",CASTLE VIEW GROUP TRAINING.
Children and Young Peoples Services,Head of Childrens Social Care,Third Party Payments,440046,Other third party payments E440,06/12/2022,4076244-22919,"1,870.00",CASTLE VIEW GROUP TRAINING.
Children and Young Peoples Services,Head of Childrens Social Care,Third Party Payments,440046,Other third party payments E440,06/12/2022,4076244-23329,960.00,CASTLE VIEW GROUP TRAINING.
Children and Young Peoples Services,Head of Childrens Social Care,Third Party Payments,440046,Other third party payments E440,06/12/2022,4076244-23332,"2,480.00",CASTLE VIEW GROUP TRAINING.
Children and Young Peoples Services,Head of Childrens Social Care,Third Party Payments,440046,Other third party payments E440,06/12/2022,4076244-23398,960.00,CASTLE VIEW GROUP TRAINING.
Children and Young Peoples Services,Head of Childrens Social Care,Third Party Payments,440046,Other third party payments E440,06/12/2022,4076244-23401,"7,050.00",CASTLE VIEW GROUP TRAINING.
Children and Young Peoples Services,Head of Childrens Social Care,Third Party Payments,440046,Other third party payments E440,06/12/2022,4076244-23402,612.63,CASTLE VIEW GROUP TRAINING.
Children and Young Peoples Services,Head of Childrens Social Care,Third Party Payments,440046,Other third party payments E440,06/12/2022,4076244-23488,"9,597.50",CASTLE VIEW GROUP TRAINING.
Dedicated Schools Grant BG0015,DSG Early Years Block,Transfer Payments,510030,School Children,06/12/2022,4076245-33158,"16,747.35",CASTLE VIEW PRIVATE DAY NURSERY LTD.
Children and Young Peoples Services,Head of Education and Skills,Transport,230034,Contract Hire,06/12/2022,4076249-03-2098,"1,430.00",CHAPMAN TRAVEL.
Children and Young Peoples Services,Head of Education and Skills,Transport,230006,Contract Hire,06/12/2022,4076249-14-F125,"3,960.00",CHAPMAN TRAVEL.
Children and Young Peoples Services,Head of Education and Skills,Transport,230008,Contract Hire,06/12/2022,4076252-CW35,"2,391.07",CHIPPERS TAXIS.
Children and Young Peoples Services,Head of Education and Skills,Transport,230008,Contract Hire,06/12/2022,4076252-SW14-NOV22,"2,577.08",CHIPPERS TAXIS.
Children and Young Peoples Services,Head of Education and Skills,Transport,230008,Contract Hire,06/12/2022,4076258-E032-CE1122,"3,041.75",CJ`S EXECUTIVE TRAVEL LTD.
Children and Young Peoples Services,Head of Education and Skills,Transport,230008,Contract Hire,06/12/2022,4076258-E040-LRB1122,"3,081.98",CJ`S EXECUTIVE TRAVEL LTD.
Children and Young Peoples Services,Head of Education and Skills,Transport,230008,Contract Hire,06/12/2022,4076258-M031-BR1122,"3,498.00",CJ`S EXECUTIVE TRAVEL LTD.
Children and Young Peoples Services,Head of Education and Skills,Transport,230034,Contract Hire,06/12/2022,4076258-MM-1122,"1,017.00",CJ`S EXECUTIVE TRAVEL LTD.
Children and Young Peoples Services,Head of Education and Skills,Transport,230008,Contract Hire,06/12/2022,4076258-N049-JIM1122,"4,895.10",CJ`S EXECUTIVE TRAVEL LTD.
Dedicated Schools Grant BG0015,DSG Early Years Block,Transfer Payments,510032,School Children,06/12/2022,4076262-32960,"2,026.63",CLEVER CLOGS DAY NURSERIES LTD.
Dedicated Schools Grant BG0015,DSG Early Years Block,Transfer Payments,510030,School Children,06/12/2022,4076262-33167,"11,320.87",CLEVER CLOGS DAY NURSERIES LTD.
Dedicated Schools Grant BG0015,DSG Early Years Block,Transfer Payments,510032,School Children,06/12/2022,4076263-32961,"1,025.62",CLEVER CLOGS DAY NURSERY (DURHAM) LTD.
Dedicated Schools Grant BG0015,DSG Early Years Block,Transfer Payments,510030,School Children,06/12/2022,4076263-33168,"18,267.97",CLEVER CLOGS DAY NURSERY (DURHAM) LTD.
Dedicated Schools Grant BG0015,DSG Early Years Block,Transfer Payments,510030,School Children,06/12/2022,4076264-33169,"17,751.22",CLEVES CROSS ACADEMY.
Dedicated Schools Grant BG0015,DSG Early Years Block,Transfer Payments,510032,School Children,06/12/2022,4076265-33040,"2,297.40",CLEVES CROSS LEARNING TRUST T/A ROSA STREET PRIMARY SCHOOL.
Dedicated Schools Grant BG0015,DSG Early Years Block,Transfer Payments,510030,School Children,06/12/2022,4076265-33299,"6,334.55",CLEVES CROSS LEARNING TRUST T/A ROSA STREET PRIMARY SCHOOL.
Dedicated Schools Grant BG0015,DSG Early Years Block,Transfer Payments,510032,School Children,06/12/2022,4076267-33044,"7,432.74",CO-OPERATIVE CHILDCARE SEAHAM T/A SEAHAM HOUSE DAY NURSERY.
Dedicated Schools Grant BG0015,DSG Early Years Block,Transfer Payments,510030,School Children,06/12/2022,4076267-33304,"19,538.98",CO-OPERATIVE CHILDCARE SEAHAM T/A SEAHAM HOUSE DAY NURSERY.
Children and Young Peoples Services,Head of Education and Skills,Transport,230007,Contract Hire,06/12/2022,4076268-C/11637,"7,593.40",COCHRANES T/A KELVIN TRAVEL.
Children and Young Peoples Services,Head of Education and Skills,Transport,230007,Contract Hire,06/12/2022,4076268-C/11638,"4,645.74",COCHRANES T/A KELVIN TRAVEL.
Children and Young Peoples Services,Head of Education and Skills,Transport,230007,Contract Hire,06/12/2022,4076268-C/11639,"5,250.00",COCHRANES T/A KELVIN TRAVEL.
Children and Young Peoples Services,Head of Education and Skills,Transport,230007,Contract Hire,06/12/2022,4076268-C/11640,"5,250.00",COCHRANES T/A KELVIN TRAVEL.
Children and Young Peoples Services,Head of Education and Skills,Transport,230003,Contract Hire,06/12/2022,4076268-C/11641,"3,003.22",COCHRANES T/A KELVIN TRAVEL.
Children and Young Peoples Services,Head of Education and Skills,Transport,230003,Contract Hire,06/12/2022,4076268-C/11642,"3,472.48",COCHRANES T/A KELVIN TRAVEL.
Children and Young Peoples Services,Head of Education and Skills,Transport,230003,Contract Hire,06/12/2022,4076268-C/11643,"5,291.00",COCHRANES T/A KELVIN TRAVEL.
Dedicated Schools Grant BG0015,DSG Early Years Block,Transfer Payments,510030,School Children,06/12/2022,4076270-33170,"2,065.37",CONKERS LIFE LTD (NURSERY SCHOOL).
Children and Young Peoples Services,Head of Education and Skills,Transport,230006,Contract Hire,06/12/2022,4076271-INV0003,"2,244.43",CONSETT EXECUTIVE CABS.
Children and Young Peoples Services,Head of Education and Skills,Transport,230007,Contract Hire,06/12/2022,4076271-INV0019,"3,040.94",CONSETT EXECUTIVE CABS.
Dedicated Schools Grant BG0015,DSG Early Years Block,Transfer Payments,510032,School Children,06/12/2022,4076273-32979,"2,010.22",CORE CARE EVENWOOD LTD T/A FLOWERPOTS NURSERY.
Dedicated Schools Grant BG0015,DSG Early Years Block,Transfer Payments,510030,School Children,06/12/2022,4076273-33195,"8,575.72",CORE CARE EVENWOOD LTD T/A FLOWERPOTS NURSERY.
Dedicated Schools Grant BG0015,DSG Early Years Block,Transfer Payments,510032,School Children,06/12/2022,4076275-32962,"6,728.10",COUNDON & LEEHOLME EARLY YEARS CENTRE LTD.
Dedicated Schools Grant BG0015,DSG Early Years Block,Transfer Payments,510030,School Children,06/12/2022,4076275-33171,"8,402.91",COUNDON & LEEHOLME EARLY YEARS CENTRE LTD.
Dedicated Schools Grant BG0015,DSG Early Years Block,Transfer Payments,510032,School Children,06/12/2022,4076278-32963,"4,881.97",CRAGHEAD CHILDCARE CENTRE.
Dedicated Schools Grant BG0015,DSG Early Years Block,Transfer Payments,510030,School Children,06/12/2022,4076278-33172,"10,763.72",CRAGHEAD CHILDCARE CENTRE.
Dedicated Schools Grant BG0015,DSG Early Years Block,Transfer Payments,510032,School Children,06/12/2022,4076286-32964,861.52,DAWN TILL DUSK CHILDCARE.
Dedicated Schools Grant BG0015,DSG Early Years Block,Transfer Payments,510032,School Children,06/12/2022,4076287-33069,"3,502.33",DAYPARK LTD T/A YELLOW WELLIES.
Dedicated Schools Grant BG0015,DSG Early Years Block,Transfer Payments,510030,School Children,06/12/2022,4076287-33358,"5,086.31",DAYPARK LTD T/A YELLOW WELLIES.
Dedicated Schools Grant BG0015,DSG Early Years Block,Transfer Payments,510032,School Children,06/12/2022,4076288-33068,"3,317.98",DAYPARK LTD T/A YELLOW WELLIES.
Dedicated Schools Grant BG0015,DSG Early Years Block,Transfer Payments,510030,School Children,06/12/2022,4076288-33357,"9,383.63",DAYPARK LTD T/A YELLOW WELLIES.
Dedicated Schools Grant BG0015,DSG Early Years Block,Transfer Payments,510030,School Children,06/12/2022,4076291-33177,"9,721.50",DEERNESS VALLEY NURSERY SCHOOL.
Neighbourhoods and Climate Change,Environmental Services,Transport,210057,Repair and Maintenance of Vehicles,06/12/2022,4076292-96432139,"1,037.91",DENNIS EAGLE LTD T/A TERBERG MATEC (UK) LTD.
Neighbourhoods and Climate Change,Environmental Services,Transport,210057,Repair and Maintenance of Vehicles,06/12/2022,4076292-96432214,624.94,DENNIS EAGLE LTD T/A TERBERG MATEC (UK) LTD.
Resources BK0010,Legal & Democratic Services,Supplies and Services,338042,Services,06/12/2022,4076294-372191/INVSPA483,775.00,DERE STREET BARRISTERS.
Dedicated Schools Grant BG0015,DSG Early Years Block,Transfer Payments,510032,School Children,06/12/2022,4076295-32969,"2,108.68",DO RE MI DAY NURSERY.
Dedicated Schools Grant BG0015,DSG Early Years Block,Transfer Payments,510030,School Children,06/12/2022,4076295-33180,"19,760.00",DO RE MI DAY NURSERY.
Dedicated Schools Grant BG0015,DSG Early Years Block,Transfer Payments,510030,School Children,06/12/2022,4076300-33216,"1,810.20",DURHAM & NEWCASTLE DIOCESAN LEARNING TRUST T/A INGLETON CE PRIMARY SCHOOL
Dedicated Schools Grant BG0015,DSG Early Years Block,Transfer Payments,510030,School Children,06/12/2022,4076301-33330,"5,565.09",DURHAM & NEWCASTLE DIOCESAN LEARNING TRUST T/A STANHOPE BARRINGTON C OF E PRIMARY SCHOOL.
Dedicated Schools Grant BG0015,DSG Early Years Block,Transfer Payments,510032,School Children,06/12/2022,4076305-32971,"2,871.75",EARLY LEARNERS PRIVATE DAY NURSERY.
Dedicated Schools Grant BG0015,DSG Early Years Block,Transfer Payments,510030,School Children,06/12/2022,4076305-33184,"2,303.95",EARLY LEARNERS PRIVATE DAY NURSERY.
Dedicated Schools Grant BG0015,DSG Early Years Block,Transfer Payments,510032,School Children,06/12/2022,4076306-33035,"3,733.27",EAST DURHAM COLLEGE.
Dedicated Schools Grant BG0015,DSG Early Years Block,Transfer Payments,510030,School Children,06/12/2022,4076306-33290,"8,552.40",EAST DURHAM COLLEGE.
Regeneration Economy and Growth,Corporate Property and Land,Third Party Payments,430100,Rendered by Private Contractors,06/12/2022,4076308-410,"4,850.00",ECO HVAC SERVICES LIMITED.
Regeneration Economy and Growth,Corporate Property and Land,Third Party Payments,430100,Rendered by Private Contractors,06/12/2022,4076308-411,"5,500.00",ECO HVAC SERVICES LIMITED.
Dedicated Schools Grant BG0015,DSG Early Years Block,Transfer Payments,510032,School Children,06/12/2022,4076309-32944,"5,169.15",EDEN ACADEMY TRUST LTD T/A BLUEBELL MEADOW PRIMARY SCHOOL.
Dedicated Schools Grant BG0015,DSG Early Years Block,Transfer Payments,510030,School Children,06/12/2022,4076309-33144,"7,240.59",EDEN ACADEMY TRUST LTD T/A BLUEBELL MEADOW PRIMARY SCHOOL.
Dedicated Schools Grant BG0015,DSG Early Years Block,Transfer Payments,510032,School Children,06/12/2022,4076310-32972,"3,651.22",EDEN GARDEN NURSERY.
Dedicated Schools Grant BG0015,DSG Early Years Block,Transfer Payments,510030,School Children,06/12/2022,4076310-33185,"13,779.89",EDEN GARDEN NURSERY.
Dedicated Schools Grant BG0015,DSG Early Years Block,Transfer Payments,510030,School Children,06/12/2022,4076311-33163,"15,977.92",EDEN LEARNING TRUST T/A CHILTON ACADEMY.
Children and Young Peoples Services,Head of Education and Skills,Transport,230008,Contract Hire,06/12/2022,4076319-ES14,"2,792.90",ELITE TAXIS.
Children and Young Peoples Services,Head of Education and Skills,Transport,230007,Contract Hire,06/12/2022,4076320-1122,"2,528.24",ELLIOTTS OF TRIMDON.
Children and Young Peoples Services,Head of Education and Skills,Transport,230007,Contract Hire,06/12/2022,4076320-5234/1122,"2,943.36",ELLIOTTS OF TRIMDON.
Children and Young Peoples Services,Head of Education and Skills,Transport,230008,Contract Hire,06/12/2022,4076320-E128/1122,"2,626.28",ELLIOTTS OF TRIMDON.
Children and Young Peoples Services,Head of Education and Skills,Transport,230008,Contract Hire,06/12/2022,4076320-M042/1122,"2,666.40",ELLIOTTS OF TRIMDON.
Dedicated Schools Grant BG0015,DSG Early Years Block,Transfer Payments,510032,School Children,06/12/2022,4076321-32975,"9,189.60",EMERALDS LITTLE GEMS DAYCARE LTD.
Dedicated Schools Grant BG0015,DSG Early Years Block,Transfer Payments,510032,School Children,06/12/2022,4076321-32976,"10,636.41",EMERALDS LITTLE GEMS DAYCARE LTD.
Dedicated Schools Grant BG0015,DSG Early Years Block,Transfer Payments,510030,School Children,06/12/2022,4076321-33189,"14,391.35",EMERALDS LITTLE GEMS DAYCARE LTD.
Dedicated Schools Grant BG0015,DSG Early Years Block,Transfer Payments,510030,School Children,06/12/2022,4076321-33190,"27,642.15",EMERALDS LITTLE GEMS DAYCARE LTD.
Neighbourhoods and Climate Change,Environmental Services,Transport,230005,Contract Hire,06/12/2022,4076323-13001370791,"3,542.22",ENTERPRISE FLEX-E-RENT T/A BURNT TREE GROUP LTD.
Dedicated Schools Grant BG0015,DSG Early Years Block,Transfer Payments,510032,School Children,06/12/2022,4076325-32977,"4,135.32",EXPLORERS DAY CARE.
Dedicated Schools Grant BG0015,DSG Early Years Block,Transfer Payments,510030,School Children,06/12/2022,4076325-33193,"15,126.87",EXPLORERS DAY CARE.
Dedicated Schools Grant BG0015,DSG Early Years Block,Transfer Payments,510032,School Children,06/12/2022,4076332-32978,"5,169.15",FIRST STEPS NURSERY.
Dedicated Schools Grant BG0015,DSG Early Years Block,Transfer Payments,510030,School Children,06/12/2022,4076332-33194,"2,967.52",FIRST STEPS NURSERY.
Children and Young Peoples Services,Head of Education and Skills,Transport,230008,Contract Hire,06/12/2022,4076334-1591,"2,256.56",FMR SILVA PITA.
Children and Young Peoples Services,Head of Education and Skills,Transport,230009,Contract Hire,06/12/2022,4076334-2592,"1,251.91",FMR SILVA PITA.
Children and Young Peoples Services,Head of Education and Skills,Transport,230007,Contract Hire,06/12/2022,4076334-2593,"1,470.00",FMR SILVA PITA.
Children and Young Peoples Services,Head of Education and Skills,Transport,230035,Contract Hire,06/12/2022,4076334-2594,"1,088.00",FMR SILVA PITA.
Children and Young Peoples Services,Head of Education and Skills,Transport,230010,Contract Hire,06/12/2022,4076334-2595,"1,696.94",FMR SILVA PITA.
Children and Young Peoples Services,Head of Education and Skills,Transport,230006,Contract Hire,06/12/2022,4076335-NOV22-F242,"2,074.52",FREEDOM PRIVATE HIRE.
Children and Young Peoples Services,Head of Education and Skills,Transport,230008,Contract Hire,06/12/2022,4076338-103165,"1,454.00",G & P JOHNSON LTD T/A NIGHTINGALE COACHES.
Children and Young Peoples Services,Head of Education and Skills,Transport,230008,Contract Hire,06/12/2022,4076338-103166,"3,168.00",G & P JOHNSON LTD T/A NIGHTINGALE COACHES.
Adult and Health Services,Head of Adults,Transport,230005,Contract Hire,06/12/2022,4076338-103167,"1,937.00",G & P JOHNSON LTD T/A NIGHTINGALE COACHES.
Children and Young Peoples Services,Head of Education and Skills,Transport,230008,Contract Hire,06/12/2022,4076338-103168,"3,998.48",G & P JOHNSON LTD T/A NIGHTINGALE COACHES.
Children and Young Peoples Services,Head of Education and Skills,Transport,230007,Contract Hire,06/12/2022,4076344-6099,"1,858.50",GEM TRAVEL.
Children and Young Peoples Services,Head of Education and Skills,Transport,230003,Contract Hire,06/12/2022,4076344-6100,"4,807.74",GEM TRAVEL.
Dedicated Schools Grant BG0015,DSG Early Years Block,Transfer Payments,510032,School Children,06/12/2022,4076347-32980,"4,594.80",GIANT STEPS LTD.
Dedicated Schools Grant BG0015,DSG Early Years Block,Transfer Payments,510030,School Children,06/12/2022,4076347-33196,"9,808.05",GIANT STEPS LTD.
Dedicated Schools Grant BG0015,DSG Early Years Block,Transfer Payments,510032,School Children,06/12/2022,4076348-32981,"2,420.69",GIANT STEPS LTD.
Dedicated Schools Grant BG0015,DSG Early Years Block,Transfer Payments,510030,School Children,06/12/2022,4076348-33197,"17,970.65",GIANT STEPS LTD.
Children and Young Peoples Services,Head of Education and Skills,Transport,230008,Contract Hire,06/12/2022,4076350-95,"1,440.00",GP TAXIS.
Dedicated Schools Grant BG0015,DSG Early Years Block,Transfer Payments,510032,School Children,06/12/2022,4076351-32982,861.52,GREEN LANE NURSERY & CHILDCARE CENTRE.
Dedicated Schools Grant BG0015,DSG Early Years Block,Transfer Payments,510030,School Children,06/12/2022,4076351-33198,"13,263.29",GREEN LANE NURSERY & CHILDCARE CENTRE.
Resources BK0010,Digital Services,Supplies and Services,304303,Equipment and Materials,06/12/2022,4076353-INV0190155,"3,408.84",GVAV LTD.
Adult and Health Services,Head of Adults,Transport,230005,Contract Hire,06/12/2022,4076356-146,"1,197.25",HAMLET TAXIS.
Dedicated Schools Grant BG0015,DSG Early Years Block,Transfer Payments,510032,School Children,06/12/2022,4076358-32983,"5,169.15",HAPPY TIMES DAYCARE LTD.
Dedicated Schools Grant BG0015,DSG Early Years Block,Transfer Payments,510030,School Children,06/12/2022,4076358-33199,"3,173.94",HAPPY TIMES DAYCARE LTD.
Dedicated Schools Grant BG0015,DSG Early Years Block,Transfer Payments,510032,School Children,06/12/2022,4076359-32945,"7,466.55",HAPPYTIMES DAYCARE LTD.
Dedicated Schools Grant BG0015,DSG Early Years Block,Transfer Payments,510030,School Children,06/12/2022,4076359-33147,"7,327.80",HAPPYTIMES DAYCARE LTD.
Dedicated Schools Grant BG0015,DSG Early Years Block,Transfer Payments,510032,School Children,06/12/2022,4076365-32985,"2,256.37",HAYSTACKS NURSERY..
Dedicated Schools Grant BG0015,DSG Early Years Block,Transfer Payments,510030,School Children,06/12/2022,4076365-33202,"9,551.91",HAYSTACKS NURSERY..
Dedicated Schools Grant BG0015,DSG Early Years Block,Transfer Payments,510032,School Children,06/12/2022,4076366-32986,574.35,HAZEL DENE CHILDCARE LTD.
Dedicated Schools Grant BG0015,DSG Early Years Block,Transfer Payments,510030,School Children,06/12/2022,4076366-33203,"2,269.50",HAZEL DENE CHILDCARE LTD.
Regeneration Economy and Growth,Corporate Property and Land,Supplies and Services,304221,Equipment and Materials,06/12/2022,4076367-4749691,"1,620.30",HEADLAM (FLOORCOVERING DISTRIBUTORS) LTD.
Dedicated Schools Grant BG0015,DSG Early Years Block,Transfer Payments,510032,School Children,06/12/2022,4076374-32991,"1,723.05",HIPPITOTS LTD.
Dedicated Schools Grant BG0015,DSG Early Years Block,Transfer Payments,510030,School Children,06/12/2022,4076374-33210,"8,793.21",HIPPITOTS LTD.
Regeneration Economy and Growth,Transport and Contracted Services,Third Party Payments,430106,Rendered by Private Contractors,06/12/2022,4076382-22149,"79,523.28",HODGSONS COACH OPERATORS LTD.
Children and Young Peoples Services,Head of Education and Skills,Transport,230035,Contract Hire,06/12/2022,4076385-17-NOV22,"1,407.35",HORNDALE TAXIS.
Dedicated Schools Grant BG0015,DSG Early Years Block,Transfer Payments,510032,School Children,06/12/2022,4076386-32992,"7,712.70",HOUSE OF EDEN LTD.
Dedicated Schools Grant BG0015,DSG Early Years Block,Transfer Payments,510030,School Children,06/12/2022,4076386-33211,"21,483.25",HOUSE OF EDEN LTD.
Dedicated Schools Grant BG0015,DSG Early Years Block,Transfer Payments,510032,School Children,06/12/2022,4076387-32994,"10,379.33",HOWLETCH & SHOTTON CHILDCARE LTD.
Dedicated Schools Grant BG0015,DSG Early Years Block,Transfer Payments,510030,School Children,06/12/2022,4076387-33214,"7,309.80",HOWLETCH & SHOTTON CHILDCARE LTD.
Dedicated Schools Grant BG0015,DSG Early Years Block,Transfer Payments,510032,School Children,06/12/2022,4076388-32995,"4,291.21",HOWLETCH & SHOTTON CHILDCARE LTD.
Dedicated Schools Grant BG0015,DSG Early Years Block,Transfer Payments,510030,School Children,06/12/2022,4076388-33215,"12,056.90",HOWLETCH & SHOTTON CHILDCARE LTD.
Children and Young Peoples Services,Head of Education and Skills,Transport,230006,Contract Hire,06/12/2022,4076394-6517-22,"1,152.00",J YOUNG T/A VIP TAXIS.
Children and Young Peoples Services,Head of Education and Skills,Transport,230008,Contract Hire,06/12/2022,4076394-6518-22,"1,686.51",J YOUNG T/A VIP TAXIS.
Children and Young Peoples Services,Head of Education and Skills,Transport,230008,Contract Hire,06/12/2022,4076394-6520-22,"1,745.26",J YOUNG T/A VIP TAXIS.
Neighbourhoods and Climate Change,Highways,Supplies and Services,338066,Services,06/12/2022,4076395-B225H016-007,"8,631.71",JACOBS UK LTD.
Children and Young Peoples Services,Head of Education and Skills,Transport,230006,Contract Hire,06/12/2022,4076404-2494,"3,570.00",JDS PRIVATE HIRE DURHAM.
Children and Young Peoples Services,Head of Education and Skills,Transport,230008,Contract Hire,06/12/2022,4076404-2507,"2,871.00",JDS PRIVATE HIRE DURHAM.
Children and Young Peoples Services,Head of Education and Skills,Transport,230008,Contract Hire,06/12/2022,4076404-2508,"2,205.72",JDS PRIVATE HIRE DURHAM.
Children and Young Peoples Services,Head of Education and Skills,Transport,230007,Contract Hire,06/12/2022,4076405-INV3242,"3,232.68",JEFF ANDERSON COACHES LTD.
Children and Young Peoples Services,Head of Education and Skills,Transport,230008,Contract Hire,06/12/2022,4076405-INV3243,"2,210.56",JEFF ANDERSON COACHES LTD.
Children and Young Peoples Services,Head of Education and Skills,Transport,230007,Contract Hire,06/12/2022,4076405-INV3244,"1,889.80",JEFF ANDERSON COACHES LTD.
Children and Young Peoples Services,Head of Education and Skills,Transport,230008,Contract Hire,06/12/2022,4076405-INV3245,"2,749.78",JEFF ANDERSON COACHES LTD.
Dedicated Schools Grant BG0015,DSG Early Years Block,Transfer Payments,510030,School Children,06/12/2022,4076406-33286,"15,888.14",JIGSAW LEARNING TRUST.
Dedicated Schools Grant BG0015,DSG High Needs Block,Transport,230009,Contract Hire,06/12/2022,4076412-03-22/23,"2,181.96",JOHN BELL TAXI.
Children and Young Peoples Services,Head of Education and Skills,Transport,230008,Contract Hire,06/12/2022,4076418-M00953,"3,960.00",JOVIAL PRIVATE HIRE.
Children and Young Peoples Services,Head of Education and Skills,Transport,230008,Contract Hire,06/12/2022,4076418-M01614,"1,642.52",JOVIAL PRIVATE HIRE.
Children and Young Peoples Services,Head of Education and Skills,Transport,230008,Contract Hire,06/12/2022,4076418-M01753,"3,058.52",JOVIAL PRIVATE HIRE.
Children and Young Peoples Services,Head of Education and Skills,Transport,230008,Contract Hire,06/12/2022,4076418-N030015,"3,421.44",JOVIAL PRIVATE HIRE.
Children and Young Peoples Services,Head of Education and Skills,Transport,230008,Contract Hire,06/12/2022,4076429-03/M071,"3,050.30",KD TAXIS.
Dedicated Schools Grant BG0015,DSG Early Years Block,Transfer Payments,510032,School Children,06/12/2022,4076431-33003,"1,887.15",KELLOE PHOENIX CENTRE (CHILDCARE).
Dedicated Schools Grant BG0015,DSG Early Years Block,Transfer Payments,510032,School Children,06/12/2022,4076438-33005,"1,148.70",KIDS 1ST NURSERIES DURHAM.
Dedicated Schools Grant BG0015,DSG Early Years Block,Transfer Payments,510030,School Children,06/12/2022,4076438-33241,"8,777.85",KIDS 1ST NURSERIES DURHAM.
Dedicated Schools Grant BG0015,DSG Early Years Block,Transfer Payments,510032,School Children,06/12/2022,4076439-33006,"4,594.80",KIDZ VILLAGE LTD.
Dedicated Schools Grant BG0015,DSG Early Years Block,Transfer Payments,510030,School Children,06/12/2022,4076439-33242,"9,828.97",KIDZ VILLAGE LTD.
Dedicated Schools Grant BG0015,DSG Early Years Block,Transfer Payments,510032,School Children,06/12/2022,4076440-33007,"1,435.87",KIDZONE.
Dedicated Schools Grant BG0015,DSG Early Years Block,Transfer Payments,510030,School Children,06/12/2022,4076440-33243,"12,771.60",KIDZONE.
Regeneration Economy and Growth,Business Durham CL0850,Construction work A908,908105,Construction work,06/12/2022,4076442-10300186,"17,543.45",KIER CONSTRUCTION LTD - SCOTLAND
Children and Young Peoples Services,Head of Education and Skills,Transport,230007,Contract Hire,06/12/2022,4076443-2042,"2,180.10",KINGSWAY CABS LTD.
Children and Young Peoples Services,Head of Education and Skills,Transport,230008,Contract Hire,06/12/2022,4076443-2072,"1,834.54",KINGSWAY CABS LTD.
Children and Young Peoples Services,Head of Education and Skills,Transport,230007,Contract Hire,06/12/2022,4076443-2090,"1,760.00",KINGSWAY CABS LTD.
Children and Young Peoples Services,Head of Education and Skills,Transport,230009,Contract Hire,06/12/2022,4076443-2097,"2,730.86",KINGSWAY CABS LTD.
Children and Young Peoples Services,Head of Education and Skills,Transport,230008,Contract Hire,06/12/2022,4076443-2115,"1,870.00",KINGSWAY CABS LTD.
Children and Young Peoples Services,Head of Education and Skills,Transport,230008,Contract Hire,06/12/2022,4076443-2116,"4,142.82",KINGSWAY CABS LTD.
Children and Young Peoples Services,Head of Education and Skills,Transport,230008,Contract Hire,06/12/2022,4076443-2126,"2,522.06",KINGSWAY CABS LTD.
Dedicated Schools Grant BG0015,DSG Early Years Block,Transfer Payments,510032,School Children,06/12/2022,4076444-33008,787.68,KIRK MERRINGTON PRE SCHOOL.
Dedicated Schools Grant BG0015,DSG Early Years Block,Transfer Payments,510030,School Children,06/12/2022,4076444-33244,"2,391.04",KIRK MERRINGTON PRE SCHOOL.
Dedicated Schools Grant BG0015,DSG Early Years Block,Transfer Payments,510030,School Children,06/12/2022,4076445-33245,"5,368.98",KIRKLANDS DAY NURSERY.
Children and Young Peoples Services,Head of Education and Skills,Transport,230016,Contract Hire,06/12/2022,4076456-3080/F155,700.00,LD TAXIS.
Children and Young Peoples Services,Head of Education and Skills,Transport,230006,Contract Hire,06/12/2022,4076456-3082,"1,910.00",LD TAXIS.
Children and Young Peoples Services,Head of Education and Skills,Transport,230006,Contract Hire,06/12/2022,4076456-3083,"2,923.59",LD TAXIS.
Children and Young Peoples Services,Head of Education and Skills,Transport,230008,Contract Hire,06/12/2022,4076456-3085,"2,200.00",LD TAXIS.
Children and Young Peoples Services,Head of Education and Skills,Transport,230016,Contract Hire,06/12/2022,4076456-3086,"3,061.96",LD TAXIS.
Children and Young Peoples Services,Head of Education and Skills,Transport,230008,Contract Hire,06/12/2022,4076456-3087,"1,540.00",LD TAXIS.
Children and Young Peoples Services,Head of Education and Skills,Transport,230034,Contract Hire,06/12/2022,4076456-3088,"1,607.76",LD TAXIS.
Children and Young Peoples Services,Head of Education and Skills,Transport,230007,Contract Hire,06/12/2022,4076456-3089,"1,540.00",LD TAXIS.
Children and Young Peoples Services,Head of Education and Skills,Transport,230007,Contract Hire,06/12/2022,4076456-3090,"1,271.97",LD TAXIS.
Children and Young Peoples Services,Head of Education and Skills,Transport,230008,Contract Hire,06/12/2022,4076456-3091,"1,877.04",LD TAXIS.
Adult and Health Services,Head of Adults,Transport,230005,Contract Hire,06/12/2022,4076456-3092,"1,760.00",LD TAXIS.
Children and Young Peoples Services,Head of Education and Skills,Transport,230006,Contract Hire,06/12/2022,4076456-3093,"1,260.00",LD TAXIS.
Dedicated Schools Grant BG0015,DSG Early Years Block,Transfer Payments,510032,School Children,06/12/2022,4076457-33013,"8,040.90",LEADGATE CHILD CENTRE LTD.
Dedicated Schools Grant BG0015,DSG Early Years Block,Transfer Payments,510030,School Children,06/12/2022,4076457-33254,"19,189.78",LEADGATE CHILD CENTRE LTD.
Children and Young Peoples Services,Head of Education and Skills,Transport,230003,Contract Hire,06/12/2022,4076460-31927,"4,688.04",LEE`S COACHES LTD.
Children and Young Peoples Services,Head of Education and Skills,Transport,230003,Contract Hire,06/12/2022,4076460-31928,"6,209.91",LEE`S COACHES LTD.
Children and Young Peoples Services,Head of Education and Skills,Transport,230007,Contract Hire,06/12/2022,4076460-31929,"2,586.81",LEE`S COACHES LTD.
Children and Young Peoples Services,Head of Education and Skills,Transport,230007,Contract Hire,06/12/2022,4076460-31930,"4,699.86",LEE`S COACHES LTD.
Children and Young Peoples Services,Head of Education and Skills,Transport,230007,Contract Hire,06/12/2022,4076460-31931,"3,519.56",LEE`S COACHES LTD.
Children and Young Peoples Services,Head of Education and Skills,Transport,230003,Contract Hire,06/12/2022,4076460-31933,"3,780.00",LEE`S COACHES LTD.
Children and Young Peoples Services,Head of Education and Skills,Transport,230007,Contract Hire,06/12/2022,4076460-31934,"4,898.30",LEE`S COACHES LTD.
Children and Young Peoples Services,Head of Education and Skills,Transport,230008,Contract Hire,06/12/2022,4076464-4940,"3,023.02",LINCAB TAXIS.
Children and Young Peoples Services,Head of Education and Skills,Transport,230008,Contract Hire,06/12/2022,4076464-4941,"4,183.36",LINCAB TAXIS.
Children and Young Peoples Services,Head of Education and Skills,Transport,230008,Contract Hire,06/12/2022,4076464-4942,"4,077.70",LINCAB TAXIS.
Children and Young Peoples Services,Head of Education and Skills,Transport,230007,Contract Hire,06/12/2022,4076464-4943,"3,033.14",LINCAB TAXIS.
Dedicated Schools Grant BG0015,DSG Early Years Block,Transfer Payments,510032,School Children,06/12/2022,4076465-33017,"3,610.20",LITTLE ACORNS NORTH EAST LTD.
Dedicated Schools Grant BG0015,DSG Early Years Block,Transfer Payments,510030,School Children,06/12/2022,4076465-33259,"20,617.83",LITTLE ACORNS NORTH EAST LTD.
Dedicated Schools Grant BG0015,DSG Early Years Block,Transfer Payments,510032,School Children,06/12/2022,4076466-33018,"4,735.65",LITTLE CUBS DAY NURSERY.
Dedicated Schools Grant BG0015,DSG Early Years Block,Transfer Payments,510030,School Children,06/12/2022,4076466-33260,"20,552.54",LITTLE CUBS DAY NURSERY.
Dedicated Schools Grant BG0015,DSG Early Years Block,Transfer Payments,510032,School Children,06/12/2022,4076467-33020,"9,222.42",LITTLE STARS EARLY YEARS.
Dedicated Schools Grant BG0015,DSG Early Years Block,Transfer Payments,510030,School Children,06/12/2022,4076467-33262,"4,981.24",LITTLE STARS EARLY YEARS.
Dedicated Schools Grant BG0015,DSG Early Years Block,Transfer Payments,510032,School Children,06/12/2022,4076468-33022,"6,810.15",LITTLE WAVES DAY NURSERY LTD.
Dedicated Schools Grant BG0015,DSG Early Years Block,Transfer Payments,510030,School Children,06/12/2022,4076468-33264,"17,920.65",LITTLE WAVES DAY NURSERY LTD.
Children and Young Peoples Services,Head of Education and Skills,Transport,230034,Contract Hire,06/12/2022,4076471-NOV22-3515,"1,440.00",LORRAINES TAXIS.
Children and Young Peoples Services,Head of Education and Skills,Transport,230009,Contract Hire,06/12/2022,4076471-NOV22-G046,600.00,LORRAINES TAXIS.
Children and Young Peoples Services,Head of Education and Skills,Transport,230008,Contract Hire,06/12/2022,4076471-NOV22-W180,"3,960.00",LORRAINES TAXIS.
Children and Young Peoples Services,Head of Education and Skills,Transport,230007,Contract Hire,06/12/2022,4076479-INV11/2022-01,"2,082.62",MARK & JOHN CHISHOLM T/A (CHEVRON).
Children and Young Peoples Services,Head of Education and Skills,Transport,230007,Contract Hire,06/12/2022,4076479-INV11/2022-03,"1,197.00",MARK & JOHN CHISHOLM T/A (CHEVRON).
Children and Young Peoples Services,Head of Education and Skills,Transport,230007,Contract Hire,06/12/2022,4076479-INV11/2022-04,"2,802.94",MARK & JOHN CHISHOLM T/A (CHEVRON).
Children and Young Peoples Services,Head of Education and Skills,Transport,230007,Contract Hire,06/12/2022,4076479-INV11/2022-06,"2,607.36",MARK & JOHN CHISHOLM T/A (CHEVRON).
Children and Young Peoples Services,Head of Education and Skills,Transport,230008,Contract Hire,06/12/2022,4076479-INV11/2022-08,"3,594.14",MARK & JOHN CHISHOLM T/A (CHEVRON).
Children and Young Peoples Services,Head of Education and Skills,Transport,230008,Contract Hire,06/12/2022,4076479-INV11/2022-09,"5,098.72",MARK & JOHN CHISHOLM T/A (CHEVRON).
Children and Young Peoples Services,Head of Education and Skills,Transport,230010,Contract Hire,06/12/2022,4076479-INV11/2022-10,"2,904.00",MARK & JOHN CHISHOLM T/A (CHEVRON).
Children and Young Peoples Services,Head of Education and Skills,Transport,230010,Contract Hire,06/12/2022,4076479-INV11/2022-13,"3,057.82",MARK & JOHN CHISHOLM T/A (CHEVRON).
Children and Young Peoples Services,Head of Education and Skills,Transport,230008,Contract Hire,06/12/2022,4076479-INV11/2022-14,"4,694.30",MARK & JOHN CHISHOLM T/A (CHEVRON).
Children and Young Peoples Services,Head of Education and Skills,Transport,230008,Contract Hire,06/12/2022,4076479-INV11/2022-15,"3,015.76",MARK & JOHN CHISHOLM T/A (CHEVRON).
Children and Young Peoples Services,Head of Education and Skills,Transport,230008,Contract Hire,06/12/2022,4076479-INV11/2022-16,"3,190.88",MARK & JOHN CHISHOLM T/A (CHEVRON).
Children and Young Peoples Services,Head of Education and Skills,Transport,230008,Contract Hire,06/12/2022,4076479-INV11/2022-17,"4,091.14",MARK & JOHN CHISHOLM T/A (CHEVRON).
Children and Young Peoples Services,Head of Education and Skills,Transport,230008,Contract Hire,06/12/2022,4076479-INV11/2022-18,"3,519.00",MARK & JOHN CHISHOLM T/A (CHEVRON).
Children and Young Peoples Services,Head of Education and Skills,Transport,230008,Contract Hire,06/12/2022,4076479-INV11/2022-19,"3,256.00",MARK & JOHN CHISHOLM T/A (CHEVRON).
Children and Young Peoples Services,Head of Education and Skills,Transport,230008,Contract Hire,06/12/2022,4076479-INV11/2022-20,"2,768.70",MARK & JOHN CHISHOLM T/A (CHEVRON).
Children and Young Peoples Services,Head of Education and Skills,Transport,230008,Contract Hire,06/12/2022,4076479-INV11/2022-21,"4,994.99",MARK & JOHN CHISHOLM T/A (CHEVRON).
Children and Young Peoples Services,Head of Education and Skills,Transport,230008,Contract Hire,06/12/2022,4076479-INV11/2022-22,"4,625.25",MARK & JOHN CHISHOLM T/A (CHEVRON).
Children and Young Peoples Services,Head of Education and Skills,Transport,230008,Contract Hire,06/12/2022,4076479-INV11/2022-23,"3,249.84",MARK & JOHN CHISHOLM T/A (CHEVRON).
Children and Young Peoples Services,Head of Education and Skills,Transport,230008,Contract Hire,06/12/2022,4076479-INV11/2022-24,"3,210.90",MARK & JOHN CHISHOLM T/A (CHEVRON).
Children and Young Peoples Services,Head of Education and Skills,Transport,230008,Contract Hire,06/12/2022,4076479-INV11/2022-25,"3,048.54",MARK & JOHN CHISHOLM T/A (CHEVRON).
Children and Young Peoples Services,Head of Education and Skills,Transport,230008,Contract Hire,06/12/2022,4076479-INV11/2022-26,"5,676.00",MARK & JOHN CHISHOLM T/A (CHEVRON).
Children and Young Peoples Services,Head of Education and Skills,Transport,230008,Contract Hire,06/12/2022,4076479-INV11/2022-27,"4,136.00",MARK & JOHN CHISHOLM T/A (CHEVRON).
Children and Young Peoples Services,Head of Education and Skills,Transport,230008,Contract Hire,06/12/2022,4076479-INV11/2022-28,"5,510.41",MARK & JOHN CHISHOLM T/A (CHEVRON).
Children and Young Peoples Services,Head of Education and Skills,Transport,230008,Contract Hire,06/12/2022,4076479-INV11/2022-29,"5,771.49",MARK & JOHN CHISHOLM T/A (CHEVRON).
Children and Young Peoples Services,Head of Education and Skills,Transport,230007,Contract Hire,06/12/2022,4076479-INV11/2022-34,"1,912.96",MARK & JOHN CHISHOLM T/A (CHEVRON).
Children and Young Peoples Services,Head of Education and Skills,Transport,230007,Contract Hire,06/12/2022,4076479-INV11/2022-35,"1,560.00",MARK & JOHN CHISHOLM T/A (CHEVRON).
Children and Young Peoples Services,Head of Education and Skills,Transport,230007,Contract Hire,06/12/2022,4076493-491,750.86,MICKS TAXIS - MURTON.
Children and Young Peoples Services,Head of Education and Skills,Transport,230006,Contract Hire,06/12/2022,4076493-492,"1,407.78",MICKS TAXIS - MURTON.
Children and Young Peoples Services,Head of Education and Skills,Transport,230006,Contract Hire,06/12/2022,4076493-493,"2,739.00",MICKS TAXIS - MURTON.
Regeneration Economy and Growth,Corporate Property and Land,Third Party Payments,430100,Rendered by Private Contractors,06/12/2022,4076498-2155,"1,231.00",MITREPOINT LTD T/A ROOFCLAD SYSTEMS.
Children and Young Peoples Services,Head of Education and Skills,Transport,230008,Contract Hire,06/12/2022,4076499-20220007,"5,200.00",MOSSOPS LUXURY TRAVEL.
Children and Young Peoples Services,Head of Education and Skills,Transport,230007,Contract Hire,06/12/2022,4076543-3NOVEMBER2022,"2,925.30",NC TAXI`S.
Dedicated Schools Grant BG0015,DSG Early Years Block,Transfer Payments,510032,School Children,06/12/2022,4076546-33029,"2,297.40",NELLIE`S DAY NURSERY LTD.
Dedicated Schools Grant BG0015,DSG Early Years Block,Transfer Payments,510030,School Children,06/12/2022,4076546-33280,"13,437.22",NELLIE`S DAY NURSERY LTD.
Dedicated Schools Grant BG0015,DSG Early Years Block,Transfer Payments,510032,School Children,06/12/2022,4076548-33030,"2,010.22",NEW BEGINNINGS (MOORSIDE) CO LTD.
Dedicated Schools Grant BG0015,DSG Early Years Block,Transfer Payments,510030,School Children,06/12/2022,4076548-33281,"14,077.17",NEW BEGINNINGS (MOORSIDE) CO LTD.
Neighbourhoods and Climate Change,Environmental Services,Transport,210057,Repair and Maintenance of Vehicles,06/12/2022,4076549-21899158,523.59,NORTH EAST TRUCK & VAN LTD.
Dedicated Schools Grant BG0015,DSG Early Years Block,Transfer Payments,510032,School Children,06/12/2022,4076554-33033,"3,060.46",NORTHUMBRIAN TRUST DAY NURSERIES LTD.
Dedicated Schools Grant BG0015,DSG Early Years Block,Transfer Payments,510030,School Children,06/12/2022,4076554-33287,"17,619.20",NORTHUMBRIAN TRUST DAY NURSERIES LTD.
Dedicated Schools Grant BG0015,DSG Early Years Block,Transfer Payments,510032,School Children,06/12/2022,4076555-33031,"7,384.50",NURSERYTIME LTD.
Dedicated Schools Grant BG0015,DSG Early Years Block,Transfer Payments,510030,School Children,06/12/2022,4076555-33283,"10,540.12",NURSERYTIME LTD.
Dedicated Schools Grant BG0015,DSG Early Years Block,Transfer Payments,510030,School Children,06/12/2022,4076557-33284,"4,071.67",OLD BRIDGE NURSERY.
Children and Young Peoples Services,Head of Education and Skills,Transport,230008,Contract Hire,06/12/2022,4076571-DCC399,"5,103.71",PAUL`S TAXIS..
Children and Young Peoples Services,Head of Education and Skills,Transport,230007,Contract Hire,06/12/2022,4076572-1161-3037-OCT22,"2,843.84",PBS TRAVEL LTD.
Children and Young Peoples Services,Head of Education and Skills,Transport,230007,Contract Hire,06/12/2022,4076572-1161-3058-OCT22,"2,170.24",PBS TRAVEL LTD.
Children and Young Peoples Services,Head of Education and Skills,Transport,230007,Contract Hire,06/12/2022,4076572-1161-3065-OCT22,"1,790.40",PBS TRAVEL LTD.
Children and Young Peoples Services,Head of Education and Skills,Transport,230007,Contract Hire,06/12/2022,4076572-1164-3037,"3,910.28",PBS TRAVEL LTD.
Children and Young Peoples Services,Head of Education and Skills,Transport,230007,Contract Hire,06/12/2022,4076573-1164,"2,461.80",PBS TRAVEL LTD.
Children and Young Peoples Services,Head of Education and Skills,Transport,230007,Contract Hire,06/12/2022,4076573-1164-3030,"2,417.14",PBS TRAVEL LTD.
Children and Young Peoples Services,Head of Education and Skills,Transport,230007,Contract Hire,06/12/2022,4076573-1164-3039,"3,799.18",PBS TRAVEL LTD.
Children and Young Peoples Services,Head of Education and Skills,Transport,230007,Contract Hire,06/12/2022,4076573-1164-3058,"2,984.08",PBS TRAVEL LTD.
Children and Young Peoples Services,Head of Education and Skills,Transport,230007,Contract Hire,06/12/2022,4076576-796,"3,370.92",PETERLEE EXECUTIVE CARS.
Children and Young Peoples Services,Head of Education and Skills,Transport,230008,Contract Hire,06/12/2022,4076576-797,"3,960.00",PETERLEE EXECUTIVE CARS.
Children and Young Peoples Services,Head of Education and Skills,Transport,230008,Contract Hire,06/12/2022,4076576-798,910.00,PETERLEE EXECUTIVE CARS.
Children and Young Peoples Services,Head of Education and Skills,Transport,230034,Contract Hire,06/12/2022,4076578-3422-NOV22,"1,243.44",PETER`S TAXIS.
Children and Young Peoples Services,Head of Education and Skills,Transport,230035,Contract Hire,06/12/2022,4076578-3482-NOV22,"2,010.58",PETER`S TAXIS.
Children and Young Peoples Services,Head of Education and Skills,Transport,230003,Contract Hire,06/12/2022,4076578-3501-NOV22,"1,760.00",PETER`S TAXIS.
Children and Young Peoples Services,Head of Education and Skills,Transport,230034,Contract Hire,06/12/2022,4076578-5294-NOV22,"2,030.36",PETER`S TAXIS.
Children and Young Peoples Services,Head of Education and Skills,Transport,230006,Contract Hire,06/12/2022,4076578-F116-NOV22,"1,748.92",PETER`S TAXIS.
Children and Young Peoples Services,Head of Education and Skills,Transport,230034,Contract Hire,06/12/2022,4076580-51900,"4,300.00",PHOENIX TAXIS T/A PRATT`S TAXIS.
Children and Young Peoples Services,Head of Education and Skills,Transport,230007,Contract Hire,06/12/2022,4076580-51902,"2,006.00",PHOENIX TAXIS T/A PRATT`S TAXIS.
Children and Young Peoples Services,Head of Education and Skills,Transport,230008,Contract Hire,06/12/2022,4076580-51903,"4,158.00",PHOENIX TAXIS T/A PRATT`S TAXIS.
Children and Young Peoples Services,Head of Education and Skills,Transport,230006,Contract Hire,06/12/2022,4076580-51908,"1,320.00",PHOENIX TAXIS T/A PRATT`S TAXIS.
Children and Young Peoples Services,Head of Education and Skills,Transport,230006,Contract Hire,06/12/2022,4076580-51909,"5,640.03",PHOENIX TAXIS T/A PRATT`S TAXIS.
Children and Young Peoples Services,Head of Education and Skills,Transport,230016,Contract Hire,06/12/2022,4076580-51910,"2,478.00",PHOENIX TAXIS T/A PRATT`S TAXIS.
Dedicated Schools Grant BG0015,DSG Early Years Block,Transfer Payments,510032,School Children,06/12/2022,4076583-33034,"5,456.32",PLAYDAY NURSERY.
Dedicated Schools Grant BG0015,DSG Early Years Block,Transfer Payments,510030,School Children,06/12/2022,4076583-33288,"10,118.60",PLAYDAY NURSERY.
Dedicated Schools Grant BG0015,DSG Early Years Block,Transfer Payments,510030,School Children,06/12/2022,4076584-33289,"5,377.07",PLAYOLOGY LTD.
Children and Young Peoples Services,Head of Education and Skills,Transport,230008,Contract Hire,06/12/2022,4076585-1393,"3,454.00",PODA TAXIS LTD.
Children and Young Peoples Services,Head of Education and Skills,Transport,230008,Contract Hire,06/12/2022,4076587-TH12,"2,717.11",PRESTYS HACKNEY & PRIVATE HIRE TAXIS.
Dedicated Schools Grant BG0015,DSG Early Years Block,Transfer Payments,510030,School Children,06/12/2022,4076594-33294,"6,542.62",RAINBOW NURSERY DURHAM HIGH SCHOOL.
Dedicated Schools Grant BG0015,DSG Early Years Block,Transfer Payments,510032,School Children,06/12/2022,4076595-33038,"4,389.67",RAINBOW NURSERY LTD (MIDDLESTONE MOOR).
Dedicated Schools Grant BG0015,DSG Early Years Block,Transfer Payments,510030,School Children,06/12/2022,4076595-33295,"20,159.45",RAINBOW NURSERY LTD (MIDDLESTONE MOOR).
Adult and Health Services,Head of Adults,Transport,230005,Contract Hire,06/12/2022,4076596-SI-22009,"1,680.00",RAPID MINIBUSES.
Children and Young Peoples Services,Head of Education and Skills,Transport,230006,Contract Hire,06/12/2022,4076599-RDS084,"1,728.00",RDS TAXI.
Dedicated Schools Grant BG0015,DSG Early Years Block,Transfer Payments,510030,School Children,06/12/2022,4076603-33297,"26,783.10",RIBBON ACADEMY TRUST.
Dedicated Schools Grant BG0015,DSG Early Years Block,Transfer Payments,510032,School Children,06/12/2022,4076604-33039,"6,539.16",RIBBON DAYCARE.
Dedicated Schools Grant BG0015,DSG Early Years Block,Transfer Payments,510030,School Children,06/12/2022,4076604-33298,"16,468.15",RIBBON DAYCARE.
Children and Young Peoples Services,Head of Education and Skills,Transport,230006,Contract Hire,06/12/2022,4076609-SI-63,"2,563.00",ROBBIE`S PRIVATE HIRE.
Children and Young Peoples Services,Head of Education and Skills,Transport,230008,Contract Hire,06/12/2022,4076609-SI-64,"3,391.50",ROBBIE`S PRIVATE HIRE.
Children and Young Peoples Services,Head of Education and Skills,Transport,230016,Contract Hire,06/12/2022,4076609-SI-65,"2,578.00",ROBBIE`S PRIVATE HIRE.
Children and Young Peoples Services,Head of Education and Skills,Transport,230012,Contract Hire,06/12/2022,4076609-SI-66,"2,288.00",ROBBIE`S PRIVATE HIRE.
Children and Young Peoples Services,Head of Education and Skills,Transport,230006,Contract Hire,06/12/2022,4076609-SI-67,"2,250.00",ROBBIE`S PRIVATE HIRE.
Children and Young Peoples Services,Head of Education and Skills,Transport,230007,Contract Hire,06/12/2022,4076610-1836,"6,195.00",ROBERTS TOURS.
Children and Young Peoples Services,Head of Education and Skills,Transport,230007,Contract Hire,06/12/2022,4076610-1837,"4,147.50",ROBERTS TOURS.
Children and Young Peoples Services,Head of Education and Skills,Transport,230007,Contract Hire,06/12/2022,4076610-1838,"4,551.75",ROBERTS TOURS.
Children and Young Peoples Services,Head of Education and Skills,Transport,230007,Contract Hire,06/12/2022,4076610-1839,"7,641.48",ROBERTS TOURS.
Regeneration Economy and Growth,Business Durham CL0850,Construction work A908,908105,Construction work,06/12/2022,4076611-RCPX3706,"19,900.00",ROBERTSON CAPITAL PROJECTS.
Regeneration Economy and Growth,Business Durham CL0850,Construction work A908,908105,Construction work,06/12/2022,4076611-RCPX3707,750.00,ROBERTSON CAPITAL PROJECTS.
Children and Young Peoples Services,Head of Education and Skills,Transport,230008,Contract Hire,06/12/2022,4076614-0011,"3,495.80",RONS TAXI (CHESTER LE ST).
Adult and Health Services,Head of Adults,Transport,230005,Contract Hire,06/12/2022,4076615-1919,"1,574.15",RON`S TAXIS (FISHBURN).
Children and Young Peoples Services,Head of Education and Skills,Transport,230007,Contract Hire,06/12/2022,4076615-1920,"1,407.78",RON`S TAXIS (FISHBURN).
Children and Young Peoples Services,Head of Education and Skills,Transport,230006,Contract Hire,06/12/2022,4076615-1921,"3,792.11",RON`S TAXIS (FISHBURN).
Children and Young Peoples Services,Head of Education and Skills,Transport,230003,Contract Hire,06/12/2022,4076616-ROXDCC292,"10,560.00",ROXBYS BUS HIRE.
Children and Young Peoples Services,Head of Education and Skills,Transport,230003,Contract Hire,06/12/2022,4076616-ROXDCC293,"3,284.82",ROXBYS BUS HIRE.
Children and Young Peoples Services,Head of Education and Skills,Transport,230007,Contract Hire,06/12/2022,4076616-ROXDCC294,"5,880.00",ROXBYS BUS HIRE.
Resources BK0010,Transactional & Customer Services,Supplies and Services,340001,Postages E340,06/12/2022,4076617-9066031405,"12,724.59",ROYAL MAIL GROUP PLC.
Children and Young Peoples Services,Head of Education and Skills,Transport,230006,Contract Hire,06/12/2022,4076619-F115/01,"2,772.36",S & S TRAVEL LTD.
Children and Young Peoples Services,Head of Education and Skills,Transport,230006,Contract Hire,06/12/2022,4076619-F115/03,"3,590.88",S & S TRAVEL LTD.
Children and Young Peoples Services,Head of Education and Skills,Transport,230006,Contract Hire,06/12/2022,4076619-F240/03,"3,521.20",S & S TRAVEL LTD.
Children and Young Peoples Services,Head of Education and Skills,Transport,230008,Contract Hire,06/12/2022,4076619-S009/40,"3,863.86",S & S TRAVEL LTD.
Children and Young Peoples Services,Head of Education and Skills,Transport,230008,Contract Hire,06/12/2022,4076619-S017/68,"2,823.48",S & S TRAVEL LTD.
Children and Young Peoples Services,Head of Education and Skills,Transport,230016,Contract Hire,06/12/2022,4076619-S101/39,621.70,S & S TRAVEL LTD.
Adult and Health Services,Head of Adults,Transport,230005,Contract Hire,06/12/2022,4076619-SED112/44,"1,810.98",S & S TRAVEL LTD.
Children and Young Peoples Services,Head of Education and Skills,Transport,230008,Contract Hire,06/12/2022,4076619-W014/39,"3,793.80",S & S TRAVEL LTD.
Children and Young Peoples Services,Head of Education and Skills,Transport,230008,Contract Hire,06/12/2022,4076619-W032/40,"3,774.54",S & S TRAVEL LTD.
Children and Young Peoples Services,Head of Education and Skills,Transport,230008,Contract Hire,06/12/2022,4076619-W036/15,"3,590.40",S & S TRAVEL LTD.
Children and Young Peoples Services,Head of Education and Skills,Transport,230008,Contract Hire,06/12/2022,4076619-W067/39,"3,751.44",S & S TRAVEL LTD.
Children and Young Peoples Services,Head of Education and Skills,Transport,230008,Contract Hire,06/12/2022,4076619-W076/39,"3,679.50",S & S TRAVEL LTD.
Children and Young Peoples Services,Head of Education and Skills,Transport,230008,Contract Hire,06/12/2022,4076619-W178/22,"1,942.38",S & S TRAVEL LTD.
Dedicated Schools Grant BG0015,DSG Early Years Block,Transfer Payments,510030,School Children,06/12/2022,4076621-33300,"12,644.00",SACRISTON ACADEMY - EARLY YEARS T/A PRIVATE NURSERY.
Children and Young Peoples Services,Head of Education and Skills,Transport,230008,Contract Hire,06/12/2022,4076622-AGB1014,"2,790.48",SAFELINE TRAVEL.
Dedicated Schools Grant BG0015,DSG Early Years Block,Transfer Payments,510032,School Children,06/12/2022,4076624-33041,"1,148.70",SAPLINGS NATURE KINDERGARTEN & FOREST SCHOOL.
Dedicated Schools Grant BG0015,DSG Early Years Block,Transfer Payments,510030,School Children,06/12/2022,4076624-33301,"4,293.75",SAPLINGS NATURE KINDERGARTEN & FOREST SCHOOL.
Dedicated Schools Grant BG0015,DSG Early Years Block,Transfer Payments,510032,School Children,06/12/2022,4076633-33046,"4,069.68",SEASIDE LANE NURSERY.
Dedicated Schools Grant BG0015,DSG Early Years Block,Transfer Payments,510030,School Children,06/12/2022,4076633-33306,"3,659.62",SEASIDE LANE NURSERY.
Resources - C A C,Resources - C A C- Level C,Supplies and Services,338066,Services,06/12/2022,4076635-INV-1427,"4,014.00",SECURITY RISK MANAGEMENT LTD.
Dedicated Schools Grant BG0015,DSG Early Years Block,Transfer Payments,510030,School Children,06/12/2022,4076636-33308,"2,159.82",SEDGEFIELD OUT OF SCHOOL FUN CLUB.
Dedicated Schools Grant BG0015,DSG Early Years Block,Transfer Payments,510030,School Children,06/12/2022,4076640-33311,"32,820.30",SHIELD ROW ACADEMY.
Dedicated Schools Grant BG0015,DSG Early Years Block,Transfer Payments,510030,School Children,06/12/2022,4076641-33312,"4,124.84",SHINING STARS PARKHILL LTD.
Dedicated Schools Grant BG0015,DSG Early Years Block,Transfer Payments,510032,School Children,06/12/2022,4076642-33050,"1,435.87",SHOTLEY BRIDGE NURSERY SCHOOL LTD.
Dedicated Schools Grant BG0015,DSG Early Years Block,Transfer Payments,510030,School Children,06/12/2022,4076642-33313,"9,532.05",SHOTLEY BRIDGE NURSERY SCHOOL LTD.
Children and Young Peoples Services,Head of Education and Skills,Transport,230008,Contract Hire,06/12/2022,4076644-221103,"1,044.00",SHOTTON PRIVATE HIRE.
Children and Young Peoples Services,Head of Education and Skills,Transport,230008,Contract Hire,06/12/2022,4076644-221104,580.06,SHOTTON PRIVATE HIRE.
Children and Young Peoples Services,Head of Education and Skills,Transport,230008,Contract Hire,06/12/2022,4076644-221203,"3,888.50",SHOTTON PRIVATE HIRE.
Children and Young Peoples Services,Head of Education and Skills,Transport,230008,Contract Hire,06/12/2022,4076644-221204,"4,084.05",SHOTTON PRIVATE HIRE.
Children and Young Peoples Services,Head of Education and Skills,Transport,230008,Contract Hire,06/12/2022,4076644-221205,"3,167.56",SHOTTON PRIVATE HIRE.
Children and Young Peoples Services,Head of Education and Skills,Transport,230008,Contract Hire,06/12/2022,4076644-221206,"3,767.90",SHOTTON PRIVATE HIRE.
Children and Young Peoples Services,Head of Education and Skills,Transport,230007,Contract Hire,06/12/2022,4076647-3441,"3,217.76",SIMONS TAXIS.
Children and Young Peoples Services,Head of Education and Skills,Transport,230007,Contract Hire,06/12/2022,4076647-3445,"2,064.70",SIMONS TAXIS.
Children and Young Peoples Services,Head of Education and Skills,Transport,230006,Contract Hire,06/12/2022,4076647-3446,"2,024.00",SIMONS TAXIS.
Dedicated Schools Grant BG0015,DSG Early Years Block,Transfer Payments,510032,School Children,06/12/2022,4076655-33052,"3,269.80",ST OSWALD`S PRE SCHOOL LEARNING CENTRE.
Dedicated Schools Grant BG0015,DSG Early Years Block,Transfer Payments,510030,School Children,06/12/2022,4076655-33326,"20,661.29",ST OSWALD`S PRE SCHOOL LEARNING CENTRE.
Dedicated Schools Grant BG0015,DSG Early Years Block,Transfer Payments,510030,School Children,06/12/2022,4076657-33316,"10,167.37",STANLEY LEARNING PARTNERSHIP.
Dedicated Schools Grant BG0015,DSG Early Years Block,Transfer Payments,510030,School Children,06/12/2022,4076658-33150,"3,850.29",STANLEY LEARNING PARTNERSHIP.
Dedicated Schools Grant BG0015,DSG Early Years Block,Transfer Payments,510032,School Children,06/12/2022,4076659-33010,"4,594.80",STANLEY LEARNING PARTNERSHIP.
Dedicated Schools Grant BG0015,DSG Early Years Block,Transfer Payments,510030,School Children,06/12/2022,4076659-33248,"12,956.40",STANLEY LEARNING PARTNERSHIP.
Dedicated Schools Grant BG0015,DSG Early Years Block,Transfer Payments,510032,School Children,06/12/2022,4076660-32943,861.52,STANLEY LEARNING PARTNERSHIP.
Dedicated Schools Grant BG0015,DSG Early Years Block,Transfer Payments,510030,School Children,06/12/2022,4076660-33143,"7,861.50",STANLEY LEARNING PARTNERSHIP.
Dedicated Schools Grant BG0015,DSG High Needs Block,Central Support and Other Recharges,615092,Support Services,06/12/2022,4076661-RES-12-2022-026,"2,859.00",STANLEY LEARNING PARTNERSHIP.
Regeneration Economy and Growth,Corporate Property and Land,Third Party Payments,430100,Rendered by Private Contractors,06/12/2022,4076663-18756,"2,730.00",STEADFAST SECURITY SOLUTIONS LTD.
Dedicated Schools Grant BG0015,DSG Early Years Block,Transfer Payments,510030,School Children,06/12/2022,4076668-33331,"17,568.30",STEPHENSON WAY ACADEMY & NURSERY SCHOOL.
Dedicated Schools Grant BG0015,DSG Early Years Block,Transfer Payments,510030,School Children,06/12/2022,4076669-33332,"2,581.50",STEPPING STONES DAY NURSERY (DURHAM).
Dedicated Schools Grant BG0015,DSG Early Years Block,Transfer Payments,510032,School Children,06/12/2022,4076676-33055,"5,456.32",SUNSHINE DAY NURSERY LTD.
Dedicated Schools Grant BG0015,DSG Early Years Block,Transfer Payments,510030,School Children,06/12/2022,4076676-33335,"18,714.07",SUNSHINE DAY NURSERY LTD.
Dedicated Schools Grant BG0015,DSG Early Years Block,Transfer Payments,510032,School Children,06/12/2022,4076677-33053,"10,461.37",SUNSHINE DAY NURSERY LTD.
Dedicated Schools Grant BG0015,DSG Early Years Block,Transfer Payments,510030,School Children,06/12/2022,4076677-33333,"20,933.46",SUNSHINE DAY NURSERY LTD.
Dedicated Schools Grant BG0015,DSG Early Years Block,Transfer Payments,510032,School Children,06/12/2022,4076678-33054,"3,528.15",SUNSHINE DAY NURSERY LTD.
Dedicated Schools Grant BG0015,DSG Early Years Block,Transfer Payments,510030,School Children,06/12/2022,4076678-33334,"19,652.35",SUNSHINE DAY NURSERY LTD.
Children and Young Peoples Services,Head of Education and Skills,Transport,230006,Contract Hire,06/12/2022,4076684-DCC/2022/20,"4,145.35",TAYLOR`S TAXIS.
Dedicated Schools Grant BG0015,DSG Early Years Block,Transfer Payments,510030,School Children,06/12/2022,4076690-33307,"20,394.92",THE LAIDLAW SCHOOLS TRUST T/A SEDGEFIELD HARDWICK PRIMARY SCHOOL.
Dedicated Schools Grant BG0015,DSG Early Years Block,Transfer Payments,510032,School Children,06/12/2022,4076691-33057,"3,446.10",THE LAURELS CHILD CARE COMPANY LTD.
Dedicated Schools Grant BG0015,DSG Early Years Block,Transfer Payments,510030,School Children,06/12/2022,4076691-33341,"12,298.74",THE LAURELS CHILD CARE COMPANY LTD.
Dedicated Schools Grant BG0015,DSG Early Years Block,Transfer Payments,510032,School Children,06/12/2022,4076692-33058,"7,015.27",THE NURSERY.
Dedicated Schools Grant BG0015,DSG Early Years Block,Transfer Payments,510030,School Children,06/12/2022,4076692-33342,"19,790.45",THE NURSERY.
Dedicated Schools Grant BG0015,DSG Early Years Block,Transfer Payments,510032,School Children,06/12/2022,4076697-33059,"2,584.57",TILLY MINTS CHERUBS DAY NURSERY LTD.
Dedicated Schools Grant BG0015,DSG Early Years Block,Transfer Payments,510030,School Children,06/12/2022,4076697-33343,"15,563.37",TILLY MINTS CHERUBS DAY NURSERY LTD.
Dedicated Schools Grant BG0015,DSG Early Years Block,Transfer Payments,510032,School Children,06/12/2022,4076699-32996,"5,948.62",TM NURSERY ENTERPRISES LTD T/A JACK IN THE BOX DAYCARE.
Dedicated Schools Grant BG0015,DSG Early Years Block,Transfer Payments,510030,School Children,06/12/2022,4076699-33217,"12,471.55",TM NURSERY ENTERPRISES LTD T/A JACK IN THE BOX DAYCARE.
Regeneration Economy and Growth,Corporate Property and Land,Supplies and Services,304221,Equipment and Materials,06/12/2022,4076702-37300,"3,615.00",TOTAL PUMP SOLUTIONS LTD.
Dedicated Schools Grant BG0015,DSG Early Years Block,Transfer Payments,510032,School Children,06/12/2022,4076704-33060,"8,040.90",TOTS `R` US.
Dedicated Schools Grant BG0015,DSG Early Years Block,Transfer Payments,510030,School Children,06/12/2022,4076704-33344,"7,950.48",TOTS `R` US.
Children and Young Peoples Services,Head of Education and Skills,Transport,230034,Contract Hire,06/12/2022,4076709-SH00013,"1,254.76",TRAVEL 6.
Children and Young Peoples Services,Head of Education and Skills,Transport,230007,Contract Hire,06/12/2022,4076709-TCP0003,"1,320.00",TRAVEL 6.
Children and Young Peoples Services,Head of Education and Skills,Transport,230008,Contract Hire,06/12/2022,4076710-13/11,"3,135.52",TRIDENT TAXIS.
Children and Young Peoples Services,Head of Education and Skills,Transport,230008,Contract Hire,06/12/2022,4076710-14/11,"2,810.67",TRIDENT TAXIS.
Dedicated Schools Grant BG0015,DSG Early Years Block,Transfer Payments,510030,School Children,06/12/2022,4076711-33347,"1,813.05",TRIMDON`S LITTLE TYKES LTD.
Dedicated Schools Grant BG0015,DSG Early Years Block,Transfer Payments,510030,School Children,06/12/2022,4076712-33315,"17,018.55",TUDHOE LEARNING TRUST T/A SOUTH HETTON PRIMARY SCHOOL.
Dedicated Schools Grant BG0015,DSG Early Years Block,Transfer Payments,510032,School Children,06/12/2022,4076716-32970,"3,938.40",UNIVERSITY OF DURHAM DAY NURSERY.
Dedicated Schools Grant BG0015,DSG Early Years Block,Transfer Payments,510030,School Children,06/12/2022,4076716-33183,"6,518.70",UNIVERSITY OF DURHAM DAY NURSERY.
Dedicated Schools Grant BG0015,DSG Early Years Block,Transfer Payments,510030,School Children,06/12/2022,4076718-33350,"8,465.62",VICTORIA LANE ACADEMY.
Regeneration Economy and Growth,Culture Sport and Tourism,Supplies and Services,338047,Services,06/12/2022,4076721-1991674,"1,081.21",WALT DISNEY CO LTD.
Regeneration Economy and Growth,Culture Sport and Tourism,Supplies and Services,338047,Services,06/12/2022,4076721-1991696,"2,398.75",WALT DISNEY CO LTD.
Children and Young Peoples Services,Head of Education and Skills,Transport,230007,Contract Hire,06/12/2022,4076724-0003540,"2,156.00",WATSONS OF SPENNYMOOR.
Children and Young Peoples Services,Head of Education and Skills,Transport,230008,Contract Hire,06/12/2022,4076724-0003541,"3,278.00",WATSONS OF SPENNYMOOR.
Children and Young Peoples Services,Head of Education and Skills,Transport,230008,Contract Hire,06/12/2022,4076724-0003542,"3,054.04",WATSONS OF SPENNYMOOR.
Dedicated Schools Grant BG0015,DSG Early Years Block,Transfer Payments,510032,School Children,06/12/2022,4076725-32958,"1,764.07",WAYMAN DEVELOPMENTS LTD T/A CHILDSPLAY PRIVATE NURSERY.
Dedicated Schools Grant BG0015,DSG Early Years Block,Transfer Payments,510030,School Children,06/12/2022,4076725-33162,"25,397.79",WAYMAN DEVELOPMENTS LTD T/A CHILDSPLAY PRIVATE NURSERY.
Dedicated Schools Grant BG0015,DSG Early Years Block,Transfer Payments,510032,School Children,06/12/2022,4076726-32957,"2,018.43",WAYMAN DEVELOPMENTS LTD T/A CHILDSPLAY PRIVATE NURSERY.
Dedicated Schools Grant BG0015,DSG Early Years Block,Transfer Payments,510030,School Children,06/12/2022,4076726-33161,"6,781.26",WAYMAN DEVELOPMENTS LTD T/A CHILDSPLAY PRIVATE NURSERY.
Children and Young Peoples Services,Head of Education and Skills,Transport,230007,Contract Hire,06/12/2022,4076727-7679,"4,169.50",WEARDALE PRIVATE HIRE.
Children and Young Peoples Services,Head of Education and Skills,Transport,230007,Contract Hire,06/12/2022,4076727-7680,"2,960.76",WEARDALE PRIVATE HIRE.
Children and Young Peoples Services,Head of Education and Skills,Transport,230004,Contract Hire,06/12/2022,4076727-7681,"3,047.00",WEARDALE PRIVATE HIRE.
Children and Young Peoples Services,Head of Education and Skills,Transport,230004,Contract Hire,06/12/2022,4076727-7682,"1,859.00",WEARDALE PRIVATE HIRE.
Children and Young Peoples Services,Head of Education and Skills,Transport,230004,Contract Hire,06/12/2022,4076727-7683,"1,265.66",WEARDALE PRIVATE HIRE.
Children and Young Peoples Services,Head of Education and Skills,Transport,230008,Contract Hire,06/12/2022,4076727-7687,"4,224.66",WEARDALE PRIVATE HIRE.
Children and Young Peoples Services,Head of Education and Skills,Transport,230008,Contract Hire,06/12/2022,4076727-7688,"6,541.26",WEARDALE PRIVATE HIRE.
Children and Young Peoples Services,Head of Education and Skills,Transport,230008,Contract Hire,06/12/2022,4076730-1539055,"2,396.02",WENDYS` TAXIS.
Children and Young Peoples Services,Head of Education and Skills,Transport,230008,Contract Hire,06/12/2022,4076730-1539555,"2,056.85",WENDYS` TAXIS.
Dedicated Schools Grant BG0015,DSG Early Years Block,Transfer Payments,510032,School Children,06/12/2022,4076732-33066,"1,846.12",WESTFIELD HOUSE NURSERY.
Dedicated Schools Grant BG0015,DSG Early Years Block,Transfer Payments,510030,School Children,06/12/2022,4076732-33353,"10,098.90",WESTFIELD HOUSE NURSERY.
Children and Young Peoples Services,Head of Education and Skills,Transport,230008,Contract Hire,06/12/2022,4076733-WESTLEA301122,"2,980.78",WESTLEA TAXIS.
Dedicated Schools Grant BG0015,DSG Early Years Block,Transfer Payments,510030,School Children,06/12/2022,4076734-33354,"6,873.90",WHEATLEY HILL COMMUNITY NURSERY LTD.
Dedicated Schools Grant BG0015,DSG Early Years Block,Transfer Payments,510032,School Children,06/12/2022,4076735-33067,"7,589.62",WINGATE COMMUNITY CHILDCARE LTD.
Dedicated Schools Grant BG0015,DSG Early Years Block,Transfer Payments,510030,School Children,06/12/2022,4076735-33355,"6,075.00",WINGATE COMMUNITY CHILDCARE LTD.
Dedicated Schools Grant BG0015,DSG Early Years Block,Transfer Payments,510030,School Children,06/12/2022,4076736-33356,"12,487.33",WITTON GILBERT PRE SCHOOL.
Dedicated Schools Grant BG0015,DSG Early Years Block,Transfer Payments,510032,School Children,06/12/2022,4076738-33070,574.35,YORK HOUSE NURSERY.
Dedicated Schools Grant BG0015,DSG Early Years Block,Transfer Payments,510030,School Children,06/12/2022,4076738-33359,"7,404.36",YORK HOUSE NURSERY.
Children and Young Peoples Services,Head of Education and Skills,Transport,230006,Contract Hire,06/12/2022,4076148-649,"1,200.00",REDACTED - PAYMENT TO INDIVIDUAL
Children and Young Peoples Services,Head of Education and Skills,Transport,230007,Contract Hire,06/12/2022,4076149-0299,"3,256.00",REDACTED - PAYMENT TO INDIVIDUAL
Children and Young Peoples Services,Head of Education and Skills,Transport,230034,Contract Hire,06/12/2022,4076149-0300,"3,022.50",REDACTED - PAYMENT TO INDIVIDUAL
Regeneration Economy and Growth,Culture Sport and Tourism,Supplies and Services,384199,Miscellaneous Expenses,06/12/2022,4076162-00160,"2,000.00",REDACTED - PAYMENT TO INDIVIDUAL
Children and Young Peoples Services,Head of Education and Skills,Transport,230008,Contract Hire,06/12/2022,4076164-66,"4,498.56",REDACTED - PAYMENT TO INDIVIDUAL
Children and Young Peoples Services,Head of Education and Skills,Transport,230008,Contract Hire,06/12/2022,4076164-67,"3,685.00",REDACTED - PAYMENT TO INDIVIDUAL
Children and Young Peoples Services,Head of Education and Skills,Transport,230009,Contract Hire,06/12/2022,4076165-3-7384,"1,999.58",REDACTED - PAYMENT TO INDIVIDUAL
Adult and Health Services,Head of Adults,Transport,230005,Contract Hire,06/12/2022,4076165-3-DW138,756.00,REDACTED - PAYMENT TO INDIVIDUAL
Dedicated Schools Grant BG0015,DSG Early Years Block,Transfer Payments,510030,School Children,06/12/2022,4076166-33127,907.80,REDACTED - PAYMENT TO INDIVIDUAL
Dedicated Schools Grant BG0015,DSG Early Years Block,Transfer Payments,510030,School Children,06/12/2022,4076168-33130,873.60,REDACTED - PAYMENT TO INDIVIDUAL
Dedicated Schools Grant BG0015,DSG Early Years Block,Transfer Payments,510032,School Children,06/12/2022,4076171-32938,574.35,REDACTED - PAYMENT TO INDIVIDUAL
Dedicated Schools Grant BG0015,DSG Early Years Block,Transfer Payments,510030,School Children,06/12/2022,4076174-33134,"1,563.11",REDACTED - PAYMENT TO INDIVIDUAL
Children and Young Peoples Services,Head of Education and Skills,Transport,230008,Contract Hire,06/12/2022,4076176-00791,"4,348.74",REDACTED - PAYMENT TO INDIVIDUAL
Adult and Health Services,Head of Adults,Transport,230005,Contract Hire,06/12/2022,4076176-00792,"3,300.00",REDACTED - PAYMENT TO INDIVIDUAL
Children and Young Peoples Services,Head of Education and Skills,Transport,230016,Contract Hire,06/12/2022,4076176-00793,"3,727.24",REDACTED - PAYMENT TO INDIVIDUAL
Children and Young Peoples Services,Head of Education and Skills,Transport,230012,Contract Hire,06/12/2022,4076176-007971,"3,832.40",REDACTED - PAYMENT TO INDIVIDUAL
Children and Young Peoples Services,Head of Education and Skills,Transport,230008,Contract Hire,06/12/2022,4076176-00799,"3,560.70",REDACTED - PAYMENT TO INDIVIDUAL
Children and Young Peoples Services,Head of Education and Skills,Transport,230008,Contract Hire,06/12/2022,4076176-00800,"4,796.00",REDACTED - PAYMENT TO INDIVIDUAL
Children and Young Peoples Services,Head of Education and Skills,Transport,230006,Contract Hire,06/12/2022,4076176-00805,"1,722.00",REDACTED - PAYMENT TO INDIVIDUAL
Children and Young Peoples Services,Head of Education and Skills,Transport,230008,Contract Hire,06/12/2022,4076176-00806,"3,036.00",REDACTED - PAYMENT TO INDIVIDUAL
Children and Young Peoples Services,Head of Education and Skills,Transport,230016,Contract Hire,06/12/2022,4076176-00808,"3,476.00",REDACTED - PAYMENT TO INDIVIDUAL
Children and Young Peoples Services,Head of Education and Skills,Transport,230008,Contract Hire,06/12/2022,4076176-00809,"2,860.00",REDACTED - PAYMENT TO INDIVIDUAL
Children and Young Peoples Services,Head of Education and Skills,Transport,230006,Contract Hire,06/12/2022,4076176-00812,"1,136.00",REDACTED - PAYMENT TO INDIVIDUAL
Children and Young Peoples Services,Head of Education and Skills,Transport,230034,Contract Hire,06/12/2022,4076176-00814,"1,360.00",REDACTED - PAYMENT TO INDIVIDUAL
Children and Young Peoples Services,Head of Education and Skills,Transport,230008,Contract Hire,06/12/2022,4076176-00815,"3,744.00",REDACTED - PAYMENT TO INDIVIDUAL
Dedicated Schools Grant BG0015,DSG Early Years Block,Transfer Payments,510032,School Children,06/12/2022,4076178-32939,"1,599.97",REDACTED - PAYMENT TO INDIVIDUAL
Dedicated Schools Grant BG0015,DSG Early Years Block,Transfer Payments,510030,School Children,06/12/2022,4076178-33137,675.00,REDACTED - PAYMENT TO INDIVIDUAL
Dedicated Schools Grant BG0015,DSG Early Years Block,Transfer Payments,510032,School Children,06/12/2022,4076197-32941,"2,428.68",REDACTED - PAYMENT TO INDIVIDUAL
Dedicated Schools Grant BG0015,DSG Early Years Block,Transfer Payments,510030,School Children,06/12/2022,4076197-33139,"6,245.04",REDACTED - PAYMENT TO INDIVIDUAL
Dedicated Schools Grant BG0015,DSG Early Years Block,Transfer Payments,510030,School Children,06/12/2022,4076241-33155,"1,119.60",REDACTED - PAYMENT TO INDIVIDUAL
Adult and Health Services,Head of Adults,Transport,230005,Contract Hire,06/12/2022,4076253-NOV22-EAS199,"1,199.00",REDACTED - PAYMENT TO INDIVIDUAL
Children and Young Peoples Services,Head of Education and Skills,Transport,230007,Contract Hire,06/12/2022,4076254-47608,"3,359.58",REDACTED - PAYMENT TO INDIVIDUAL
Children and Young Peoples Services,Head of Education and Skills,Transport,230003,Contract Hire,06/12/2022,4076254-47609,"3,797.85",REDACTED - PAYMENT TO INDIVIDUAL
Children and Young Peoples Services,Head of Education and Skills,Transport,230003,Contract Hire,06/12/2022,4076254-47610,"3,515.61",REDACTED - PAYMENT TO INDIVIDUAL
Children and Young Peoples Services,Head of Education and Skills,Transport,230007,Contract Hire,06/12/2022,4076254-47611,"6,415.86",REDACTED - PAYMENT TO INDIVIDUAL
Children and Young Peoples Services,Head of Education and Skills,Transport,230003,Contract Hire,06/12/2022,4076254-47612,"3,718.00",REDACTED - PAYMENT TO INDIVIDUAL
Children and Young Peoples Services,Head of Education and Skills,Transport,230003,Contract Hire,06/12/2022,4076254-47613,"3,871.34",REDACTED - PAYMENT TO INDIVIDUAL
Children and Young Peoples Services,Head of Education and Skills,Transport,230034,Contract Hire,06/12/2022,4076255-5260/14,"1,454.64",REDACTED - PAYMENT TO INDIVIDUAL
Children and Young Peoples Services,Head of Education and Skills,Transport,230034,Contract Hire,06/12/2022,4076255-5289/14,"3,043.00",REDACTED - PAYMENT TO INDIVIDUAL
Children and Young Peoples Services,Head of Education and Skills,Transport,230006,Contract Hire,06/12/2022,4076255-F870/03,644.00,REDACTED - PAYMENT TO INDIVIDUAL
Dedicated Schools Grant BG0015,DSG Early Years Block,Transfer Payments,510032,School Children,06/12/2022,4076260-32959,"3,733.27",REDACTED - PAYMENT TO INDIVIDUAL
Dedicated Schools Grant BG0015,DSG Early Years Block,Transfer Payments,510030,School Children,06/12/2022,4076260-33166,"1,760.40",REDACTED - PAYMENT TO INDIVIDUAL
Children and Young Peoples Services,Head of Education and Skills,Transport,230006,Contract Hire,06/12/2022,4076269-003-NOV22,969.48,REDACTED - PAYMENT TO INDIVIDUAL
Children and Young Peoples Services,Head of Education and Skills,Transport,230006,Contract Hire,06/12/2022,4076281-INV-0027,"2,860.00",REDACTED - PAYMENT TO INDIVIDUAL
Children and Young Peoples Services,Head of Education and Skills,Transport,230034,Contract Hire,06/12/2022,4076282-5,"1,750.00",REDACTED - PAYMENT TO INDIVIDUAL
Children and Young Peoples Services,Head of Education and Skills,Transport,230006,Contract Hire,06/12/2022,4076282-6,"3,390.36",REDACTED - PAYMENT TO INDIVIDUAL
Children and Young Peoples Services,Head of Education and Skills,Transport,230008,Contract Hire,06/12/2022,4076283-B70,"2,717.73",REDACTED - PAYMENT TO INDIVIDUAL
Adult and Health Services,Head of Adults,Transport,230005,Contract Hire,06/12/2022,4076283-B71,"1,540.00",REDACTED - PAYMENT TO INDIVIDUAL
Dedicated Schools Grant BG0015,DSG Early Years Block,Transfer Payments,510030,School Children,06/12/2022,4076317-33187,"1,951.20",REDACTED - PAYMENT TO INDIVIDUAL
Dedicated Schools Grant BG0015,DSG Early Years Block,Transfer Payments,510030,School Children,06/12/2022,4076318-33188,562.28,REDACTED - PAYMENT TO INDIVIDUAL
Children and Young Peoples Services,Head of Education and Skills,Transport,230006,Contract Hire,06/12/2022,4076339-14-NOV22,"2,035.61",REDACTED - PAYMENT TO INDIVIDUAL
Children and Young Peoples Services,Head of Education and Skills,Transport,230006,Contract Hire,06/12/2022,4076339-15-NOV22,"3,838.14",REDACTED - PAYMENT TO INDIVIDUAL
Children and Young Peoples Services,Head of Education and Skills,Transport,230004,Contract Hire,06/12/2022,4076340-73,"2,023.00",REDACTED - PAYMENT TO INDIVIDUAL
Dedicated Schools Grant BG0015,DSG High Needs Block,Transport,230009,Contract Hire,06/12/2022,4076340-74,720.00,REDACTED - PAYMENT TO INDIVIDUAL
Children and Young Peoples Services,Head of Education and Skills,Transport,230006,Contract Hire,06/12/2022,4076340-75,"1,960.00",REDACTED - PAYMENT TO INDIVIDUAL
Adult and Health Services,Head of Adults,Transport,230005,Contract Hire,06/12/2022,4076340-76,880.00,REDACTED - PAYMENT TO INDIVIDUAL
Children and Young Peoples Services,Head of Education and Skills,Transport,230006,Contract Hire,06/12/2022,4076345-TT-BC2211,"1,917.41",REDACTED - PAYMENT TO INDIVIDUAL
Children and Young Peoples Services,Head of Education and Skills,Transport,230006,Contract Hire,06/12/2022,4076345-TT-HK2211,"1,300.07",REDACTED - PAYMENT TO INDIVIDUAL
Children and Young Peoples Services,Head of Education and Skills,Transport,230008,Contract Hire,06/12/2022,4076345-TT-OC2211,"1,860.60",REDACTED - PAYMENT TO INDIVIDUAL
Children and Young Peoples Services,Head of Education and Skills,Transport,230006,Contract Hire,06/12/2022,4076346-3AA,654.00,REDACTED - PAYMENT TO INDIVIDUAL
Children and Young Peoples Services,Head of Education and Skills,Transport,230006,Contract Hire,06/12/2022,4076346-3AA-A,"1,526.00",REDACTED - PAYMENT TO INDIVIDUAL
Dedicated Schools Grant BG0015,DSG Early Years Block,Transfer Payments,510032,School Children,06/12/2022,4076354-33021,"1,435.87",REDACTED - PAYMENT TO INDIVIDUAL
Dedicated Schools Grant BG0015,DSG Early Years Block,Transfer Payments,510030,School Children,06/12/2022,4076354-33263,"3,731.53",REDACTED - PAYMENT TO INDIVIDUAL
Children and Young Peoples Services,Head of Education and Skills,Transport,230006,Contract Hire,06/12/2022,4076360-68,"1,505.98",REDACTED - PAYMENT TO INDIVIDUAL
Dedicated Schools Grant BG0015,DSG Early Years Block,Transfer Payments,510030,School Children,06/12/2022,4076368-33204,"2,280.82",REDACTED - PAYMENT TO INDIVIDUAL
Dedicated Schools Grant BG0015,DSG Early Years Block,Transfer Payments,510030,School Children,06/12/2022,4076370-33206,"1,542.06",REDACTED - PAYMENT TO INDIVIDUAL
Children and Young Peoples Services,Head of Education and Skills,Transport,230007,Contract Hire,06/12/2022,4076390-4409NOV22,"1,151.22",REDACTED - PAYMENT TO INDIVIDUAL
Children and Young Peoples Services,Head of Education and Skills,Transport,230009,Contract Hire,06/12/2022,4076390-7370NOV22,"1,382.93",REDACTED - PAYMENT TO INDIVIDUAL
Adult and Health Services,Head of Adults,Transport,230005,Contract Hire,06/12/2022,4076390-CLS078NOV22,"1,245.60",REDACTED - PAYMENT TO INDIVIDUAL
Children and Young Peoples Services,Head of Education and Skills,Transport,230008,Contract Hire,06/12/2022,4076390-N098NOV22,"1,760.00",REDACTED - PAYMENT TO INDIVIDUAL
Children and Young Peoples Services,Head of Education and Skills,Transport,230009,Contract Hire,06/12/2022,4076390-NOV22-G001,"1,169.54",REDACTED - PAYMENT TO INDIVIDUAL
Dedicated Schools Grant BG0015,DSG Early Years Block,Transfer Payments,510030,School Children,06/12/2022,4076396-33218,682.80,REDACTED - PAYMENT TO INDIVIDUAL
Children and Young Peoples Services,Head of Education and Skills,Transport,230006,Contract Hire,06/12/2022,4076401-DCC03,"2,750.00",REDACTED - PAYMENT TO INDIVIDUAL
Children and Young Peoples Services,Head of Education and Skills,Transport,230007,Contract Hire,06/12/2022,4076401-DCCDA02,"1,936.00",REDACTED - PAYMENT TO INDIVIDUAL
Dedicated Schools Grant BG0015,DSG Early Years Block,Transfer Payments,510032,School Children,06/12/2022,4076407-32965,"11,487.00",REDACTED - PAYMENT TO INDIVIDUAL
Dedicated Schools Grant BG0015,DSG Early Years Block,Transfer Payments,510030,School Children,06/12/2022,4076407-33174,"17,450.63",REDACTED - PAYMENT TO INDIVIDUAL
Dedicated Schools Grant BG0015,DSG Early Years Block,Transfer Payments,510030,School Children,06/12/2022,4076408-33223,"2,462.19",REDACTED - PAYMENT TO INDIVIDUAL
Children and Young Peoples Services,Head of Education and Skills,Transport,230008,Contract Hire,06/12/2022,4076413-136,500.00,REDACTED - PAYMENT TO INDIVIDUAL
Adult and Health Services,Head of Adults,Transport,230005,Contract Hire,06/12/2022,4076414-01112022,"1,846.76",REDACTED - PAYMENT TO INDIVIDUAL
Children and Young Peoples Services,Head of Education and Skills,Transport,230007,Contract Hire,06/12/2022,4076415-277-NOV22,"1,127.00",REDACTED - PAYMENT TO INDIVIDUAL
Adult and Health Services,Head of Adults,Transport,230005,Contract Hire,06/12/2022,4076415-278,964.75,REDACTED - PAYMENT TO INDIVIDUAL
Children and Young Peoples Services,Head of Education and Skills,Transport,230007,Contract Hire,06/12/2022,4076417-0003-NOV22,"1,958.00",REDACTED - PAYMENT TO INDIVIDUAL
Children and Young Peoples Services,Head of Education and Skills,Transport,230008,Contract Hire,06/12/2022,4076417-0045,"3,279.54",REDACTED - PAYMENT TO INDIVIDUAL
Dedicated Schools Grant BG0015,DSG Early Years Block,Transfer Payments,510030,School Children,06/12/2022,4076427-33233,"1,993.20",REDACTED - PAYMENT TO INDIVIDUAL
Dedicated Schools Grant BG0015,DSG Early Years Block,Transfer Payments,510032,School Children,06/12/2022,4076430-33002,861.52,REDACTED - PAYMENT TO INDIVIDUAL
Dedicated Schools Grant BG0015,DSG Early Years Block,Transfer Payments,510030,School Children,06/12/2022,4076430-33237,"1,590.60",REDACTED - PAYMENT TO INDIVIDUAL
Dedicated Schools Grant BG0015,DSG Early Years Block,Transfer Payments,510030,School Children,06/12/2022,4076434-33240,915.60,REDACTED - PAYMENT TO INDIVIDUAL
Children and Young Peoples Services,Head of Education and Skills,Transport,230034,Contract Hire,06/12/2022,4076435-BC003,"2,838.00",REDACTED - PAYMENT TO INDIVIDUAL
Children and Young Peoples Services,Head of Education and Skills,Transport,230006,Contract Hire,06/12/2022,4076435-HC003,"2,700.00",REDACTED - PAYMENT TO INDIVIDUAL
Dedicated Schools Grant BG0015,DSG Early Years Block,Transfer Payments,510032,School Children,06/12/2022,4076448-33019,"1,148.70",REDACTED - PAYMENT TO INDIVIDUAL
Dedicated Schools Grant BG0015,DSG Early Years Block,Transfer Payments,510030,School Children,06/12/2022,4076448-33261,"10,740.60",REDACTED - PAYMENT TO INDIVIDUAL
Children and Young Peoples Services,Head of Education and Skills,Transport,230007,Contract Hire,06/12/2022,4076449-004/5448,"1,408.00",REDACTED - PAYMENT TO INDIVIDUAL
Dedicated Schools Grant BG0015,DSG Early Years Block,Transfer Payments,510030,School Children,06/12/2022,4076452-33250,947.82,REDACTED - PAYMENT TO INDIVIDUAL
Dedicated Schools Grant BG0015,DSG Early Years Block,Transfer Payments,510032,School Children,06/12/2022,4076453-33012,"1,148.70",REDACTED - PAYMENT TO INDIVIDUAL
Dedicated Schools Grant BG0015,DSG Early Years Block,Transfer Payments,510030,School Children,06/12/2022,4076453-33251,"2,626.20",REDACTED - PAYMENT TO INDIVIDUAL
Dedicated Schools Grant BG0015,DSG Early Years Block,Transfer Payments,510030,School Children,06/12/2022,4076455-33253,"2,077.20",REDACTED - PAYMENT TO INDIVIDUAL
Dedicated Schools Grant BG0015,DSG Early Years Block,Transfer Payments,510032,School Children,06/12/2022,4076461-33015,"1,148.70",REDACTED - PAYMENT TO INDIVIDUAL
Children and Young Peoples Services,Head of Education and Skills,Transport,230008,Contract Hire,06/12/2022,4076462-0104,"4,122.00",REDACTED - PAYMENT TO INDIVIDUAL
Dedicated Schools Grant BG0015,DSG Early Years Block,Transfer Payments,510030,School Children,06/12/2022,4076470-33265,513.00,REDACTED - PAYMENT TO INDIVIDUAL
Dedicated Schools Grant BG0015,DSG Early Years Block,Transfer Payments,510030,School Children,06/12/2022,4076473-33267,"1,165.68",REDACTED - PAYMENT TO INDIVIDUAL
Dedicated Schools Grant BG0015,DSG Early Years Block,Transfer Payments,510030,School Children,06/12/2022,4076477-33270,676.27,REDACTED - PAYMENT TO INDIVIDUAL
Dedicated Schools Grant BG0015,DSG Early Years Block,Transfer Payments,510032,School Children,06/12/2022,4076478-33024,656.40,REDACTED - PAYMENT TO INDIVIDUAL
Children and Young Peoples Services,Head of Education and Skills,Transport,230010,Contract Hire,06/12/2022,4076480-0003,"2,290.00",REDACTED - PAYMENT TO INDIVIDUAL
Children and Young Peoples Services,Head of Education and Skills,Transport,230008,Contract Hire,06/12/2022,4076481-KC-3826,"3,850.00",REDACTED - PAYMENT TO INDIVIDUAL
Children and Young Peoples Services,Head of Education and Skills,Transport,230008,Contract Hire,06/12/2022,4076481-KC-3830,746.02,REDACTED - PAYMENT TO INDIVIDUAL
Children and Young Peoples Services,Head of Education and Skills,Transport,230008,Contract Hire,06/12/2022,4076481-KC3825,"2,571.03",REDACTED - PAYMENT TO INDIVIDUAL
Children and Young Peoples Services,Head of Education and Skills,Transport,230009,Contract Hire,06/12/2022,4076481-KC3827,931.77,REDACTED - PAYMENT TO INDIVIDUAL
Children and Young Peoples Services,Head of Education and Skills,Transport,230008,Contract Hire,06/12/2022,4076481-KC3828,"3,023.85",REDACTED - PAYMENT TO INDIVIDUAL
Children and Young Peoples Services,Head of Education and Skills,Transport,230008,Contract Hire,06/12/2022,4076482-14-NOV22,"1,642.52",REDACTED - PAYMENT TO INDIVIDUAL
Children and Young Peoples Services,Head of Education and Skills,Transport,230008,Contract Hire,06/12/2022,4076483-0114,"2,932.16",REDACTED - PAYMENT TO INDIVIDUAL
Children and Young Peoples Services,Head of Education and Skills,Transport,230008,Contract Hire,06/12/2022,4076483-0115,"3,613.00",REDACTED - PAYMENT TO INDIVIDUAL
Children and Young Peoples Services,Head of Education and Skills,Transport,230008,Contract Hire,06/12/2022,4076483-0116,"3,300.00",REDACTED - PAYMENT TO INDIVIDUAL
Dedicated Schools Grant BG0015,DSG Early Years Block,Transfer Payments,510032,School Children,06/12/2022,4076484-33025,861.52,REDACTED - PAYMENT TO INDIVIDUAL
Dedicated Schools Grant BG0015,DSG Early Years Block,Transfer Payments,510030,School Children,06/12/2022,4076487-33273,656.55,REDACTED - PAYMENT TO INDIVIDUAL
Dedicated Schools Grant BG0015,DSG Early Years Block,Transfer Payments,510030,School Children,06/12/2022,4076488-33274,"1,292.10",REDACTED - PAYMENT TO INDIVIDUAL
Children and Young Peoples Services,Head of Education and Skills,Transport,230006,Contract Hire,06/12/2022,4076489-INV251,"1,862.00",REDACTED - PAYMENT TO INDIVIDUAL
Children and Young Peoples Services,Head of Education and Skills,Transport,230008,Contract Hire,06/12/2022,4076489-INV252,"2,233.00",REDACTED - PAYMENT TO INDIVIDUAL
Dedicated Schools Grant BG0015,DSG Early Years Block,Transfer Payments,510030,School Children,06/12/2022,4076495-33159,549.36,REDACTED - PAYMENT TO INDIVIDUAL
Children and Young Peoples Services,Head of Education and Skills,Supplies and Services,338027,Services,06/12/2022,4076496-16,945.00,REDACTED - PAYMENT TO INDIVIDUAL
Children and Young Peoples Services,Head of Education and Skills,Transport,230008,Contract Hire,06/12/2022,4076500-NOV22-W099,"3,168.00",REDACTED - PAYMENT TO INDIVIDUAL
